Unique Reference Number,Vendor Name,Subject Mapping 1 (higher level),Subj Mapping 2 (Lower Level),Subjective  Desc,Net amount,Capital/Revenue,GL Posting Date,Directorate
WC47- 0001,1ST HAND CARE LTD,Third Party Payments,Private Contractor Fees,73372-DOMICILIARY CARE,647.21,Revenue,01/08/2014,Social Care & Inclusion
WC47- 0002,1ST HAND CARE LTD,Third Party Payments,Private Contractor Fees,73372-DOMICILIARY CARE,763.92,Revenue,01/08/2014,Social Care & Inclusion
WC47- 0003,1ST HAND CARE LTD,Third Party Payments,Private Contractor Fees,73372-DOMICILIARY CARE,"10,379.23",Revenue,19/08/2014,Social Care & Inclusion
WC47- 0004,39 ESSEX STREET LLP PFA,Supplies & Services,Other Supplies & Services,63116-EXTERNAL BARRISTERS-SERVICES-FEES,"2,000.01",Revenue,05/08/2014,Resources
WC47- 0005,A 2 Z TAXIS (A2Z CARS),Transport,Hire,52000-WITH DRIVER-HIRE OF VEHICLES,336.00,Revenue,07/08/2014,Childrens
WC47- 0006,A 2 Z TAXIS (A2Z CARS),Transport,Hire,52000-WITH DRIVER-HIRE OF VEHICLES,390.00,Revenue,07/08/2014,Childrens
WC47- 0007,A 2 Z TAXIS (A2Z CARS),Transport,Hire,52000-WITH DRIVER-HIRE OF VEHICLES,390.00,Revenue,07/08/2014,Childrens
WC47- 0008,A 2 Z TAXIS (A2Z CARS),Transport,Hire,52000-WITH DRIVER-HIRE OF VEHICLES,392.00,Revenue,07/08/2014,Childrens
WC47- 0009,A 2 Z TAXIS (A2Z CARS),Transport,Hire,52000-WITH DRIVER-HIRE OF VEHICLES,520.00,Revenue,07/08/2014,Childrens
WC47- 0010,A 2 Z TAXIS (A2Z CARS),Transport,Hire,52000-WITH DRIVER-HIRE OF VEHICLES,560.00,Revenue,07/08/2014,Childrens
WC47- 0011,A 2 Z TAXIS (A2Z CARS),Transport,Hire,52000-WITH DRIVER-HIRE OF VEHICLES,628.94,Revenue,07/08/2014,Childrens
WC47- 0012,A 2 Z TAXIS (A2Z CARS),Transport,Hire,52000-WITH DRIVER-HIRE OF VEHICLES,870.24,Revenue,07/08/2014,Childrens
WC47- 0013,REDACTED,Supplies & Services,"Equip,Furniture & Materials",60006-NEW-FURNITURE & EQUIPMENT,291.25,Revenue,14/08/2014,Neighbourhood Services
WC47- 0014,A D T FIRE AND SECURITY PLC,Premises,Premises-Repairs & Maintenance,40015-ALARM CALL OUTS-OP MTCE,272.10,Revenue,14/08/2014,Childrens
WC47- 0015,A D T FIRE AND SECURITY PLC,Supplies & Services,"Equip,Furniture & Materials",60008-MAINTENANCE-FURNITURE & EQUIPMENT,400.00,Revenue,07/08/2014,Neighbourhood Services
WC47- 0016,A D T FIRE AND SECURITY PLC,Premises,Premises-Repairs & Maintenance,"40000-REPAIRS,ALTERATIONS & MAINTENANCE-PREM",802.00,Revenue,01/08/2014,Resources
WC47- 0017,A D T FIRE AND SECURITY PLC,Third Party Payments,Private Contractor Fees,73025-PROFESSIONAL SERVICES-PRIV CONTRACTOR & OTHER AGENCIES,"3,036.41",Revenue,01/08/2014,Neighbourhood Services
WC47- 0018,A D T FIRE AND SECURITY PLC,Supplies & Services,"Equip,Furniture & Materials",60008-MAINTENANCE-FURNITURE & EQUIPMENT,"8,344.80",Revenue,04/08/2014,Social Care & Inclusion
WC47- 0019,A F BLAKEMORE & SON LTD,Supplies & Services,Provisions,61016-FOOD AND BEVERAGES-PROVISIONS,-269.35,Revenue,01/08/2014,Social Care & Inclusion
WC47- 0020,A F BLAKEMORE & SON LTD,Supplies & Services,"Equip,Furniture & Materials",60002-PRIVATE CONTRACTORS-EQUIPMENT,106.26,Revenue,18/08/2014,Neighbourhood Services
WC47- 0021,A F BLAKEMORE & SON LTD,Supplies & Services,Provisions,61009-BEVERAGES-PROVISIONS,147.09,Revenue,18/08/2014,Neighbourhood Services
WC47- 0022,A F BLAKEMORE & SON LTD,Supplies & Services,"Equip,Furniture & Materials",60002-PRIVATE CONTRACTORS-EQUIPMENT,298.67,Revenue,18/08/2014,Neighbourhood Services
WC47- 0023,A F BLAKEMORE & SON LTD,Supplies & Services,Provisions,61009-BEVERAGES-PROVISIONS,334.85,Revenue,18/08/2014,Neighbourhood Services
WC47- 0024,A F BLAKEMORE & SON LTD,Supplies & Services,Provisions,61006-FRUIT & VEGETABLES OTHER-PROVISIONS,390.18,Revenue,26/08/2014,Social Care & Inclusion
WC47- 0025,A F BLAKEMORE & SON LTD,Supplies & Services,Provisions,61016-FOOD AND BEVERAGES-PROVISIONS,956.48,Revenue,18/08/2014,Neighbourhood Services
WC47- 0026,REDACTED,Third Party Payments,Private Contractor Fees,74006-HOLIDAY/CHRISTMAS ALLOWANCE-FOSTER CARERS-OTH AGENCY PROVISION,333.92,Revenue,04/08/2014,Childrens
WC47- 0027,REDACTED,Supplies & Services,Other Supplies & Services,83900-CIVIC EVENTS-OTHER DEMOCRACY COSTS,250.00,Revenue,26/08/2014,Neighbourhood Services
WC47- 0028,REDACTED,Supplies & Services,Other Supplies & Services,62515-MISCELLANEOUS SUPPLIES,896.24,Revenue,18/08/2014,Childrens
WC47- 0029,REDACTED,Third Party Payments,Private Contractor Fees,74006-HOLIDAY/CHRISTMAS ALLOWANCE-FOSTER CARERS-OTH AGENCY PROVISION,"1,452.48",Revenue,18/08/2014,Childrens
WC47- 0030,A1 ABLEWELL TAXIS,Transport,Hire,52000-WITH DRIVER-HIRE OF VEHICLES,644.00,Revenue,06/08/2014,Childrens
WC47- 0031,A1 ABLEWELL TAXIS,Transport,Hire,52000-WITH DRIVER-HIRE OF VEHICLES,672.00,Revenue,06/08/2014,Childrens
WC47- 0032,A1 ABLEWELL TAXIS,Transport,Hire,52000-WITH DRIVER-HIRE OF VEHICLES,812.00,Revenue,06/08/2014,Childrens
WC47- 0033,A1 EXPRESS TAXIS,Transport,Hire,52000-WITH DRIVER-HIRE OF VEHICLES,840.00,Revenue,04/08/2014,Childrens
WC47- 0034,AA CARS,Transport,Hire,52000-WITH DRIVER-HIRE OF VEHICLES,357.00,Revenue,01/08/2014,Childrens
WC47- 0035,AA CARS,Transport,Hire,52000-WITH DRIVER-HIRE OF VEHICLES,384.00,Revenue,06/08/2014,Childrens
WC47- 0036,AA CARS,Transport,Hire,52000-WITH DRIVER-HIRE OF VEHICLES,397.32,Revenue,06/08/2014,Childrens
WC47- 0037,AA CARS,Transport,Hire,52000-WITH DRIVER-HIRE OF VEHICLES,406.00,Revenue,06/08/2014,Childrens
WC47- 0038,AA CARS,Transport,Hire,52000-WITH DRIVER-HIRE OF VEHICLES,454.08,Revenue,01/08/2014,Childrens
WC47- 0039,AA CARS,Transport,Hire,52000-WITH DRIVER-HIRE OF VEHICLES,464.00,Revenue,01/08/2014,Childrens
WC47- 0040,AA CARS,Transport,Hire,52000-WITH DRIVER-HIRE OF VEHICLES,765.00,Revenue,01/08/2014,Childrens
WC47- 0041,AA CARS,Transport,Hire,52000-WITH DRIVER-HIRE OF VEHICLES,900.00,Revenue,06/08/2014,Childrens
WC47- 0042,AAA BEE JAY TRAVEL,Transport,Hire,52000-WITH DRIVER-HIRE OF VEHICLES,250.00,Revenue,04/08/2014,Childrens
WC47- 0043,AAA BEE JAY TRAVEL,Transport,Hire,52000-WITH DRIVER-HIRE OF VEHICLES,290.00,Revenue,04/08/2014,Childrens
WC47- 0044,AAA BEE JAY TRAVEL,Transport,Hire,52000-WITH DRIVER-HIRE OF VEHICLES,360.00,Revenue,04/08/2014,Childrens
WC47- 0045,AAA BEE JAY TRAVEL,Transport,Hire,52000-WITH DRIVER-HIRE OF VEHICLES,410.00,Revenue,04/08/2014,Childrens
WC47- 0046,AAA BEE JAY TRAVEL,Transport,Hire,52000-WITH DRIVER-HIRE OF VEHICLES,"1,254.00",Revenue,04/08/2014,Childrens
WC47- 0047,REDACTED,Transfer Payments,Transfer Payments,76422-DIRECT PAYMENTS TO SOCIAL SERVICES CLIENTS,345.24,Revenue,11/08/2014,Childrens
WC47- 0048,REDACTED,Third Party Payments,Private Contractor Fees,74006-HOLIDAY/CHRISTMAS ALLOWANCE-FOSTER CARERS-OTH AGENCY PROVISION,959.10,Revenue,04/08/2014,Childrens
WC47- 0049,ABBEY COURT NURSING & RESIDEN,Third Party Payments,Private Contractor Fees,73373-RESIDENTIAL & NURSING CARE PLACEMENTS,"1,867.50",Revenue,19/08/2014,Social Care & Inclusion
WC47- 0050,ABBEY COURT NURSING & RESIDEN,Third Party Payments,Private Contractor Fees,73373-RESIDENTIAL & NURSING CARE PLACEMENTS,"1,867.50",Revenue,19/08/2014,Social Care & Inclusion
WC47- 0051,ABC DAY NURSERY (WILLENHALL) LIMITED,Third Party Payments,Grants to Other Orgs,66505-OTHER-GRANTS TO OTHER ORGS,"9,979.99",Revenue,29/08/2014,Childrens
WC47- 0052,ABC FOSTERING,Third Party Payments,Private Contractor Fees,74037-INDEPENDENT FOSTER CARE-OTH AGENCY PROVISION,"3,239.50",Revenue,18/08/2014,Childrens
WC47- 0053,ABC FOSTERING,Third Party Payments,Private Contractor Fees,74037-INDEPENDENT FOSTER CARE-OTH AGENCY PROVISION,"3,410.00",Revenue,18/08/2014,Childrens
WC47- 0054,ABC TEACHERS LIMITED,Employees,Agency,34305-AGENCY STAFF-EMPLOYEES,362.97,Revenue,01/08/2014,Childrens
WC47- 0055,ABC TEACHERS LIMITED,Employees,Agency,34305-AGENCY STAFF-EMPLOYEES,443.96,Revenue,08/08/2014,Childrens
WC47- 0056,ABC TEACHERS LIMITED,Third Party Payments,Grants to Other Orgs,66502-TOP UP FUNDING -GRANTS TO SCHOOLS,579.95,Revenue,01/08/2014,Childrens
WC47- 0057,ABC TEACHERS LIMITED,Third Party Payments,Grants to Other Orgs,66502-TOP UP FUNDING -GRANTS TO SCHOOLS,579.95,Revenue,08/08/2014,Childrens
WC47- 0058,ABC TEACHERS LIMITED,Employees,Agency,34305-AGENCY STAFF-EMPLOYEES,587.97,Revenue,07/08/2014,Childrens
WC47- 0059,REDACTED,Transfer Payments,Transfer Payments,76422-DIRECT PAYMENTS TO SOCIAL SERVICES CLIENTS,"2,357.99",Revenue,11/08/2014,Social Care & Inclusion
WC47- 0060,ABS TAXIS (ALDRIDGE),Transport,Hire,52000-WITH DRIVER-HIRE OF VEHICLES,432.00,Revenue,04/08/2014,Childrens
WC47- 0061,ABS TAXIS (ALDRIDGE),Transport,Hire,52000-WITH DRIVER-HIRE OF VEHICLES,525.00,Revenue,04/08/2014,Childrens
WC47- 0062,ABS TAXIS (ALDRIDGE),Transport,Hire,52000-WITH DRIVER-HIRE OF VEHICLES,"1,368.00",Revenue,04/08/2014,Childrens
WC47- 0063,ABS TAXIS (ALDRIDGE),Transport,Hire,52000-WITH DRIVER-HIRE OF VEHICLES,"1,368.00",Revenue,04/08/2014,Childrens
WC47- 0064,ABU BAKR NURSERY,Third Party Payments,Grants to Other Orgs,66505-OTHER-GRANTS TO OTHER ORGS,"25,530.95",Revenue,29/08/2014,Childrens
WC47- 0065,ACCORD HOUSING ASSOCIATION LTD#135,Third Party Payments,Private Contractor Fees,73373-RESIDENTIAL & NURSING CARE PLACEMENTS,317.96,Revenue,12/08/2014,Social Care & Inclusion
WC47- 0066,ACCORD HOUSING ASSOCIATION LTD#135,Third Party Payments,Private Contractor Fees,73374-SUPPORTED & OTHER ACCOMMODATION,728.00,Revenue,01/08/2014,Social Care & Inclusion
WC47- 0067,ACCORD HOUSING ASSOCIATION LTD#135,Third Party Payments,Private Contractor Fees,73374-SUPPORTED & OTHER ACCOMMODATION,"3,077.20",Revenue,18/08/2014,Social Care & Inclusion
WC47- 0068,ACCORD HOUSING ASSOCIATION LTD#135,Third Party Payments,Private Contractor Fees,73373-RESIDENTIAL & NURSING CARE PLACEMENTS,"4,640.48",Revenue,19/08/2014,Social Care & Inclusion
WC47- 0069,ACCORD HOUSING ASSOCIATION LTD#135,Third Party Payments,Private Contractor Fees,73373-RESIDENTIAL & NURSING CARE PLACEMENTS,"4,640.48",Revenue,19/08/2014,Social Care & Inclusion
WC47- 0070,ACCORD HOUSING ASSOCIATION LTD#135,Third Party Payments,Private Contractor Fees,73373-RESIDENTIAL & NURSING CARE PLACEMENTS,"4,640.48",Revenue,19/08/2014,Social Care & Inclusion
WC47- 0071,ACCORD HOUSING ASSOCIATION LTD#135,Third Party Payments,Private Contractor Fees,73373-RESIDENTIAL & NURSING CARE PLACEMENTS,"4,640.48",Revenue,26/08/2014,Social Care & Inclusion
WC47- 0072,ACCORD HOUSING ASSOCIATION LTD#135,Third Party Payments,Private Contractor Fees,73374-SUPPORTED & OTHER ACCOMMODATION,"5,353.25",Revenue,18/08/2014,Social Care & Inclusion
WC47- 0073,ACCORD HOUSING ASSOCIATION LTD#135,Third Party Payments,Private Contractor Fees,73374-SUPPORTED & OTHER ACCOMMODATION,"5,790.25",Revenue,18/08/2014,Social Care & Inclusion
WC47- 0074,ACCORD HOUSING ASSOCIATION LTD#135,Third Party Payments,Private Contractor Fees,73373-RESIDENTIAL & NURSING CARE PLACEMENTS,"6,476.61",Revenue,19/08/2014,Social Care & Inclusion
WC47- 0075,ACCORD HOUSING ASSOCIATION LTD#135,Third Party Payments,Private Contractor Fees,73373-RESIDENTIAL & NURSING CARE PLACEMENTS,"6,476.61",Revenue,19/08/2014,Social Care & Inclusion
WC47- 0076,ACCORD HOUSING ASSOCIATION LTD#135,Third Party Payments,Private Contractor Fees,73373-RESIDENTIAL & NURSING CARE PLACEMENTS,"6,476.61",Revenue,26/08/2014,Social Care & Inclusion
WC47- 0077,ACCORD HOUSING ASSOCIATION LTD#135,Third Party Payments,Private Contractor Fees,73374-SUPPORTED & OTHER ACCOMMODATION,"9,231.60",Revenue,18/08/2014,Social Care & Inclusion
WC47- 0078,ACCORD HOUSING ASSOCIATION LTD#135,Third Party Payments,Private Contractor Fees,73374-SUPPORTED & OTHER ACCOMMODATION,"13,437.75",Revenue,18/08/2014,Social Care & Inclusion
WC47- 0079,ACCORD HOUSING ASSOCIATION LTD#135,Third Party Payments,Private Contractor Fees,73374-SUPPORTED & OTHER ACCOMMODATION,"21,413.00",Revenue,18/08/2014,Social Care & Inclusion
WC47- 0080,ACCORD HOUSING ASSOCIATION LTD#135,Supplies & Services,Services,63000-PROFESSIONAL FEES AND SERVICES,"68,846.01",Revenue,20/08/2014,Neighbourhood Services
WC47- 0081,ACE CARE AGENCY,Third Party Payments,Private Contractor Fees,73372-DOMICILIARY CARE,283.29,Revenue,07/08/2014,Social Care & Inclusion
WC47- 0082,ACE CARE AGENCY,Third Party Payments,Private Contractor Fees,73372-DOMICILIARY CARE,519.40,Revenue,07/08/2014,Social Care & Inclusion
WC47- 0083,ACE CARE AGENCY,Third Party Payments,Private Contractor Fees,73372-DOMICILIARY CARE,647.52,Revenue,07/08/2014,Social Care & Inclusion
WC47- 0084,ACE CARE AGENCY,Third Party Payments,Private Contractor Fees,73372-DOMICILIARY CARE,911.60,Revenue,07/08/2014,Social Care & Inclusion
WC47- 0085,ACE CARE AGENCY,Third Party Payments,Private Contractor Fees,73372-DOMICILIARY CARE,944.98,Revenue,07/08/2014,Social Care & Inclusion
WC47- 0086,ACE RADIO CARS,Transport,Hire,52000-WITH DRIVER-HIRE OF VEHICLES,390.00,Revenue,06/08/2014,Childrens
WC47- 0087,ACE RADIO CARS,Transport,Hire,52000-WITH DRIVER-HIRE OF VEHICLES,650.00,Revenue,06/08/2014,Childrens
WC47- 0088,ACE RADIO CARS,Transport,Hire,52000-WITH DRIVER-HIRE OF VEHICLES,840.00,Revenue,06/08/2014,Childrens
WC47- 0089,ACORN CARE LTD,Third Party Payments,Private Contractor Fees,73373-RESIDENTIAL & NURSING CARE PLACEMENTS,"14,840.32",Revenue,12/08/2014,Social Care & Inclusion
WC47- 0090,ACORN FOSTERING SERVICES LTD,Third Party Payments,Private Contractor Fees,74037-INDEPENDENT FOSTER CARE-OTH AGENCY PROVISION,"3,410.00",Revenue,14/08/2014,Childrens
WC47- 0091,ACORN REST HOME,Third Party Payments,Private Contractor Fees,73373-RESIDENTIAL & NURSING CARE PLACEMENTS,"1,460.40",Revenue,12/08/2014,Social Care & Inclusion
WC47- 0092,ACORN REST HOME,Third Party Payments,Private Contractor Fees,73373-RESIDENTIAL & NURSING CARE PLACEMENTS,"1,460.40",Revenue,12/08/2014,Social Care & Inclusion
WC47- 0093,ADA BUILDERS & JOINERS,Capital,Capital,01045-PRIVATE GRANTS,"20,933.60",Capital,21/08/2014,Resources
WC47- 0094,REDACTED,Supplies & Services,Services,63000-PROFESSIONAL FEES AND SERVICES,"1,920.00",Revenue,20/08/2014,Neighbourhood Services
WC47- 0095,REDACTED,Transfer Payments,Transfer Payments,76422-DIRECT PAYMENTS TO SOCIAL SERVICES CLIENTS,487.60,Revenue,11/08/2014,Childrens
WC47- 0096,REDACTED,Transfer Payments,Transfer Payments,76422-DIRECT PAYMENTS TO SOCIAL SERVICES CLIENTS,384.00,Revenue,11/08/2014,Social Care & Inclusion
WC47- 0097,ADAMS TOURS,Transport,Hire,52000-WITH DRIVER-HIRE OF VEHICLES,250.00,Revenue,08/08/2014,Childrens
WC47- 0098,REDACTED,Transfer Payments,Transfer Payments,76422-DIRECT PAYMENTS TO SOCIAL SERVICES CLIENTS,860.00,Revenue,11/08/2014,Social Care & Inclusion
WC47- 0099,ADMIRAL SELF STORAGE LTD,Supplies & Services,"Equip,Furniture & Materials",60104-REMOVAL OF FURNITURE,499.59,Revenue,27/08/2014,Childrens
WC47- 0100,ADOPTION UK,Third Party Payments,Private Contractor Fees,74018-MISCELLANEOUS-OTH AGENCY PROVISION,"-7,358.75",Revenue,18/08/2014,Childrens
WC47- 0101,ADOPTION UK,Third Party Payments,Private Contractor Fees,74018-MISCELLANEOUS-OTH AGENCY PROVISION,"7,358.75",Revenue,15/08/2014,Childrens
WC47- 0102,REDACTED,Third Party Payments,Private Contractor Fees,74006-HOLIDAY/CHRISTMAS ALLOWANCE-FOSTER CARERS-OTH AGENCY PROVISION,681.52,Revenue,04/08/2014,Childrens
WC47- 0103,ADVANCE HEALTH CARE (UK) LTD,Employees,Agency,34305-AGENCY STAFF-EMPLOYEES,286.00,Revenue,15/08/2014,Social Care & Inclusion
WC47- 0104,ADVANCE HEALTH CARE (UK) LTD,Employees,Agency,34305-AGENCY STAFF-EMPLOYEES,669.50,Revenue,15/08/2014,Social Care & Inclusion
WC47- 0105,ADVANCE HEALTH CARE (UK) LTD,Employees,Agency,34305-AGENCY STAFF-EMPLOYEES,"1,075.75",Revenue,15/08/2014,Social Care & Inclusion
WC47- 0106,ADVANCE HEALTH CARE (UK) LTD,Employees,Agency,34305-AGENCY STAFF-EMPLOYEES,"1,703.00",Revenue,27/08/2014,Social Care & Inclusion
WC47- 0107,ADVANCE HEALTH CARE (UK) LTD,Employees,Agency,34305-AGENCY STAFF-EMPLOYEES,"1,943.50",Revenue,15/08/2014,Social Care & Inclusion
WC47- 0108,ADVANCE HEALTH CARE (UK) LTD,Employees,Agency,34305-AGENCY STAFF-EMPLOYEES,"1,995.50",Revenue,01/08/2014,Social Care & Inclusion
WC47- 0109,ADVANCE HEALTH CARE (UK) LTD,Employees,Agency,34305-AGENCY STAFF-EMPLOYEES,"2,060.50",Revenue,27/08/2014,Social Care & Inclusion
WC47- 0110,ADVANCE HEALTH CARE (UK) LTD,Employees,Agency,34305-AGENCY STAFF-EMPLOYEES,"4,160.00",Revenue,01/08/2014,Social Care & Inclusion
WC47- 0111,ADVANCE HEALTH CARE (UK) LTD,Employees,Agency,34305-AGENCY STAFF-EMPLOYEES,"4,849.00",Revenue,27/08/2014,Social Care & Inclusion
WC47- 0112,ADVANCE HEALTH CARE (UK) LTD,Employees,Agency,34305-AGENCY STAFF-EMPLOYEES,"5,362.50",Revenue,27/08/2014,Social Care & Inclusion
WC47- 0113,ADVANCE HEALTH CARE (UK) LTD,Employees,Agency,34305-AGENCY STAFF-EMPLOYEES,"5,453.50",Revenue,15/08/2014,Social Care & Inclusion
WC47- 0114,ADVANCE HEALTH CARE (UK) LTD,Employees,Agency,34305-AGENCY STAFF-EMPLOYEES,"5,661.50",Revenue,15/08/2014,Social Care & Inclusion
WC47- 0115,ADVANCE HEALTH CARE (UK) LTD,Employees,Agency,34305-AGENCY STAFF-EMPLOYEES,"7,143.50",Revenue,01/08/2014,Social Care & Inclusion
WC47- 0116,ADVANCE HEALTH CARE (UK) LTD,Third Party Payments,Private Contractor Fees,73372-DOMICILIARY CARE,"7,849.19",Revenue,19/08/2014,Social Care & Inclusion
WC47- 0117,ADVANCED CONTRACTS (MIDLANDS) LTD,Third Party Payments,Private Contractor Fees,73025-PROFESSIONAL SERVICES-PRIV CONTRACTOR & OTHER AGENCIES,628.00,Revenue,07/08/2014,Regeneration
WC47- 0118,ADVANCED CONTRACTS (MIDLANDS) LTD,Premises,Premises-Repairs & Maintenance,"40000-REPAIRS,ALTERATIONS & MAINTENANCE-PREM","11,880.00",Revenue,07/08/2014,Regeneration
WC47- 0119,ADVANCED HEALTH AND CARE,Supplies & Services,Services,63000-PROFESSIONAL FEES AND SERVICES,650.00,Revenue,07/08/2014,Neighbourhood Services
WC47- 0120,ADVENTURELAND DAY NURSERY,Supplies & Services,Other Supplies & Services,63120-CRECHE FACILITIES-SERVICES-FEES,316.80,Revenue,01/08/2014,Neighbourhood Services
WC47- 0121,ADVENTURELAND DAY NURSERY,Supplies & Services,Other Supplies & Services,63120-CRECHE FACILITIES-SERVICES-FEES,396.00,Revenue,01/08/2014,Neighbourhood Services
WC47- 0122,ADVENTURELAND DAY NURSERY,Supplies & Services,Other Supplies & Services,63120-CRECHE FACILITIES-SERVICES-FEES,450.00,Revenue,01/08/2014,Childrens
WC47- 0123,ADVENTURELAND DAY NURSERY,Supplies & Services,Other Supplies & Services,63120-CRECHE FACILITIES-SERVICES-FEES,450.00,Revenue,01/08/2014,Childrens
WC47- 0124,ADVENTURELAND DAY NURSERY,Third Party Payments,Grants to Other Orgs,66505-OTHER-GRANTS TO OTHER ORGS,"2,263.73",Revenue,29/08/2014,Childrens
WC47- 0125,AEBI SCHMIDT UK LIMITED,Supplies & Services,"Equip,Furniture & Materials",60500-GENERAL MATERIALS,407.14,Revenue,18/08/2014,Neighbourhood Services
WC47- 0126,AECOM LIMITED,Supplies & Services,Services,63102-CONSULTANTS FEES - CORPORATE,839.50,Revenue,01/08/2014,Neighbourhood Services
WC47- 0127,AGE UK WALSALL,Transfer Payments,Transfer Payments,76423-DIRECT PAYMENTS SUPPORT,"3,112.00",Revenue,05/08/2014,Social Care & Inclusion
WC47- 0128,AGGORA TECHNICAL LTD,Supplies & Services,"Equip,Furniture & Materials",60006-NEW-FURNITURE & EQUIPMENT,"3,512.00",Revenue,27/08/2014,Neighbourhood Services
WC47- 0129,AGINCARE UK LTD,Third Party Payments,Private Contractor Fees,73372-DOMICILIARY CARE,297.72,Revenue,07/08/2014,Social Care & Inclusion
WC47- 0130,AGINCARE UK LTD,Third Party Payments,Private Contractor Fees,73372-DOMICILIARY CARE,308.00,Revenue,07/08/2014,Social Care & Inclusion
WC47- 0131,AGINCARE UK LTD,Third Party Payments,Private Contractor Fees,73372-DOMICILIARY CARE,"1,713.60",Revenue,07/08/2014,Social Care & Inclusion
WC47- 0132,AGINCARE UK LTD,Third Party Payments,Private Contractor Fees,73372-DOMICILIARY CARE,"1,866.97",Revenue,07/08/2014,Social Care & Inclusion
WC47- 0133,REDACTED,Transfer Payments,Transfer Payments,76422-DIRECT PAYMENTS TO SOCIAL SERVICES CLIENTS,"1,882.00",Revenue,11/08/2014,Social Care & Inclusion
WC47- 0134,AIREY CONSULTANCY SERVICES LTD,Supplies & Services,Services,63102-CONSULTANTS FEES - CORPORATE,650.00,Revenue,05/08/2014,Resources
WC47- 0135,REDACTED,Transfer Payments,Transfer Payments,76422-DIRECT PAYMENTS TO SOCIAL SERVICES CLIENTS,936.52,Revenue,11/08/2014,Social Care & Inclusion
WC47- 0136,AJK TRAVEL,Transport,Hire,52000-WITH DRIVER-HIRE OF VEHICLES,368.00,Revenue,04/08/2014,Childrens
WC47- 0137,AJK TRAVEL,Transport,Hire,52000-WITH DRIVER-HIRE OF VEHICLES,368.00,Revenue,04/08/2014,Childrens
WC47- 0138,AJK TRAVEL,Transport,Hire,52000-WITH DRIVER-HIRE OF VEHICLES,450.00,Revenue,04/08/2014,Childrens
WC47- 0139,AJK TRAVEL,Transport,Hire,52000-WITH DRIVER-HIRE OF VEHICLES,470.00,Revenue,04/08/2014,Childrens
WC47- 0140,AJK TRAVEL,Transport,Hire,52000-WITH DRIVER-HIRE OF VEHICLES,550.00,Revenue,04/08/2014,Childrens
WC47- 0141,AJK TRAVEL,Transport,Hire,52000-WITH DRIVER-HIRE OF VEHICLES,600.00,Revenue,04/08/2014,Childrens
WC47- 0142,AJK TRAVEL,Transport,Hire,52000-WITH DRIVER-HIRE OF VEHICLES,710.00,Revenue,04/08/2014,Childrens
WC47- 0143,AJK TRAVEL,Transport,Hire,52000-WITH DRIVER-HIRE OF VEHICLES,760.00,Revenue,04/08/2014,Childrens
WC47- 0144,AJK TRAVEL,Transport,Hire,52000-WITH DRIVER-HIRE OF VEHICLES,760.00,Revenue,04/08/2014,Childrens
WC47- 0145,ALAN CRISTEA GALLERY,Supplies & Services,Other Supplies & Services,60526-QUALITY ASSURANCE,"5,950.00",Revenue,05/08/2014,Neighbourhood Services
WC47- 0146,REDACTED,Transfer Payments,Transfer Payments,76422-DIRECT PAYMENTS TO SOCIAL SERVICES CLIENTS,667.80,Revenue,11/08/2014,Social Care & Inclusion
WC47- 0147,REDACTED,Transfer Payments,Transfer Payments,76422-DIRECT PAYMENTS TO SOCIAL SERVICES CLIENTS,"2,118.48",Revenue,11/08/2014,Social Care & Inclusion
WC47- 0148,ALDERGROVE MANOR CARE HOME,Third Party Payments,Private Contractor Fees,73373-RESIDENTIAL & NURSING CARE PLACEMENTS,"1,784.48",Revenue,19/08/2014,Social Care & Inclusion
WC47- 0149,ALDRIDGE & BARONS LIMITED,Transport,Car Allowances,53004-TAXIS-TRAVEL ALLOWANCES,372.64,Revenue,01/08/2014,Childrens
WC47- 0150,ALDRIDGE & BARONS LIMITED,Transport,Hire,52000-WITH DRIVER-HIRE OF VEHICLES,"1,040.00",Revenue,04/08/2014,Childrens
WC47- 0151,ALDRIDGE & BARONS LIMITED,Transport,Hire,52000-WITH DRIVER-HIRE OF VEHICLES,"1,484.00",Revenue,04/08/2014,Childrens
WC47- 0152,ALDRIDGE & BARONS LIMITED,Transport,Hire,52000-WITH DRIVER-HIRE OF VEHICLES,"1,748.00",Revenue,04/08/2014,Childrens
WC47- 0153,ALDRIDGE & BARONS LIMITED,Transport,Hire,52000-WITH DRIVER-HIRE OF VEHICLES,"2,268.00",Revenue,05/08/2014,Childrens
WC47- 0154,ALDRIDGE & BARONS LIMITED,Transport,Hire,52000-WITH DRIVER-HIRE OF VEHICLES,"2,438.00",Revenue,04/08/2014,Childrens
WC47- 0155,ALDRIDGE & BARONS LIMITED,Transport,Hire,52000-WITH DRIVER-HIRE OF VEHICLES,"2,650.00",Revenue,04/08/2014,Childrens
WC47- 0156,ALDRIDGE & BARONS LIMITED,Transport,Hire,52000-WITH DRIVER-HIRE OF VEHICLES,"4,240.00",Revenue,05/08/2014,Childrens
WC47- 0157,ALDRIDGE & BARONS LIMITED,Transport,Hire,52000-WITH DRIVER-HIRE OF VEHICLES,"4,644.00",Revenue,05/08/2014,Childrens
WC47- 0158,ALDRIDGE & BARONS LIMITED,Transport,Hire,52000-WITH DRIVER-HIRE OF VEHICLES,"4,982.00",Revenue,04/08/2014,Childrens
WC47- 0159,ALDRIDGE & BARONS LIMITED,Transport,Hire,52000-WITH DRIVER-HIRE OF VEHICLES,"5,076.00",Revenue,05/08/2014,Childrens
WC47- 0160,ALDRIDGE & BARONS LIMITED,Transport,Hire,52000-WITH DRIVER-HIRE OF VEHICLES,"6,890.00",Revenue,05/08/2014,Childrens
WC47- 0161,ALDRIDGE & BARONS LIMITED,Transport,Hire,52000-WITH DRIVER-HIRE OF VEHICLES,"7,560.00",Revenue,05/08/2014,Childrens
WC47- 0162,ALDRIDGE SCHOOL A SCIENCE COLLEGE.,Transfer Payments,Transfer Payments,77300-ISB-FORMULA ALLOCATION,250.00,Revenue,12/08/2014,Childrens
WC47- 0163,ALDRIDGE SCHOOL A SCIENCE COLLEGE.,Transfer Payments,Transfer Payments,77300-ISB-FORMULA ALLOCATION,265.00,Revenue,12/08/2014,Childrens
WC47- 0164,ALDRIDGE SCHOOL A SCIENCE COLLEGE.,Transfer Payments,Transfer Payments,77300-ISB-FORMULA ALLOCATION,435.00,Revenue,12/08/2014,Childrens
WC47- 0165,REDACTED,Transfer Payments,Transfer Payments,76422-DIRECT PAYMENTS TO SOCIAL SERVICES CLIENTS,335.04,Revenue,11/08/2014,Social Care & Inclusion
WC47- 0166,ALEXANDRA HOUSE CARE SERVICES LTD T/A STONEBRIDGE NURSING HOME,Third Party Payments,Private Contractor Fees,73373-RESIDENTIAL & NURSING CARE PLACEMENTS,"6,960.84",Revenue,05/08/2014,Social Care & Inclusion
WC47- 0167,REDACTED,Transfer Payments,Transfer Payments,76422-DIRECT PAYMENTS TO SOCIAL SERVICES CLIENTS,582.66,Revenue,11/08/2014,Childrens
WC47- 0168,ALFORD PRIMARY SCHOOL,Transfer Payments,Transfer Payments,77300-ISB-FORMULA ALLOCATION,"1,050.83",Revenue,19/08/2014,Childrens
WC47- 0169,REDACTED,Transfer Payments,Transfer Payments,76422-DIRECT PAYMENTS TO SOCIAL SERVICES CLIENTS,854.00,Revenue,11/08/2014,Social Care & Inclusion
WC47- 0170,REDACTED,Transfer Payments,Transfer Payments,76422-DIRECT PAYMENTS TO SOCIAL SERVICES CLIENTS,328.80,Revenue,11/08/2014,Social Care & Inclusion
WC47- 0171,REDACTED,Third Party Payments,Private Contractor Fees,74006-HOLIDAY/CHRISTMAS ALLOWANCE-FOSTER CARERS-OTH AGENCY PROVISION,796.00,Revenue,18/08/2014,Childrens
WC47- 0172,REDACTED,Supplies & Services,Other Supplies & Services,62515-MISCELLANEOUS SUPPLIES,"1,428.44",Revenue,18/08/2014,Childrens
WC47- 0173,REDACTED,Third Party Payments,Private Contractor Fees,74006-HOLIDAY/CHRISTMAS ALLOWANCE-FOSTER CARERS-OTH AGENCY PROVISION,542.80,Revenue,04/08/2014,Childrens
WC47- 0174,ALLSORTS OFFICE SUPPLIES LTD,Capital,Capital,01044-PURCHASE OF FURNITURE & EQUIPMENT,552.00,Capital,13/08/2014,Regeneration
WC47- 0175,ALLSORTS OFFICE SUPPLIES LTD,Supplies & Services,"Equip,Furniture & Materials",60000-FURNITURE & EQUIPMENT,889.90,Revenue,13/08/2014,Resources
WC47- 0176,ALLSORTS OFFICE SUPPLIES LTD,Supplies & Services,"Equip,Furniture & Materials",60000-FURNITURE & EQUIPMENT,"1,700.00",Revenue,13/08/2014,Resources
WC47- 0177,ALLSORTS OFFICE SUPPLIES LTD,Supplies & Services,"Equip,Furniture & Materials",60000-FURNITURE & EQUIPMENT,"1,920.00",Revenue,13/08/2014,Regeneration
WC47- 0178,ALLSORTS OFFICE SUPPLIES LTD,Supplies & Services,"Equip,Furniture & Materials",60000-FURNITURE & EQUIPMENT,"2,233.00",Revenue,13/08/2014,Resources
WC47- 0179,ALLSORTS OFFICE SUPPLIES LTD,Supplies & Services,"Equip,Furniture & Materials",60000-FURNITURE & EQUIPMENT,"3,180.00",Revenue,13/08/2014,Resources
WC47- 0180,ALLSORTS OFFICE SUPPLIES LTD,Capital,Capital,01044-PURCHASE OF FURNITURE & EQUIPMENT,"4,876.00",Capital,13/08/2014,Regeneration
WC47- 0181,ALLSORTS OFFICE SUPPLIES LTD,Capital,Capital,01044-PURCHASE OF FURNITURE & EQUIPMENT,"12,934.00",Capital,13/08/2014,Regeneration
WC47- 0182,ALLSTAR BUSINESS SOLUTIONS LTD,Transport,Other Transport,50301-FUEL-TRANSPORT RUN COSTS,"2,406.80",Revenue,18/08/2014,Neighbourhood Services
WC47- 0183,ALMA COURT,Third Party Payments,Private Contractor Fees,73373-RESIDENTIAL & NURSING CARE PLACEMENTS,"6,177.85",Revenue,19/08/2014,Social Care & Inclusion
WC47- 0184,ALMOZENE NURSERY & CHILDRENS CENTRE,Employees,Other Staff Costs,32000-MISC FEES AND EXPENSES,300.00,Revenue,01/08/2014,Childrens
WC47- 0185,ALMOZENE NURSERY & CHILDRENS CENTRE,Third Party Payments,Grants to Other Orgs,66505-OTHER-GRANTS TO OTHER ORGS,"3,326.05",Revenue,29/08/2014,Childrens
WC47- 0186,ALPHA HEALTH CARE LTD,Third Party Payments,Private Contractor Fees,73373-RESIDENTIAL & NURSING CARE PLACEMENTS,-521.57,Revenue,05/08/2014,Social Care & Inclusion
WC47- 0187,ALPHA HEALTH CARE LTD,Third Party Payments,Private Contractor Fees,73373-RESIDENTIAL & NURSING CARE PLACEMENTS,-273.95,Revenue,05/08/2014,Social Care & Inclusion
WC47- 0188,ALPHA HEALTH CARE LTD,Third Party Payments,Private Contractor Fees,73373-RESIDENTIAL & NURSING CARE PLACEMENTS,712.27,Revenue,05/08/2014,Social Care & Inclusion
WC47- 0189,ALPHA HEALTH CARE LTD,Third Party Payments,Private Contractor Fees,73373-RESIDENTIAL & NURSING CARE PLACEMENTS,"1,325.15",Revenue,12/08/2014,Social Care & Inclusion
WC47- 0190,ALPHA HEALTH CARE LTD,Third Party Payments,Private Contractor Fees,73373-RESIDENTIAL & NURSING CARE PLACEMENTS,"1,375.60",Revenue,05/08/2014,Social Care & Inclusion
WC47- 0191,ALPHA HEALTH CARE LTD,Third Party Payments,Private Contractor Fees,73373-RESIDENTIAL & NURSING CARE PLACEMENTS,"1,375.60",Revenue,12/08/2014,Social Care & Inclusion
WC47- 0192,ALPHA HEALTH CARE LTD,Third Party Payments,Private Contractor Fees,73373-RESIDENTIAL & NURSING CARE PLACEMENTS,"1,375.60",Revenue,12/08/2014,Social Care & Inclusion
WC47- 0193,ALPHA HEALTH CARE LTD,Third Party Payments,Private Contractor Fees,73373-RESIDENTIAL & NURSING CARE PLACEMENTS,"1,382.00",Revenue,12/08/2014,Social Care & Inclusion
WC47- 0194,ALPHA HEALTH CARE LTD,Third Party Payments,Private Contractor Fees,73373-RESIDENTIAL & NURSING CARE PLACEMENTS,"1,383.00",Revenue,12/08/2014,Social Care & Inclusion
WC47- 0195,ALPHA HEALTH CARE LTD,Third Party Payments,Private Contractor Fees,73373-RESIDENTIAL & NURSING CARE PLACEMENTS,"1,460.40",Revenue,12/08/2014,Social Care & Inclusion
WC47- 0196,ALPHA HEALTH CARE LTD,Third Party Payments,Private Contractor Fees,73373-RESIDENTIAL & NURSING CARE PLACEMENTS,"1,460.40",Revenue,12/08/2014,Social Care & Inclusion
WC47- 0197,ALPHA HEALTH CARE LTD,Third Party Payments,Private Contractor Fees,73373-RESIDENTIAL & NURSING CARE PLACEMENTS,"1,470.60",Revenue,12/08/2014,Social Care & Inclusion
WC47- 0198,ALPHA HEALTH CARE LTD,Third Party Payments,Private Contractor Fees,73373-RESIDENTIAL & NURSING CARE PLACEMENTS,"1,474.53",Revenue,19/08/2014,Social Care & Inclusion
WC47- 0199,ALPHA HEALTH CARE LTD,Third Party Payments,Private Contractor Fees,73373-RESIDENTIAL & NURSING CARE PLACEMENTS,"1,476.84",Revenue,12/08/2014,Social Care & Inclusion
WC47- 0200,ALPHA HEALTH CARE LTD,Third Party Payments,Private Contractor Fees,73373-RESIDENTIAL & NURSING CARE PLACEMENTS,"1,476.84",Revenue,12/08/2014,Social Care & Inclusion
WC47- 0201,ALPHA HEALTH CARE LTD,Third Party Payments,Private Contractor Fees,73373-RESIDENTIAL & NURSING CARE PLACEMENTS,"1,476.84",Revenue,12/08/2014,Social Care & Inclusion
WC47- 0202,ALPHA HEALTH CARE LTD,Third Party Payments,Private Contractor Fees,73373-RESIDENTIAL & NURSING CARE PLACEMENTS,"1,489.60",Revenue,05/08/2014,Social Care & Inclusion
WC47- 0203,ALPHA HEALTH CARE LTD,Third Party Payments,Private Contractor Fees,73373-RESIDENTIAL & NURSING CARE PLACEMENTS,"1,489.60",Revenue,12/08/2014,Social Care & Inclusion
WC47- 0204,ALPHA HEALTH CARE LTD,Third Party Payments,Private Contractor Fees,73373-RESIDENTIAL & NURSING CARE PLACEMENTS,"1,489.60",Revenue,12/08/2014,Social Care & Inclusion
WC47- 0205,ALPHA HEALTH CARE LTD,Third Party Payments,Private Contractor Fees,73373-RESIDENTIAL & NURSING CARE PLACEMENTS,"1,489.60",Revenue,12/08/2014,Social Care & Inclusion
WC47- 0206,ALPHA HEALTH CARE LTD,Third Party Payments,Private Contractor Fees,73373-RESIDENTIAL & NURSING CARE PLACEMENTS,"1,489.60",Revenue,12/08/2014,Social Care & Inclusion
WC47- 0207,ALPHA HEALTH CARE LTD,Third Party Payments,Private Contractor Fees,73373-RESIDENTIAL & NURSING CARE PLACEMENTS,"1,489.60",Revenue,12/08/2014,Social Care & Inclusion
WC47- 0208,ALPHA HEALTH CARE LTD,Third Party Payments,Private Contractor Fees,73373-RESIDENTIAL & NURSING CARE PLACEMENTS,"1,489.60",Revenue,12/08/2014,Social Care & Inclusion
WC47- 0209,ALPHA HEALTH CARE LTD,Third Party Payments,Private Contractor Fees,73373-RESIDENTIAL & NURSING CARE PLACEMENTS,"1,489.60",Revenue,12/08/2014,Social Care & Inclusion
WC47- 0210,ALPHA HEALTH CARE LTD,Third Party Payments,Private Contractor Fees,73373-RESIDENTIAL & NURSING CARE PLACEMENTS,"1,489.60",Revenue,12/08/2014,Social Care & Inclusion
WC47- 0211,ALPHA HEALTH CARE LTD,Third Party Payments,Private Contractor Fees,73373-RESIDENTIAL & NURSING CARE PLACEMENTS,"1,489.60",Revenue,12/08/2014,Social Care & Inclusion
WC47- 0212,ALPHA HEALTH CARE LTD,Third Party Payments,Private Contractor Fees,73373-RESIDENTIAL & NURSING CARE PLACEMENTS,"1,489.60",Revenue,12/08/2014,Social Care & Inclusion
WC47- 0213,ALPHA HEALTH CARE LTD,Third Party Payments,Private Contractor Fees,73373-RESIDENTIAL & NURSING CARE PLACEMENTS,"1,489.60",Revenue,12/08/2014,Social Care & Inclusion
WC47- 0214,ALPHA HEALTH CARE LTD,Third Party Payments,Private Contractor Fees,73373-RESIDENTIAL & NURSING CARE PLACEMENTS,"1,489.60",Revenue,12/08/2014,Social Care & Inclusion
WC47- 0215,ALPHA HEALTH CARE LTD,Third Party Payments,Private Contractor Fees,73373-RESIDENTIAL & NURSING CARE PLACEMENTS,"1,489.60",Revenue,12/08/2014,Social Care & Inclusion
WC47- 0216,ALPHA HEALTH CARE LTD,Third Party Payments,Private Contractor Fees,73373-RESIDENTIAL & NURSING CARE PLACEMENTS,"1,489.60",Revenue,12/08/2014,Social Care & Inclusion
WC47- 0217,ALPHA HEALTH CARE LTD,Third Party Payments,Private Contractor Fees,73373-RESIDENTIAL & NURSING CARE PLACEMENTS,"1,489.60",Revenue,12/08/2014,Social Care & Inclusion
WC47- 0218,ALPHA HEALTH CARE LTD,Third Party Payments,Private Contractor Fees,73373-RESIDENTIAL & NURSING CARE PLACEMENTS,"1,489.60",Revenue,12/08/2014,Social Care & Inclusion
WC47- 0219,ALPHA HEALTH CARE LTD,Third Party Payments,Private Contractor Fees,73373-RESIDENTIAL & NURSING CARE PLACEMENTS,"1,489.64",Revenue,12/08/2014,Social Care & Inclusion
WC47- 0220,ALPHA HEALTH CARE LTD,Third Party Payments,Private Contractor Fees,73373-RESIDENTIAL & NURSING CARE PLACEMENTS,"1,534.12",Revenue,12/08/2014,Social Care & Inclusion
WC47- 0221,ALPHA HEALTH CARE LTD,Third Party Payments,Private Contractor Fees,73373-RESIDENTIAL & NURSING CARE PLACEMENTS,"1,534.12",Revenue,12/08/2014,Social Care & Inclusion
WC47- 0222,ALPHA HEALTH CARE LTD,Third Party Payments,Private Contractor Fees,73373-RESIDENTIAL & NURSING CARE PLACEMENTS,"1,534.12",Revenue,12/08/2014,Social Care & Inclusion
WC47- 0223,ALPHA HEALTH CARE LTD,Third Party Payments,Private Contractor Fees,73373-RESIDENTIAL & NURSING CARE PLACEMENTS,"1,534.12",Revenue,12/08/2014,Social Care & Inclusion
WC47- 0224,ALPHA HEALTH CARE LTD,Third Party Payments,Private Contractor Fees,73373-RESIDENTIAL & NURSING CARE PLACEMENTS,"1,534.12",Revenue,12/08/2014,Social Care & Inclusion
WC47- 0225,ALPHA HEALTH CARE LTD,Third Party Payments,Private Contractor Fees,73373-RESIDENTIAL & NURSING CARE PLACEMENTS,"1,534.12",Revenue,12/08/2014,Social Care & Inclusion
WC47- 0226,ALPHA HEALTH CARE LTD,Third Party Payments,Private Contractor Fees,73373-RESIDENTIAL & NURSING CARE PLACEMENTS,"1,534.28",Revenue,12/08/2014,Social Care & Inclusion
WC47- 0227,ALPHA HEALTH CARE LTD,Third Party Payments,Private Contractor Fees,73373-RESIDENTIAL & NURSING CARE PLACEMENTS,"1,590.32",Revenue,12/08/2014,Social Care & Inclusion
WC47- 0228,ALPHA HEALTH CARE LTD,Third Party Payments,Private Contractor Fees,73373-RESIDENTIAL & NURSING CARE PLACEMENTS,"1,774.24",Revenue,19/08/2014,Social Care & Inclusion
WC47- 0229,ALPHA HEALTH CARE LTD,Third Party Payments,Private Contractor Fees,73373-RESIDENTIAL & NURSING CARE PLACEMENTS,"2,008.20",Revenue,12/08/2014,Social Care & Inclusion
WC47- 0230,ALPHA HEALTH CARE LTD,Third Party Payments,Private Contractor Fees,73373-RESIDENTIAL & NURSING CARE PLACEMENTS,"2,109.44",Revenue,12/08/2014,Social Care & Inclusion
WC47- 0231,ALPHA HEALTH CARE LTD,Third Party Payments,Private Contractor Fees,73373-RESIDENTIAL & NURSING CARE PLACEMENTS,"5,426.72",Revenue,12/08/2014,Social Care & Inclusion
WC47- 0232,ALPHA HEALTH CARE LTD,Third Party Payments,Private Contractor Fees,73373-RESIDENTIAL & NURSING CARE PLACEMENTS,"5,600.00",Revenue,12/08/2014,Social Care & Inclusion
WC47- 0233,ALTODIGITAL NETWORKS LTD,Central,Internal Recharges,82012-PRINT & DESIGN CHARGES-INTERNAL,284.96,Revenue,14/08/2014,Childrens
WC47- 0234,ALTODIGITAL NETWORKS LTD,Supplies & Services,"Printing, Stationery & Office Exp",62001-STATIONERY & GENERAL SUPPLIES-OFFICE EXP,306.15,Revenue,15/08/2014,Social Care & Inclusion
WC47- 0235,ALTODIGITAL NETWORKS LTD,Supplies & Services,"Equip,Furniture & Materials",60009-LEASING/HIRE/RENTAL-EQUIPMENT,428.19,Revenue,07/08/2014,Resources
WC47- 0236,ALUMWELLIES NURSERY,Employees,Other Staff Costs,32000-MISC FEES AND EXPENSES,990.00,Revenue,01/08/2014,Childrens
WC47- 0237,ALUMWELLIES NURSERY,Third Party Payments,Grants to Other Orgs,66505-OTHER-GRANTS TO OTHER ORGS,"1,341.94",Revenue,29/08/2014,Childrens
WC47- 0238,REDACTED,Third Party Payments,Private Contractor Fees,74006-HOLIDAY/CHRISTMAS ALLOWANCE-FOSTER CARERS-OTH AGENCY PROVISION,453.20,Revenue,04/08/2014,Childrens
WC47- 0239,REDACTED,Third Party Payments,Private Contractor Fees,74006-HOLIDAY/CHRISTMAS ALLOWANCE-FOSTER CARERS-OTH AGENCY PROVISION,"1,493.76",Revenue,04/08/2014,Childrens
WC47- 0240,REDACTED,Supplies & Services,Other Supplies & Services,62515-MISCELLANEOUS SUPPLIES,350.40,Revenue,18/08/2014,Childrens
WC47- 0241,REDACTED,Third Party Payments,Private Contractor Fees,74006-HOLIDAY/CHRISTMAS ALLOWANCE-FOSTER CARERS-OTH AGENCY PROVISION,723.32,Revenue,18/08/2014,Childrens
WC47- 0242,REDACTED,Transfer Payments,Transfer Payments,76422-DIRECT PAYMENTS TO SOCIAL SERVICES CLIENTS,"2,664.01",Revenue,11/08/2014,Social Care & Inclusion
WC47- 0243,REDACTED,Transfer Payments,Transfer Payments,76422-DIRECT PAYMENTS TO SOCIAL SERVICES CLIENTS,654.50,Revenue,11/08/2014,Social Care & Inclusion
WC47- 0244,AMETHYST HORTICULTURE LTD,Supplies & Services,"Equip,Furniture & Materials",60500-GENERAL MATERIALS,"36,521.00",Revenue,14/08/2014,Neighbourhood Services
WC47- 0245,AMEY LG LIMITED,Capital,Capital,01006-SITE WORKS MAIN CONTRACTORS,299.40,Capital,27/08/2014,Regeneration
WC47- 0246,AMEY LG LIMITED,Supplies & Services,Other Supplies & Services,62515-MISCELLANEOUS SUPPLIES,"1,281.80",Revenue,08/08/2014,Neighbourhood Services
WC47- 0247,AMG NURSING CARE SERVICES,Supplies & Services,Services,63000-PROFESSIONAL FEES AND SERVICES,"2,048.28",Revenue,05/08/2014,Childrens
WC47- 0248,AMG NURSING CARE SERVICES,Supplies & Services,Services,63000-PROFESSIONAL FEES AND SERVICES,"2,229.76",Revenue,06/08/2014,Childrens
WC47- 0249,REDACTED,Transfer Payments,Transfer Payments,76422-DIRECT PAYMENTS TO SOCIAL SERVICES CLIENTS,"1,485.40",Revenue,11/08/2014,Social Care & Inclusion
WC47- 0250,REDACTED,Transfer Payments,Transfer Payments,76422-DIRECT PAYMENTS TO SOCIAL SERVICES CLIENTS,891.24,Revenue,11/08/2014,Social Care & Inclusion
WC47- 0251,REDACTED,Third Party Payments,Private Contractor Fees,74006-HOLIDAY/CHRISTMAS ALLOWANCE-FOSTER CARERS-OTH AGENCY PROVISION,417.56,Revenue,04/08/2014,Childrens
WC47- 0252,REDACTED,Transfer Payments,Transfer Payments,76422-DIRECT PAYMENTS TO SOCIAL SERVICES CLIENTS,569.50,Revenue,11/08/2014,Social Care & Inclusion
WC47- 0253,REDACTED,Supplies & Services,Other Supplies & Services,62515-MISCELLANEOUS SUPPLIES,350.40,Revenue,18/08/2014,Childrens
WC47- 0254,REDACTED,Third Party Payments,Private Contractor Fees,74006-HOLIDAY/CHRISTMAS ALLOWANCE-FOSTER CARERS-OTH AGENCY PROVISION,764.40,Revenue,18/08/2014,Childrens
WC47- 0255,REDACTED,Third Party Payments,Private Contractor Fees,74006-HOLIDAY/CHRISTMAS ALLOWANCE-FOSTER CARERS-OTH AGENCY PROVISION,"1,317.80",Revenue,18/08/2014,Childrens
WC47- 0256,REDACTED,Supplies & Services,Other Supplies & Services,62515-MISCELLANEOUS SUPPLIES,"1,628.24",Revenue,18/08/2014,Childrens
WC47- 0257,REDACTED,Transfer Payments,Transfer Payments,76422-DIRECT PAYMENTS TO SOCIAL SERVICES CLIENTS,378.00,Revenue,11/08/2014,Social Care & Inclusion
WC47- 0258,REDACTED,Supplies & Services,Other Supplies & Services,62515-MISCELLANEOUS SUPPLIES,"1,181.35",Revenue,18/08/2014,Childrens
WC47- 0259,REDACTED,Third Party Payments,Private Contractor Fees,74006-HOLIDAY/CHRISTMAS ALLOWANCE-FOSTER CARERS-OTH AGENCY PROVISION,"1,376.03",Revenue,18/08/2014,Childrens
WC47- 0260,REDACTED,Third Party Payments,Private Contractor Fees,74006-HOLIDAY/CHRISTMAS ALLOWANCE-FOSTER CARERS-OTH AGENCY PROVISION,"1,918.20",Revenue,04/08/2014,Childrens
WC47- 0261,REDACTED,Transfer Payments,Transfer Payments,76422-DIRECT PAYMENTS TO SOCIAL SERVICES CLIENTS,"2,116.00",Revenue,22/08/2014,Social Care & Inclusion
WC47- 0262,REDACTED,Transfer Payments,Transfer Payments,76422-DIRECT PAYMENTS TO SOCIAL SERVICES CLIENTS,250.00,Revenue,11/08/2014,Social Care & Inclusion
WC47- 0263,REDACTED,Transfer Payments,Transfer Payments,76422-DIRECT PAYMENTS TO SOCIAL SERVICES CLIENTS,"3,542.32",Revenue,11/08/2014,Social Care & Inclusion
WC47- 0264,ANGLIA STAIRLIFTS LTD,Capital,Capital,01045-PRIVATE GRANTS,"4,180.00",Capital,04/08/2014,Resources
WC47- 0265,ANGLIA STAIRLIFTS LTD,Capital,Capital,01006-SITE WORKS MAIN CONTRACTORS,"4,215.00",Capital,04/08/2014,Resources
WC47- 0266,ANGLIA STAIRLIFTS LTD,Capital,Capital,01045-PRIVATE GRANTS,"4,225.00",Capital,04/08/2014,Resources
WC47- 0267,ANGLIA STAIRLIFTS LTD,Capital,Capital,01045-PRIVATE GRANTS,"4,266.00",Capital,04/08/2014,Resources
WC47- 0268,ANGLIA STAIRLIFTS LTD,Capital,Capital,01006-SITE WORKS MAIN CONTRACTORS,"4,295.00",Capital,19/08/2014,Resources
WC47- 0269,ANGLIA STAIRLIFTS LTD,Capital,Capital,01045-PRIVATE GRANTS,"4,315.00",Capital,04/08/2014,Resources
WC47- 0270,ANGLIA STAIRLIFTS LTD,Capital,Capital,01006-SITE WORKS MAIN CONTRACTORS,"4,371.00",Capital,04/08/2014,Resources
WC47- 0271,ANGLIA STAIRLIFTS LTD,Capital,Capital,01045-PRIVATE GRANTS,"4,515.00",Capital,07/08/2014,Resources
WC47- 0272,ANGLIA STAIRLIFTS LTD,Capital,Capital,01045-PRIVATE GRANTS,"4,715.00",Capital,26/08/2014,Resources
WC47- 0273,ANGLIA STAIRLIFTS LTD,Capital,Capital,01006-SITE WORKS MAIN CONTRACTORS,"5,115.00",Capital,19/08/2014,Resources
WC47- 0274,ANGLIA STAIRLIFTS LTD,Capital,Capital,01045-PRIVATE GRANTS,"5,235.00",Capital,19/08/2014,Resources
WC47- 0275,ANGLIA STAIRLIFTS LTD,Capital,Capital,01006-SITE WORKS MAIN CONTRACTORS,"5,535.00",Capital,18/08/2014,Resources
WC47- 0276,ANGLIA STAIRLIFTS LTD,Capital,Capital,01045-PRIVATE GRANTS,"5,555.00",Capital,26/08/2014,Resources
WC47- 0277,ANIMALMANIA,Supplies & Services,Other Supplies & Services,62515-MISCELLANEOUS SUPPLIES,275.00,Revenue,06/08/2014,Regeneration
WC47- 0278,REDACTED,Supplies & Services,Other Supplies & Services,62515-MISCELLANEOUS SUPPLIES,631.48,Revenue,18/08/2014,Childrens
WC47- 0279,REDACTED,Third Party Payments,Private Contractor Fees,74006-HOLIDAY/CHRISTMAS ALLOWANCE-FOSTER CARERS-OTH AGENCY PROVISION,"1,153.28",Revenue,18/08/2014,Childrens
WC47- 0280,REDACTED,Transfer Payments,Transfer Payments,76422-DIRECT PAYMENTS TO SOCIAL SERVICES CLIENTS,318.00,Revenue,11/08/2014,Social Care & Inclusion
WC47- 0281,REDACTED,Supplies & Services,Other Supplies & Services,64008-OUTINGS-EXPENSES,8.85,Revenue,05/08/2014,Social Care & Inclusion
WC47- 0282,REDACTED,Third Party Payments,Private Contractor Fees,73374-SUPPORTED & OTHER ACCOMMODATION,713.51,Revenue,05/08/2014,Social Care & Inclusion
WC47- 0283,REDACTED,Transfer Payments,Transfer Payments,76422-DIRECT PAYMENTS TO SOCIAL SERVICES CLIENTS,625.82,Revenue,11/08/2014,Social Care & Inclusion
WC47- 0284,REDACTED,Transfer Payments,Transfer Payments,76422-DIRECT PAYMENTS TO SOCIAL SERVICES CLIENTS,"1,782.48",Revenue,11/08/2014,Social Care & Inclusion
WC47- 0285,ANSON COURT RESIDENTIAL HOME,Third Party Payments,Private Contractor Fees,73373-RESIDENTIAL & NURSING CARE PLACEMENTS,"-4,602.36",Revenue,05/08/2014,Social Care & Inclusion
WC47- 0286,ANSON COURT RESIDENTIAL HOME,Third Party Payments,Private Contractor Fees,73373-RESIDENTIAL & NURSING CARE PLACEMENTS,-273.95,Revenue,05/08/2014,Social Care & Inclusion
WC47- 0287,ANSON COURT RESIDENTIAL HOME,Third Party Payments,Private Contractor Fees,73373-RESIDENTIAL & NURSING CARE PLACEMENTS,273.95,Revenue,05/08/2014,Social Care & Inclusion
WC47- 0288,ANSON COURT RESIDENTIAL HOME,Third Party Payments,Private Contractor Fees,73374-SUPPORTED & OTHER ACCOMMODATION,513.00,Revenue,08/08/2014,Social Care & Inclusion
WC47- 0289,ANSON COURT RESIDENTIAL HOME,Third Party Payments,Private Contractor Fees,73373-RESIDENTIAL & NURSING CARE PLACEMENTS,"1,532.52",Revenue,26/08/2014,Social Care & Inclusion
WC47- 0290,ANSON COURT RESIDENTIAL HOME,Third Party Payments,Private Contractor Fees,73373-RESIDENTIAL & NURSING CARE PLACEMENTS,"1,534.12",Revenue,26/08/2014,Social Care & Inclusion
WC47- 0291,ANSON COURT RESIDENTIAL HOME,Third Party Payments,Private Contractor Fees,73373-RESIDENTIAL & NURSING CARE PLACEMENTS,"1,534.12",Revenue,26/08/2014,Social Care & Inclusion
WC47- 0292,ANSON COURT RESIDENTIAL HOME,Third Party Payments,Private Contractor Fees,73373-RESIDENTIAL & NURSING CARE PLACEMENTS,"1,534.12",Revenue,26/08/2014,Social Care & Inclusion
WC47- 0293,ANSON COURT RESIDENTIAL HOME,Third Party Payments,Private Contractor Fees,73373-RESIDENTIAL & NURSING CARE PLACEMENTS,"1,534.12",Revenue,26/08/2014,Social Care & Inclusion
WC47- 0294,ANSON COURT RESIDENTIAL HOME,Third Party Payments,Private Contractor Fees,73373-RESIDENTIAL & NURSING CARE PLACEMENTS,"1,534.12",Revenue,26/08/2014,Social Care & Inclusion
WC47- 0295,ANSON COURT RESIDENTIAL HOME,Third Party Payments,Private Contractor Fees,73373-RESIDENTIAL & NURSING CARE PLACEMENTS,"1,534.12",Revenue,26/08/2014,Social Care & Inclusion
WC47- 0296,ANSON COURT RESIDENTIAL HOME,Third Party Payments,Private Contractor Fees,73373-RESIDENTIAL & NURSING CARE PLACEMENTS,"1,534.12",Revenue,26/08/2014,Social Care & Inclusion
WC47- 0297,ANSON COURT RESIDENTIAL HOME,Third Party Payments,Private Contractor Fees,73373-RESIDENTIAL & NURSING CARE PLACEMENTS,"1,534.12",Revenue,26/08/2014,Social Care & Inclusion
WC47- 0298,ANSON COURT RESIDENTIAL HOME,Third Party Payments,Private Contractor Fees,73373-RESIDENTIAL & NURSING CARE PLACEMENTS,"1,534.12",Revenue,26/08/2014,Social Care & Inclusion
WC47- 0299,ANSON COURT RESIDENTIAL HOME,Third Party Payments,Private Contractor Fees,73373-RESIDENTIAL & NURSING CARE PLACEMENTS,"1,534.12",Revenue,26/08/2014,Social Care & Inclusion
WC47- 0300,ANSON COURT RESIDENTIAL HOME,Third Party Payments,Private Contractor Fees,73373-RESIDENTIAL & NURSING CARE PLACEMENTS,"1,612.92",Revenue,26/08/2014,Social Care & Inclusion
WC47- 0301,ANSON COURT RESIDENTIAL HOME,Third Party Payments,Private Contractor Fees,73373-RESIDENTIAL & NURSING CARE PLACEMENTS,"1,614.12",Revenue,12/08/2014,Social Care & Inclusion
WC47- 0302,ANSON COURT RESIDENTIAL HOME,Third Party Payments,Private Contractor Fees,73373-RESIDENTIAL & NURSING CARE PLACEMENTS,"1,614.12",Revenue,26/08/2014,Social Care & Inclusion
WC47- 0303,ANSON COURT RESIDENTIAL HOME,Third Party Payments,Private Contractor Fees,73373-RESIDENTIAL & NURSING CARE PLACEMENTS,"1,614.72",Revenue,26/08/2014,Social Care & Inclusion
WC47- 0304,ANSON COURT RESIDENTIAL HOME,Third Party Payments,Private Contractor Fees,73373-RESIDENTIAL & NURSING CARE PLACEMENTS,"1,614.72",Revenue,26/08/2014,Social Care & Inclusion
WC47- 0305,ANSON COURT RESIDENTIAL HOME,Third Party Payments,Private Contractor Fees,73373-RESIDENTIAL & NURSING CARE PLACEMENTS,"6,136.48",Revenue,05/08/2014,Social Care & Inclusion
WC47- 0306,ANSON COURT RESIDENTIAL HOME,Third Party Payments,Private Contractor Fees,73374-SUPPORTED & OTHER ACCOMMODATION,"7,438.50",Revenue,01/08/2014,Social Care & Inclusion
WC47- 0307,ANTALIS DOCUMENT SUPPLIES,Supplies & Services,"Equip,Furniture & Materials",60500-GENERAL MATERIALS,500.00,Revenue,01/08/2014,Resources
WC47- 0308,ANTALIS DOCUMENT SUPPLIES,Supplies & Services,"Equip,Furniture & Materials",60500-GENERAL MATERIALS,540.20,Revenue,26/08/2014,Resources
WC47- 0309,REDACTED,Third Party Payments,Private Contractor Fees,74006-HOLIDAY/CHRISTMAS ALLOWANCE-FOSTER CARERS-OTH AGENCY PROVISION,"1,432.66",Revenue,04/08/2014,Childrens
WC47- 0310,REDACTED,Third Party Payments,Private Contractor Fees,74006-HOLIDAY/CHRISTMAS ALLOWANCE-FOSTER CARERS-OTH AGENCY PROVISION,561.32,Revenue,04/08/2014,Childrens
WC47- 0311,APCOA PARKING SERVICES (UK) LTD,Third Party Payments,Private Contractor Fees,73025-PROFESSIONAL SERVICES-PRIV CONTRACTOR & OTHER AGENCIES,"48,793.98",Revenue,18/08/2014,Neighbourhood Services
WC47- 0312,APCOA PARKING SERVICES (UK) LTD,Third Party Payments,Private Contractor Fees,73025-PROFESSIONAL SERVICES-PRIV CONTRACTOR & OTHER AGENCIES,"52,362.03",Revenue,18/08/2014,Neighbourhood Services
WC47- 0313,APNA HOUSE LTD,Third Party Payments,Private Contractor Fees,73373-RESIDENTIAL & NURSING CARE PLACEMENTS,"5,464.00",Revenue,12/08/2014,Social Care & Inclusion
WC47- 0314,APNA HOUSE LTD,Third Party Payments,Private Contractor Fees,73373-RESIDENTIAL & NURSING CARE PLACEMENTS,"5,464.00",Revenue,12/08/2014,Social Care & Inclusion
WC47- 0315,APNA HOUSE LTD,Third Party Payments,Private Contractor Fees,73373-RESIDENTIAL & NURSING CARE PLACEMENTS,"5,464.00",Revenue,12/08/2014,Social Care & Inclusion
WC47- 0316,APNA HOUSE LTD,Third Party Payments,Private Contractor Fees,73373-RESIDENTIAL & NURSING CARE PLACEMENTS,"5,464.00",Revenue,12/08/2014,Social Care & Inclusion
WC47- 0317,APNA HOUSE LTD,Third Party Payments,Private Contractor Fees,73373-RESIDENTIAL & NURSING CARE PLACEMENTS,"7,200.00",Revenue,19/08/2014,Social Care & Inclusion
WC47- 0318,ARBORETUM NURSING HOME.,Third Party Payments,Private Contractor Fees,73373-RESIDENTIAL & NURSING CARE PLACEMENTS,966.58,Revenue,26/08/2014,Social Care & Inclusion
WC47- 0319,ARBORETUM NURSING HOME.,Third Party Payments,Private Contractor Fees,73373-RESIDENTIAL & NURSING CARE PLACEMENTS,966.58,Revenue,26/08/2014,Social Care & Inclusion
WC47- 0320,ARBORETUM NURSING HOME.,Third Party Payments,Private Contractor Fees,73373-RESIDENTIAL & NURSING CARE PLACEMENTS,"1,825.50",Revenue,12/08/2014,Social Care & Inclusion
WC47- 0321,ARBORETUM NURSING HOME.,Third Party Payments,Private Contractor Fees,73373-RESIDENTIAL & NURSING CARE PLACEMENTS,"1,933.16",Revenue,12/08/2014,Social Care & Inclusion
WC47- 0322,ARBORETUM NURSING HOME.,Third Party Payments,Private Contractor Fees,73373-RESIDENTIAL & NURSING CARE PLACEMENTS,"1,933.16",Revenue,12/08/2014,Social Care & Inclusion
WC47- 0323,ARBORETUM NURSING HOME.,Third Party Payments,Private Contractor Fees,73373-RESIDENTIAL & NURSING CARE PLACEMENTS,"1,933.16",Revenue,12/08/2014,Social Care & Inclusion
WC47- 0324,ARBORETUM NURSING HOME.,Third Party Payments,Private Contractor Fees,73373-RESIDENTIAL & NURSING CARE PLACEMENTS,"1,933.16",Revenue,12/08/2014,Social Care & Inclusion
WC47- 0325,ARBORETUM NURSING HOME.,Third Party Payments,Private Contractor Fees,73373-RESIDENTIAL & NURSING CARE PLACEMENTS,"1,933.16",Revenue,12/08/2014,Social Care & Inclusion
WC47- 0326,ARBORETUM NURSING HOME.,Third Party Payments,Private Contractor Fees,73373-RESIDENTIAL & NURSING CARE PLACEMENTS,"1,933.16",Revenue,12/08/2014,Social Care & Inclusion
WC47- 0327,ARBORETUM NURSING HOME.,Third Party Payments,Private Contractor Fees,73373-RESIDENTIAL & NURSING CARE PLACEMENTS,"1,933.16",Revenue,12/08/2014,Social Care & Inclusion
WC47- 0328,ARBORETUM NURSING HOME.,Third Party Payments,Private Contractor Fees,73373-RESIDENTIAL & NURSING CARE PLACEMENTS,"1,933.16",Revenue,12/08/2014,Social Care & Inclusion
WC47- 0329,ARBORETUM NURSING HOME.,Third Party Payments,Private Contractor Fees,73373-RESIDENTIAL & NURSING CARE PLACEMENTS,"1,933.16",Revenue,12/08/2014,Social Care & Inclusion
WC47- 0330,ARBORETUM NURSING HOME.,Third Party Payments,Private Contractor Fees,73373-RESIDENTIAL & NURSING CARE PLACEMENTS,"1,933.16",Revenue,12/08/2014,Social Care & Inclusion
WC47- 0331,ARBORETUM NURSING HOME.,Third Party Payments,Private Contractor Fees,73373-RESIDENTIAL & NURSING CARE PLACEMENTS,"1,978.20",Revenue,12/08/2014,Social Care & Inclusion
WC47- 0332,ARBORETUM NURSING HOME.,Third Party Payments,Private Contractor Fees,73373-RESIDENTIAL & NURSING CARE PLACEMENTS,"1,990.76",Revenue,12/08/2014,Social Care & Inclusion
WC47- 0333,ARBORETUM NURSING HOME.,Third Party Payments,Private Contractor Fees,73373-RESIDENTIAL & NURSING CARE PLACEMENTS,"1,990.76",Revenue,12/08/2014,Social Care & Inclusion
WC47- 0334,ARBORETUM NURSING HOME.,Third Party Payments,Private Contractor Fees,73373-RESIDENTIAL & NURSING CARE PLACEMENTS,"2,416.45",Revenue,12/08/2014,Social Care & Inclusion
WC47- 0335,ARBORETUM NURSING HOME.,Third Party Payments,Private Contractor Fees,73373-RESIDENTIAL & NURSING CARE PLACEMENTS,"2,416.45",Revenue,12/08/2014,Social Care & Inclusion
WC47- 0336,ARBORETUM NURSING HOME.,Third Party Payments,Private Contractor Fees,73373-RESIDENTIAL & NURSING CARE PLACEMENTS,"2,416.45",Revenue,12/08/2014,Social Care & Inclusion
WC47- 0337,ARBORETUM NURSING HOME.,Third Party Payments,Private Contractor Fees,73373-RESIDENTIAL & NURSING CARE PLACEMENTS,"2,488.45",Revenue,12/08/2014,Social Care & Inclusion
WC47- 0338,ARBORETUM NURSING HOME.,Third Party Payments,Private Contractor Fees,73373-RESIDENTIAL & NURSING CARE PLACEMENTS,"2,488.45",Revenue,12/08/2014,Social Care & Inclusion
WC47- 0339,ARBORETUM NURSING HOME.,Third Party Payments,Private Contractor Fees,73373-RESIDENTIAL & NURSING CARE PLACEMENTS,"2,972.96",Revenue,12/08/2014,Social Care & Inclusion
WC47- 0340,ARBORETUM NURSING HOME.,Third Party Payments,Private Contractor Fees,73373-RESIDENTIAL & NURSING CARE PLACEMENTS,"3,598.86",Revenue,12/08/2014,Social Care & Inclusion
WC47- 0341,ARCANE DIRECT MARKETING,Supplies & Services,"Printing, Stationery & Office Exp",62009-OUTWORK-DESIGN,560.74,Revenue,05/08/2014,Neighbourhood Services
WC47- 0342,ARIES ENTERTAINMENT LTD,Supplies & Services,Other Supplies & Services,62523-EVENTS,425.00,Revenue,18/08/2014,Neighbourhood Services
WC47- 0343,ARJOHUNTLEIGH UK,Supplies & Services,"Equip,Furniture & Materials",60500-GENERAL MATERIALS,"1,156.00",Revenue,07/08/2014,Social Care & Inclusion
WC47- 0344,ARTHUR J GALLAGHER INTERNATIONAL,Supplies & Services,Other Supplies & Services,89013-ALL RISKS PREMIUM INSURANCE POLICY,"18,299.62",Revenue,12/08/2014,Holding Accounts
WC47- 0345,REDACTED,Transfer Payments,Transfer Payments,76422-DIRECT PAYMENTS TO SOCIAL SERVICES CLIENTS,"1,088.00",Revenue,11/08/2014,Social Care & Inclusion
WC47- 0346,ASA AWARDS,Supplies & Services,"Equip,Furniture & Materials",60006-NEW-FURNITURE & EQUIPMENT,397.20,Revenue,06/08/2014,Neighbourhood Services
WC47- 0347,ASCENTIS NATION AWARDING BODY,Supplies & Services,Other Supplies & Services,63013-EXAMINATIONS-SERVICES,520.00,Revenue,20/08/2014,Neighbourhood Services
WC47- 0348,ASH GRANGE CARE HOME,Third Party Payments,Private Contractor Fees,73373-RESIDENTIAL & NURSING CARE PLACEMENTS,-899.58,Revenue,26/08/2014,Social Care & Inclusion
WC47- 0349,ASH GRANGE CARE HOME,Third Party Payments,Private Contractor Fees,73373-RESIDENTIAL & NURSING CARE PLACEMENTS,"1,460.40",Revenue,05/08/2014,Social Care & Inclusion
WC47- 0350,ASH GRANGE CARE HOME,Third Party Payments,Private Contractor Fees,73373-RESIDENTIAL & NURSING CARE PLACEMENTS,"1,460.40",Revenue,05/08/2014,Social Care & Inclusion
WC47- 0351,ASH GRANGE CARE HOME,Third Party Payments,Private Contractor Fees,73373-RESIDENTIAL & NURSING CARE PLACEMENTS,"1,460.40",Revenue,19/08/2014,Social Care & Inclusion
WC47- 0352,ASH GRANGE CARE HOME,Third Party Payments,Private Contractor Fees,73373-RESIDENTIAL & NURSING CARE PLACEMENTS,"1,460.40",Revenue,19/08/2014,Social Care & Inclusion
WC47- 0353,ASH GRANGE CARE HOME,Third Party Payments,Private Contractor Fees,73373-RESIDENTIAL & NURSING CARE PLACEMENTS,"1,933.16",Revenue,05/08/2014,Social Care & Inclusion
WC47- 0354,ASH GRANGE CARE HOME,Third Party Payments,Private Contractor Fees,73373-RESIDENTIAL & NURSING CARE PLACEMENTS,"1,933.52",Revenue,05/08/2014,Social Care & Inclusion
WC47- 0355,ASH GRANGE CARE HOME,Third Party Payments,Private Contractor Fees,73373-RESIDENTIAL & NURSING CARE PLACEMENTS,"1,937.56",Revenue,05/08/2014,Social Care & Inclusion
WC47- 0356,ASH GRANGE CARE HOME,Third Party Payments,Private Contractor Fees,73373-RESIDENTIAL & NURSING CARE PLACEMENTS,"1,937.56",Revenue,19/08/2014,Social Care & Inclusion
WC47- 0357,ASH GRANGE CARE HOME,Third Party Payments,Private Contractor Fees,73373-RESIDENTIAL & NURSING CARE PLACEMENTS,"1,937.56",Revenue,19/08/2014,Social Care & Inclusion
WC47- 0358,ASH GRANGE CARE HOME,Third Party Payments,Private Contractor Fees,73373-RESIDENTIAL & NURSING CARE PLACEMENTS,"1,937.56",Revenue,19/08/2014,Social Care & Inclusion
WC47- 0359,ASH GRANGE CARE HOME,Third Party Payments,Private Contractor Fees,73373-RESIDENTIAL & NURSING CARE PLACEMENTS,"1,937.56",Revenue,19/08/2014,Social Care & Inclusion
WC47- 0360,ASH GRANGE CARE HOME,Third Party Payments,Private Contractor Fees,73373-RESIDENTIAL & NURSING CARE PLACEMENTS,"1,937.56",Revenue,19/08/2014,Social Care & Inclusion
WC47- 0361,ASH GRANGE CARE HOME,Third Party Payments,Private Contractor Fees,73373-RESIDENTIAL & NURSING CARE PLACEMENTS,"1,937.56",Revenue,19/08/2014,Social Care & Inclusion
WC47- 0362,ASH GRANGE CARE HOME,Third Party Payments,Private Contractor Fees,73373-RESIDENTIAL & NURSING CARE PLACEMENTS,"1,937.56",Revenue,19/08/2014,Social Care & Inclusion
WC47- 0363,ASH GRANGE CARE HOME,Third Party Payments,Private Contractor Fees,73373-RESIDENTIAL & NURSING CARE PLACEMENTS,"1,937.56",Revenue,19/08/2014,Social Care & Inclusion
WC47- 0364,ASH GRANGE CARE HOME,Third Party Payments,Private Contractor Fees,73373-RESIDENTIAL & NURSING CARE PLACEMENTS,"1,950.76",Revenue,05/08/2014,Social Care & Inclusion
WC47- 0365,ASH GRANGE CARE HOME,Third Party Payments,Private Contractor Fees,73373-RESIDENTIAL & NURSING CARE PLACEMENTS,"1,954.21",Revenue,12/08/2014,Social Care & Inclusion
WC47- 0366,ASH GRANGE CARE HOME,Third Party Payments,Private Contractor Fees,73373-RESIDENTIAL & NURSING CARE PLACEMENTS,"1,954.21",Revenue,12/08/2014,Social Care & Inclusion
WC47- 0367,ASH GRANGE CARE HOME,Third Party Payments,Private Contractor Fees,73373-RESIDENTIAL & NURSING CARE PLACEMENTS,"1,954.22",Revenue,05/08/2014,Social Care & Inclusion
WC47- 0368,ASH GRANGE CARE HOME,Third Party Payments,Private Contractor Fees,73373-RESIDENTIAL & NURSING CARE PLACEMENTS,"1,954.22",Revenue,05/08/2014,Social Care & Inclusion
WC47- 0369,ASH GRANGE CARE HOME,Third Party Payments,Private Contractor Fees,73373-RESIDENTIAL & NURSING CARE PLACEMENTS,"1,954.22",Revenue,05/08/2014,Social Care & Inclusion
WC47- 0370,ASH GRANGE CARE HOME,Third Party Payments,Private Contractor Fees,73373-RESIDENTIAL & NURSING CARE PLACEMENTS,"1,954.22",Revenue,05/08/2014,Social Care & Inclusion
WC47- 0371,ASH GRANGE CARE HOME,Third Party Payments,Private Contractor Fees,73373-RESIDENTIAL & NURSING CARE PLACEMENTS,"1,954.22",Revenue,05/08/2014,Social Care & Inclusion
WC47- 0372,ASH GRANGE CARE HOME,Third Party Payments,Private Contractor Fees,73373-RESIDENTIAL & NURSING CARE PLACEMENTS,"2,008.24",Revenue,05/08/2014,Social Care & Inclusion
WC47- 0373,ASH GRANGE CARE HOME,Third Party Payments,Private Contractor Fees,73373-RESIDENTIAL & NURSING CARE PLACEMENTS,"2,012.64",Revenue,19/08/2014,Social Care & Inclusion
WC47- 0374,ASH GRANGE CARE HOME,Third Party Payments,Private Contractor Fees,73373-RESIDENTIAL & NURSING CARE PLACEMENTS,"2,023.95",Revenue,26/08/2014,Social Care & Inclusion
WC47- 0375,ASH GRANGE CARE HOME,Third Party Payments,Private Contractor Fees,73373-RESIDENTIAL & NURSING CARE PLACEMENTS,"2,029.29",Revenue,05/08/2014,Social Care & Inclusion
WC47- 0376,ASH GRANGE CARE HOME,Third Party Payments,Private Contractor Fees,73373-RESIDENTIAL & NURSING CARE PLACEMENTS,"2,070.60",Revenue,19/08/2014,Social Care & Inclusion
WC47- 0377,ASH GRANGE CARE HOME,Third Party Payments,Private Contractor Fees,73373-RESIDENTIAL & NURSING CARE PLACEMENTS,"2,075.96",Revenue,12/08/2014,Social Care & Inclusion
WC47- 0378,ASH GRANGE CARE HOME,Third Party Payments,Private Contractor Fees,73373-RESIDENTIAL & NURSING CARE PLACEMENTS,"2,087.25",Revenue,05/08/2014,Social Care & Inclusion
WC47- 0379,ASH GRANGE CARE HOME,Third Party Payments,Private Contractor Fees,73373-RESIDENTIAL & NURSING CARE PLACEMENTS,"2,154.75",Revenue,19/08/2014,Social Care & Inclusion
WC47- 0380,ASKEWS AND HOLTS LIBRARY SERVICES LTD,Supplies & Services,"Equip,Furniture & Materials",60501-LIBRARY BOOKS,335.99,Revenue,27/08/2014,Neighbourhood Services
WC47- 0381,ASKEWS AND HOLTS LIBRARY SERVICES LTD,Supplies & Services,"Equip,Furniture & Materials",60501-LIBRARY BOOKS,366.25,Revenue,05/08/2014,Neighbourhood Services
WC47- 0382,ASKEWS AND HOLTS LIBRARY SERVICES LTD,Supplies & Services,"Equip,Furniture & Materials",60501-LIBRARY BOOKS,378.85,Revenue,27/08/2014,Neighbourhood Services
WC47- 0383,ASKEWS AND HOLTS LIBRARY SERVICES LTD,Supplies & Services,"Equip,Furniture & Materials",60501-LIBRARY BOOKS,527.11,Revenue,14/08/2014,Neighbourhood Services
WC47- 0384,ASKEWS AND HOLTS LIBRARY SERVICES LTD,Supplies & Services,"Equip,Furniture & Materials",60501-LIBRARY BOOKS,543.80,Revenue,27/08/2014,Neighbourhood Services
WC47- 0385,ASKEWS AND HOLTS LIBRARY SERVICES LTD,Supplies & Services,"Equip,Furniture & Materials",60501-LIBRARY BOOKS,920.41,Revenue,07/08/2014,Neighbourhood Services
WC47- 0386,REDACTED,Transfer Payments,Transfer Payments,76422-DIRECT PAYMENTS TO SOCIAL SERVICES CLIENTS,493.00,Revenue,11/08/2014,Social Care & Inclusion
WC47- 0387,ASSOCIATION OF ACCOUNTING TECHNICIANS.,Supplies & Services,Other Supplies & Services,63013-EXAMINATIONS-SERVICES,490.00,Revenue,01/08/2014,Neighbourhood Services
WC47- 0388,A-STAT OFFICE TECHNOLOGY LTD,Supplies & Services,"Equip,Furniture & Materials",60009-LEASING/HIRE/RENTAL-EQUIPMENT,533.03,Revenue,14/08/2014,Childrens
WC47- 0389,A-STAT OFFICE TECHNOLOGY LTD,Supplies & Services,"Equip,Furniture & Materials",60006-NEW-FURNITURE & EQUIPMENT,690.00,Revenue,01/08/2014,Childrens
WC47- 0390,ATHWAL NEWS LTD,Supplies & Services,"Equip,Furniture & Materials",60501-LIBRARY BOOKS,656.30,Revenue,01/08/2014,Neighbourhood Services
WC47- 0391,AUDITEL RENTAL & SERVICE LTD,Premises,Premises-Repairs & Maintenance,"40000-REPAIRS,ALTERATIONS & MAINTENANCE-PREM",328.00,Revenue,21/08/2014,Regeneration
WC47- 0392,AUDITEL RENTAL & SERVICE LTD,Premises,Premises-Repairs & Maintenance,"40000-REPAIRS,ALTERATIONS & MAINTENANCE-PREM",328.00,Revenue,21/08/2014,Regeneration
WC47- 0393,AUDITEL RENTAL & SERVICE LTD,Premises,Premises-Repairs & Maintenance,"40000-REPAIRS,ALTERATIONS & MAINTENANCE-PREM","2,315.25",Revenue,21/08/2014,Regeneration
WC47- 0394,AURORA GRAPHICS & DISPLAYS LTD,Supplies & Services,"Printing, Stationery & Office Exp",62008-OUTWORK-PRINT ROOM,406.52,Revenue,12/08/2014,Resources
WC47- 0395,AURORA GRAPHICS & DISPLAYS LTD,Supplies & Services,"Printing, Stationery & Office Exp",62008-OUTWORK-PRINT ROOM,"3,037.80",Revenue,01/08/2014,Resources
WC47- 0396,AUTOCHECK ELECTRICS,Supplies & Services,"Equip,Furniture & Materials",60008-MAINTENANCE-FURNITURE & EQUIPMENT,512.10,Revenue,08/08/2014,Social Care & Inclusion
WC47- 0397,AXIS EUROPE,Capital,Capital,01045-PRIVATE GRANTS,"3,537.01",Capital,26/08/2014,Resources
WC47- 0398,AXIS EUROPE,Capital,Capital,01045-PRIVATE GRANTS,"4,329.44",Capital,26/08/2014,Resources
WC47- 0399,REDACTED,Transfer Payments,Transfer Payments,76422-DIRECT PAYMENTS TO SOCIAL SERVICES CLIENTS,"2,024.00",Revenue,11/08/2014,Childrens
WC47- 0400,REDACTED,Transfer Payments,Transfer Payments,76422-DIRECT PAYMENTS TO SOCIAL SERVICES CLIENTS,"2,652.00",Revenue,11/08/2014,Social Care & Inclusion
WC47- 0401,B & G CLEANING SYSTEMS,Third Party Payments,Private Contractor Fees,73025-PROFESSIONAL SERVICES-PRIV CONTRACTOR & OTHER AGENCIES,267.72,Revenue,26/08/2014,Neighbourhood Services
WC47- 0402,B & S CHAINS LTD,Premises,Premises-Repairs & Maintenance,"40000-REPAIRS,ALTERATIONS & MAINTENANCE-PREM","1,147.50",Revenue,01/08/2014,Neighbourhood Services
WC47- 0403,REDACTED,Supplies & Services,"Equip,Furniture & Materials",60500-GENERAL MATERIALS,800.00,Revenue,21/08/2014,Childrens
WC47- 0404,REDACTED,Third Party Payments,Private Contractor Fees,74006-HOLIDAY/CHRISTMAS ALLOWANCE-FOSTER CARERS-OTH AGENCY PROVISION,796.00,Revenue,18/08/2014,Childrens
WC47- 0405,REDACTED,Supplies & Services,Other Supplies & Services,62515-MISCELLANEOUS SUPPLIES,896.24,Revenue,18/08/2014,Childrens
WC47- 0406,REDACTED,Supplies & Services,Other Supplies & Services,62515-MISCELLANEOUS SUPPLIES,"1,428.44",Revenue,18/08/2014,Childrens
WC47- 0407,REDACTED,Third Party Payments,Private Contractor Fees,74006-HOLIDAY/CHRISTMAS ALLOWANCE-FOSTER CARERS-OTH AGENCY PROVISION,"1,764.32",Revenue,18/08/2014,Childrens
WC47- 0408,BAART HARRIES NEWALL,Supplies & Services,Services,63000-PROFESSIONAL FEES AND SERVICES,"11,732.90",Revenue,06/08/2014,Regeneration
WC47- 0409,REDACTED,Transfer Payments,Transfer Payments,76422-DIRECT PAYMENTS TO SOCIAL SERVICES CLIENTS,863.20,Revenue,11/08/2014,Social Care & Inclusion
WC47- 0410,BACK CARE SOLUTIONS LTD,Supplies & Services,"Equip,Furniture & Materials",60006-NEW-FURNITURE & EQUIPMENT,450.00,Revenue,14/08/2014,Childrens
WC47- 0411,BACK CARE SOLUTIONS LTD,Supplies & Services,"Equip,Furniture & Materials",60008-MAINTENANCE-FURNITURE & EQUIPMENT,471.50,Revenue,13/08/2014,Childrens
WC47- 0412,REDACTED,Transfer Payments,Transfer Payments,76422-DIRECT PAYMENTS TO SOCIAL SERVICES CLIENTS,"2,849.92",Revenue,11/08/2014,Social Care & Inclusion
WC47- 0413,REDACTED,Transfer Payments,Transfer Payments,76422-DIRECT PAYMENTS TO SOCIAL SERVICES CLIENTS,620.00,Revenue,11/08/2014,Social Care & Inclusion
WC47- 0414,REDACTED,Transfer Payments,Transfer Payments,76422-DIRECT PAYMENTS TO SOCIAL SERVICES CLIENTS,"1,140.04",Revenue,11/08/2014,Social Care & Inclusion
WC47- 0415,BANNERBRIDGE PLC,Supplies & Services,Communications & Computing,63800-COMPUTER EQUIPMENT AND SUPPLIES,"1,630.00",Revenue,18/08/2014,Resources
WC47- 0416,REDACTED,Transfer Payments,Transfer Payments,76422-DIRECT PAYMENTS TO SOCIAL SERVICES CLIENTS,450.26,Revenue,11/08/2014,Social Care & Inclusion
WC47- 0417,REDACTED,Transfer Payments,Transfer Payments,76422-DIRECT PAYMENTS TO SOCIAL SERVICES CLIENTS,"1,314.88",Revenue,11/08/2014,Social Care & Inclusion
WC47- 0418,REDACTED,Transfer Payments,Transfer Payments,76422-DIRECT PAYMENTS TO SOCIAL SERVICES CLIENTS,"1,280.00",Revenue,11/08/2014,Social Care & Inclusion
WC47- 0419,REDACTED,Transfer Payments,Transfer Payments,76422-DIRECT PAYMENTS TO SOCIAL SERVICES CLIENTS,718.00,Revenue,11/08/2014,Social Care & Inclusion
WC47- 0420,REDACTED,Transfer Payments,Transfer Payments,76422-DIRECT PAYMENTS TO SOCIAL SERVICES CLIENTS,632.52,Revenue,11/08/2014,Social Care & Inclusion
WC47- 0421,REDACTED,Transfer Payments,Transfer Payments,76422-DIRECT PAYMENTS TO SOCIAL SERVICES CLIENTS,690.56,Revenue,11/08/2014,Social Care & Inclusion
WC47- 0422,BARCHESTER HEALTHCARE#1,Third Party Payments,Private Contractor Fees,73373-RESIDENTIAL & NURSING CARE PLACEMENTS,"1,920.28",Revenue,19/08/2014,Social Care & Inclusion
WC47- 0423,BARNARDOS SERVICES LTD,Third Party Payments,Private Contractor Fees,74037-INDEPENDENT FOSTER CARE-OTH AGENCY PROVISION,"4,627.86",Revenue,18/08/2014,Childrens
WC47- 0424,BAY MEDIA LIMITED,Supplies & Services,Communications & Computing,68001-PUBLICITY & ADVERTISING (NOT STAFF ADVERTISING),"1,990.00",Revenue,08/08/2014,Regeneration
WC47- 0425,REDACTED,Supplies & Services,Other Supplies & Services,62515-MISCELLANEOUS SUPPLIES,"1,155.98",Revenue,18/08/2014,Childrens
WC47- 0426,REDACTED,Third Party Payments,Private Contractor Fees,74006-HOLIDAY/CHRISTMAS ALLOWANCE-FOSTER CARERS-OTH AGENCY PROVISION,"1,222.43",Revenue,18/08/2014,Childrens
WC47- 0427,REDACTED,Transfer Payments,Transfer Payments,76422-DIRECT PAYMENTS TO SOCIAL SERVICES CLIENTS,641.76,Revenue,11/08/2014,Social Care & Inclusion
WC47- 0428,BEECHES DAY NURSERY,Third Party Payments,Grants to Other Orgs,66505-OTHER-GRANTS TO OTHER ORGS,"7,956.21",Revenue,29/08/2014,Childrens
WC47- 0429,BELLEVUE COURT CARE HOME,Third Party Payments,Private Contractor Fees,73373-RESIDENTIAL & NURSING CARE PLACEMENTS,"1,486.96",Revenue,05/08/2014,Social Care & Inclusion
WC47- 0430,BELLEVUE COURT CARE HOME,Third Party Payments,Private Contractor Fees,73373-RESIDENTIAL & NURSING CARE PLACEMENTS,"1,486.96",Revenue,19/08/2014,Social Care & Inclusion
WC47- 0431,BELLEVUE COURT CARE HOME,Third Party Payments,Private Contractor Fees,73373-RESIDENTIAL & NURSING CARE PLACEMENTS,"1,494.00",Revenue,12/08/2014,Social Care & Inclusion
WC47- 0432,BELLEVUE COURT CARE HOME,Third Party Payments,Private Contractor Fees,73373-RESIDENTIAL & NURSING CARE PLACEMENTS,"1,494.00",Revenue,19/08/2014,Social Care & Inclusion
WC47- 0433,BELLEVUE COURT CARE HOME,Third Party Payments,Private Contractor Fees,73373-RESIDENTIAL & NURSING CARE PLACEMENTS,"1,530.16",Revenue,19/08/2014,Social Care & Inclusion
WC47- 0434,REDACTED,Transfer Payments,Transfer Payments,76422-DIRECT PAYMENTS TO SOCIAL SERVICES CLIENTS,"2,205.00",Revenue,11/08/2014,Social Care & Inclusion
WC47- 0435,BENTLEY COURT PRIORY,Third Party Payments,Private Contractor Fees,73373-RESIDENTIAL & NURSING CARE PLACEMENTS,"1,654.07",Revenue,05/08/2014,Social Care & Inclusion
WC47- 0436,BENTLEY COURT PRIORY,Third Party Payments,Private Contractor Fees,73373-RESIDENTIAL & NURSING CARE PLACEMENTS,"1,654.07",Revenue,05/08/2014,Social Care & Inclusion
WC47- 0437,BENTLEY COURT PRIORY,Third Party Payments,Private Contractor Fees,73373-RESIDENTIAL & NURSING CARE PLACEMENTS,"1,654.07",Revenue,12/08/2014,Social Care & Inclusion
WC47- 0438,BENTLEY COURT PRIORY,Third Party Payments,Private Contractor Fees,73373-RESIDENTIAL & NURSING CARE PLACEMENTS,"2,071.24",Revenue,12/08/2014,Social Care & Inclusion
WC47- 0439,BENTLEY COURT PRIORY,Third Party Payments,Private Contractor Fees,73373-RESIDENTIAL & NURSING CARE PLACEMENTS,"2,140.29",Revenue,05/08/2014,Social Care & Inclusion
WC47- 0440,REDACTED,Transfer Payments,Transfer Payments,76422-DIRECT PAYMENTS TO SOCIAL SERVICES CLIENTS,424.56,Revenue,11/08/2014,Social Care & Inclusion
WC47- 0441,REDACTED,Transfer Payments,Transfer Payments,76422-DIRECT PAYMENTS TO SOCIAL SERVICES CLIENTS,912.00,Revenue,11/08/2014,Social Care & Inclusion
WC47- 0442,REDACTED,Third Party Payments,Private Contractor Fees,74006-HOLIDAY/CHRISTMAS ALLOWANCE-FOSTER CARERS-OTH AGENCY PROVISION,659.25,Revenue,18/08/2014,Childrens
WC47- 0443,REDACTED,Supplies & Services,Other Supplies & Services,62515-MISCELLANEOUS SUPPLIES,"2,594.41",Revenue,18/08/2014,Childrens
WC47- 0444,REDACTED,Capital,Capital,01006-SITE WORKS MAIN CONTRACTORS,"2,500.00",Capital,08/08/2014,Regeneration
WC47- 0445,REDACTED,Transfer Payments,Transfer Payments,76422-DIRECT PAYMENTS TO SOCIAL SERVICES CLIENTS,968.00,Revenue,11/08/2014,Social Care & Inclusion
WC47- 0446,BESCOT LODGE,Third Party Payments,Private Contractor Fees,73373-RESIDENTIAL & NURSING CARE PLACEMENTS,657.48,Revenue,19/08/2014,Social Care & Inclusion
WC47- 0447,BESCOT LODGE,Third Party Payments,Private Contractor Fees,73373-RESIDENTIAL & NURSING CARE PLACEMENTS,986.22,Revenue,19/08/2014,Social Care & Inclusion
WC47- 0448,BESCOT LODGE,Third Party Payments,Private Contractor Fees,73373-RESIDENTIAL & NURSING CARE PLACEMENTS,"1,616.96",Revenue,19/08/2014,Social Care & Inclusion
WC47- 0449,BESCOT LODGE,Third Party Payments,Private Contractor Fees,73373-RESIDENTIAL & NURSING CARE PLACEMENTS,"1,698.36",Revenue,19/08/2014,Social Care & Inclusion
WC47- 0450,BESCOT LODGE,Third Party Payments,Private Contractor Fees,73373-RESIDENTIAL & NURSING CARE PLACEMENTS,"1,698.36",Revenue,19/08/2014,Social Care & Inclusion
WC47- 0451,BESCOT LODGE,Third Party Payments,Private Contractor Fees,73373-RESIDENTIAL & NURSING CARE PLACEMENTS,"1,698.40",Revenue,19/08/2014,Social Care & Inclusion
WC47- 0452,BESCOT LODGE,Third Party Payments,Private Contractor Fees,73373-RESIDENTIAL & NURSING CARE PLACEMENTS,"1,698.45",Revenue,19/08/2014,Social Care & Inclusion
WC47- 0453,BESCOT LODGE,Third Party Payments,Private Contractor Fees,73373-RESIDENTIAL & NURSING CARE PLACEMENTS,"1,698.49",Revenue,05/08/2014,Social Care & Inclusion
WC47- 0454,BESCOT LODGE,Third Party Payments,Private Contractor Fees,73373-RESIDENTIAL & NURSING CARE PLACEMENTS,"1,698.49",Revenue,19/08/2014,Social Care & Inclusion
WC47- 0455,BESCOT LODGE,Third Party Payments,Private Contractor Fees,73373-RESIDENTIAL & NURSING CARE PLACEMENTS,"1,698.49",Revenue,19/08/2014,Social Care & Inclusion
WC47- 0456,BESCOT LODGE,Third Party Payments,Private Contractor Fees,73373-RESIDENTIAL & NURSING CARE PLACEMENTS,"1,698.49",Revenue,19/08/2014,Social Care & Inclusion
WC47- 0457,BESCOT LODGE,Third Party Payments,Private Contractor Fees,73373-RESIDENTIAL & NURSING CARE PLACEMENTS,"1,698.49",Revenue,19/08/2014,Social Care & Inclusion
WC47- 0458,BESCOT LODGE,Third Party Payments,Private Contractor Fees,73373-RESIDENTIAL & NURSING CARE PLACEMENTS,"1,698.58",Revenue,19/08/2014,Social Care & Inclusion
WC47- 0459,BESCOT LODGE,Third Party Payments,Private Contractor Fees,73373-RESIDENTIAL & NURSING CARE PLACEMENTS,"1,716.60",Revenue,19/08/2014,Social Care & Inclusion
WC47- 0460,BESCOT LODGE,Third Party Payments,Private Contractor Fees,73373-RESIDENTIAL & NURSING CARE PLACEMENTS,"1,716.69",Revenue,19/08/2014,Social Care & Inclusion
WC47- 0461,BESCOT LODGE,Third Party Payments,Private Contractor Fees,73373-RESIDENTIAL & NURSING CARE PLACEMENTS,"1,716.78",Revenue,19/08/2014,Social Care & Inclusion
WC47- 0462,BESCOT LODGE,Third Party Payments,Private Contractor Fees,73373-RESIDENTIAL & NURSING CARE PLACEMENTS,"1,808.07",Revenue,05/08/2014,Social Care & Inclusion
WC47- 0463,BESCOT PROMOTIONS,Third Party Payments,Private Contractor Fees,73025-PROFESSIONAL SERVICES-PRIV CONTRACTOR & OTHER AGENCIES,"2,600.00",Revenue,04/08/2014,Regeneration
WC47- 0464,BETHPHAGE.,Third Party Payments,Private Contractor Fees,73374-SUPPORTED & OTHER ACCOMMODATION,812.50,Revenue,08/08/2014,Social Care & Inclusion
WC47- 0465,BETHPHAGE.,Third Party Payments,Private Contractor Fees,73374-SUPPORTED & OTHER ACCOMMODATION,"1,890.76",Revenue,08/08/2014,Social Care & Inclusion
WC47- 0466,BETHPHAGE.,Third Party Payments,Private Contractor Fees,73374-SUPPORTED & OTHER ACCOMMODATION,"2,210.00",Revenue,08/08/2014,Social Care & Inclusion
WC47- 0467,BETHPHAGE.,Third Party Payments,Private Contractor Fees,73374-SUPPORTED & OTHER ACCOMMODATION,"2,539.80",Revenue,08/08/2014,Social Care & Inclusion
WC47- 0468,BETHPHAGE.,Third Party Payments,Private Contractor Fees,73374-SUPPORTED & OTHER ACCOMMODATION,"4,789.90",Revenue,08/08/2014,Social Care & Inclusion
WC47- 0469,REDACTED,Transfer Payments,Transfer Payments,76422-DIRECT PAYMENTS TO SOCIAL SERVICES CLIENTS,322.00,Revenue,11/08/2014,Social Care & Inclusion
WC47- 0470,REDACTED,Transfer Payments,Transfer Payments,76422-DIRECT PAYMENTS TO SOCIAL SERVICES CLIENTS,949.52,Revenue,11/08/2014,Social Care & Inclusion
WC47- 0471,REDACTED,Transfer Payments,Transfer Payments,76422-DIRECT PAYMENTS TO SOCIAL SERVICES CLIENTS,998.60,Revenue,11/08/2014,Social Care & Inclusion
WC47- 0472,BEVAN BRITTAN,Supplies & Services,Other Supplies & Services,63116-EXTERNAL BARRISTERS-SERVICES-FEES,"3,160.00",Revenue,27/08/2014,Resources
WC47- 0473,BIFFA WASTE SERVICES LTD,Third Party Payments,Private Contractor Fees,73039-LANDFILL TAX-PRIV CONTRACTOR FEES,400.00,Revenue,19/08/2014,Neighbourhood Services
WC47- 0474,BIFFA WASTE SERVICES LTD,Third Party Payments,Private Contractor Fees,73029-HAZARDOUS WASTE REMOVAL/DISPOSAL-PRIV CONTRACTOR FEES,510.95,Revenue,19/08/2014,Neighbourhood Services
WC47- 0475,BIFFA WASTE SERVICES LTD,Third Party Payments,Private Contractor Fees,73005-LANDFILL PTYS-PRIV CONTRACTOR FEES,"1,542.75",Revenue,19/08/2014,Neighbourhood Services
WC47- 0476,BIFFA WASTE SERVICES LTD,Third Party Payments,Private Contractor Fees,73005-LANDFILL PTYS-PRIV CONTRACTOR FEES,"3,128.87",Revenue,19/08/2014,Neighbourhood Services
WC47- 0477,BIFFA WASTE SERVICES LTD,Third Party Payments,Private Contractor Fees,73039-LANDFILL TAX-PRIV CONTRACTOR FEES,"9,560.00",Revenue,19/08/2014,Neighbourhood Services
WC47- 0478,BIFFA WASTE SERVICES LTD,Third Party Payments,Private Contractor Fees,73039-LANDFILL TAX-PRIV CONTRACTOR FEES,"19,388.80",Revenue,19/08/2014,Neighbourhood Services
WC47- 0479,REDACTED,Transfer Payments,Transfer Payments,76422-DIRECT PAYMENTS TO SOCIAL SERVICES CLIENTS,339.92,Revenue,11/08/2014,Childrens
WC47- 0480,BIRMINGHAM CITY COUNCIL,Third Party Payments,Private Contractor Fees,71000-PAYMENTS FOR SERVICES FROM OTHER LOCAL AUTHORITIES,"5,100.50",Revenue,12/08/2014,Regeneration
WC47- 0481,BIRMINGHAM CITY COUNCIL,Third Party Payments,Private Contractor Fees,71000-PAYMENTS FOR SERVICES FROM OTHER LOCAL AUTHORITIES,"10,201.00",Revenue,12/08/2014,Neighbourhood Services
WC47- 0482,BIRMINGHAM WOMENS NHS FOUNDATION TRUST,Third Party Payments,Private Contractor Fees,74000-OTHER AGENCY FEES,"2,040.00",Revenue,11/08/2014,Neighbourhood Services
WC47- 0483,BLACK COUNTRY PARTNERSHIP NHS,Third Party Payments,Joint Arrangements,71007-CONTRIBUTION TO PCT,"5,184.00",Revenue,14/08/2014,Social Care & Inclusion
WC47- 0484,BLACK COUNTRY PARTNERSHIP NHS,Third Party Payments,Joint Arrangements,71007-CONTRIBUTION TO PCT,"17,280.00",Revenue,14/08/2014,Social Care & Inclusion
WC47- 0485,BLACK COUNTRY PARTNERSHIP NHS,Third Party Payments,Private Contractor Fees,73375-IN PATIENT BEDS,"76,500.00",Revenue,14/08/2014,Social Care & Inclusion
WC47- 0486,BLACK COUNTRY PARTNERSHIP NHS,Third Party Payments,Private Contractor Fees,73375-IN PATIENT BEDS,"79,050.00",Revenue,18/08/2014,Social Care & Inclusion
WC47- 0487,BLACK COUNTRY PARTNERSHIP NHS,Third Party Payments,Joint Arrangements,71007-CONTRIBUTION TO PCT,"261,332.09",Revenue,14/08/2014,Social Care & Inclusion
WC47- 0488,BLACK COUNTRY PARTNERSHIP NHS,Third Party Payments,Joint Arrangements,71007-CONTRIBUTION TO PCT,"261,332.09",Revenue,14/08/2014,Social Care & Inclusion
WC47- 0489,BLACK COUNTRY PARTNERSHIP NHS,Third Party Payments,Joint Arrangements,71007-CONTRIBUTION TO PCT,"783,996.00",Revenue,13/08/2014,Social Care & Inclusion
WC47- 0490,BLAKENALL HEATH JMI SCHOOL,Transfer Payments,Transfer Payments,77300-ISB-FORMULA ALLOCATION,"86,631.80",Revenue,18/08/2014,Childrens
WC47- 0491,BLANCHWORTH CARE HOMES LIMITED,Third Party Payments,Private Contractor Fees,73373-RESIDENTIAL & NURSING CARE PLACEMENTS,"2,007.30",Revenue,12/08/2014,Social Care & Inclusion
WC47- 0492,BLE SECURITY,Third Party Payments,Private Contractor Fees,73025-PROFESSIONAL SERVICES-PRIV CONTRACTOR & OTHER AGENCIES,520.00,Revenue,05/08/2014,Neighbourhood Services
WC47- 0493,BLOXWICH RADIO TAXIS,Transport,Hire,52000-WITH DRIVER-HIRE OF VEHICLES,360.00,Revenue,08/08/2014,Childrens
WC47- 0494,BLOXWICH RADIO TAXIS,Transport,Hire,52000-WITH DRIVER-HIRE OF VEHICLES,462.00,Revenue,04/08/2014,Childrens
WC47- 0495,BLOXWICH RADIO TAXIS,Transport,Hire,52000-WITH DRIVER-HIRE OF VEHICLES,532.00,Revenue,13/08/2014,Childrens
WC47- 0496,BLOXWICH RADIO TAXIS,Transport,Hire,52000-WITH DRIVER-HIRE OF VEHICLES,720.00,Revenue,04/08/2014,Childrens
WC47- 0497,BLOXWICH RADIO TAXIS,Transport,Hire,52000-WITH DRIVER-HIRE OF VEHICLES,924.00,Revenue,04/08/2014,Childrens
WC47- 0498,BLOXWICH RADIO TAXIS,Transport,Hire,52000-WITH DRIVER-HIRE OF VEHICLES,"1,140.00",Revenue,13/08/2014,Childrens
WC47- 0499,BLOXWICH RADIO TAXIS,Transport,Hire,52000-WITH DRIVER-HIRE OF VEHICLES,"1,980.00",Revenue,06/08/2014,Childrens
WC47- 0500,BLUE GIRAFFE CHILDCARE,Third Party Payments,Grants to Other Orgs,66505-OTHER-GRANTS TO OTHER ORGS,"1,659.06",Revenue,29/08/2014,Childrens
WC47- 0501,BNP PARIBAS LEASE GROUP,Supplies & Services,Communications & Computing,63602-COST OF RENTAL-TELEPHONES,291.76,Revenue,01/08/2014,Childrens
WC47- 0502,BNP PARIBAS LEASE GROUP,Supplies & Services,"Equip,Furniture & Materials",60009-LEASING/HIRE/RENTAL-EQUIPMENT,479.74,Revenue,19/08/2014,Social Care & Inclusion
WC47- 0503,BOLDMERE COURT CARE HOME,Third Party Payments,Private Contractor Fees,73373-RESIDENTIAL & NURSING CARE PLACEMENTS,"1,494.00",Revenue,26/08/2014,Social Care & Inclusion
WC47- 0504,BOOTS OPTICIANS PROFESSIONAL SERVICES LTD,Employees,Other Staff Costs,34310-EYE TESTS-EMPLOYEES,"1,375.00",Revenue,01/08/2014,Resources
WC47- 0505,BORN COMMUNICATION LTD,Supplies & Services,Services,63000-PROFESSIONAL FEES AND SERVICES,"1,500.00",Revenue,26/08/2014,Childrens
WC47- 0506,BORN TO PERFORM,Supplies & Services,Other Supplies & Services,62523-EVENTS,250.00,Revenue,01/08/2014,Regeneration
WC47- 0507,BORN TO PERFORM,Supplies & Services,Other Supplies & Services,62515-MISCELLANEOUS SUPPLIES,600.00,Revenue,01/08/2014,Regeneration
WC47- 0508,BOWDEN DERRA PARK,Third Party Payments,Private Contractor Fees,73373-RESIDENTIAL & NURSING CARE PLACEMENTS,"10,271.64",Revenue,26/08/2014,Social Care & Inclusion
WC47- 0509,BRADLEY ENVIRONMENTAL,Capital,Capital,01006-SITE WORKS MAIN CONTRACTORS,"3,180.00",Capital,27/08/2014,Regeneration
WC47- 0510,REDACTED,Transfer Payments,Transfer Payments,76422-DIRECT PAYMENTS TO SOCIAL SERVICES CLIENTS,460.32,Revenue,11/08/2014,Social Care & Inclusion
WC47- 0511,BRELMAYNE LTD,Supplies & Services,"Equip,Furniture & Materials",60008-MAINTENANCE-FURNITURE & EQUIPMENT,34.47,Revenue,05/08/2014,Neighbourhood Services
WC47- 0512,BRELMAYNE LTD,Supplies & Services,"Equip,Furniture & Materials",60008-MAINTENANCE-FURNITURE & EQUIPMENT,34.95,Revenue,05/08/2014,Neighbourhood Services
WC47- 0513,BRELMAYNE LTD,Supplies & Services,"Equip,Furniture & Materials",60008-MAINTENANCE-FURNITURE & EQUIPMENT,45.96,Revenue,05/08/2014,Neighbourhood Services
WC47- 0514,BRELMAYNE LTD,Supplies & Services,"Equip,Furniture & Materials",60008-MAINTENANCE-FURNITURE & EQUIPMENT,45.96,Revenue,05/08/2014,Neighbourhood Services
WC47- 0515,BRELMAYNE LTD,Supplies & Services,"Equip,Furniture & Materials",60008-MAINTENANCE-FURNITURE & EQUIPMENT,46.83,Revenue,05/08/2014,Neighbourhood Services
WC47- 0516,BRELMAYNE LTD,Supplies & Services,"Equip,Furniture & Materials",60008-MAINTENANCE-FURNITURE & EQUIPMENT,68.94,Revenue,05/08/2014,Neighbourhood Services
WC47- 0517,BRELMAYNE LTD,Supplies & Services,"Equip,Furniture & Materials",60008-MAINTENANCE-FURNITURE & EQUIPMENT,73.94,Revenue,05/08/2014,Neighbourhood Services
WC47- 0518,BRELMAYNE LTD,Supplies & Services,"Equip,Furniture & Materials",60008-MAINTENANCE-FURNITURE & EQUIPMENT,89.58,Revenue,05/08/2014,Neighbourhood Services
WC47- 0519,BRELMAYNE LTD,Supplies & Services,"Equip,Furniture & Materials",60008-MAINTENANCE-FURNITURE & EQUIPMENT,94.75,Revenue,05/08/2014,Neighbourhood Services
WC47- 0520,BRELMAYNE LTD,Supplies & Services,"Equip,Furniture & Materials",60008-MAINTENANCE-FURNITURE & EQUIPMENT,98.05,Revenue,05/08/2014,Neighbourhood Services
WC47- 0521,BRELMAYNE LTD,Supplies & Services,"Equip,Furniture & Materials",60008-MAINTENANCE-FURNITURE & EQUIPMENT,100.19,Revenue,05/08/2014,Neighbourhood Services
WC47- 0522,BRELMAYNE LTD,Supplies & Services,"Equip,Furniture & Materials",60008-MAINTENANCE-FURNITURE & EQUIPMENT,109.54,Revenue,05/08/2014,Neighbourhood Services
WC47- 0523,BRELMAYNE LTD,Supplies & Services,"Equip,Furniture & Materials",60008-MAINTENANCE-FURNITURE & EQUIPMENT,114.90,Revenue,05/08/2014,Neighbourhood Services
WC47- 0524,BRELMAYNE LTD,Supplies & Services,"Equip,Furniture & Materials",60008-MAINTENANCE-FURNITURE & EQUIPMENT,177.03,Revenue,05/08/2014,Neighbourhood Services
WC47- 0525,BRELMAYNE LTD,Supplies & Services,"Equip,Furniture & Materials",60008-MAINTENANCE-FURNITURE & EQUIPMENT,266.80,Revenue,05/08/2014,Neighbourhood Services
WC47- 0526,BRELMAYNE LTD,Third Party Payments,Private Contractor Fees,73025-PROFESSIONAL SERVICES-PRIV CONTRACTOR & OTHER AGENCIES,305.43,Revenue,06/08/2014,Regeneration
WC47- 0527,BRELMAYNE LTD,Premises,Premises-Repairs & Maintenance,"40000-REPAIRS,ALTERATIONS & MAINTENANCE-PREM",306.05,Revenue,06/08/2014,Regeneration
WC47- 0528,BRELMAYNE LTD,Supplies & Services,"Equip,Furniture & Materials",60008-MAINTENANCE-FURNITURE & EQUIPMENT,308.24,Revenue,29/08/2014,Neighbourhood Services
WC47- 0529,BRELMAYNE LTD,Premises,Premises-Repairs & Maintenance,"40000-REPAIRS,ALTERATIONS & MAINTENANCE-PREM",360.26,Revenue,01/08/2014,Regeneration
WC47- 0530,BRELMAYNE LTD,Supplies & Services,"Equip,Furniture & Materials",60008-MAINTENANCE-FURNITURE & EQUIPMENT,361.94,Revenue,05/08/2014,Neighbourhood Services
WC47- 0531,BRELMAYNE LTD,Premises,Premises-Repairs & Maintenance,"40000-REPAIRS,ALTERATIONS & MAINTENANCE-PREM",487.60,Revenue,06/08/2014,Regeneration
WC47- 0532,BRELMAYNE LTD,Third Party Payments,Private Contractor Fees,73025-PROFESSIONAL SERVICES-PRIV CONTRACTOR & OTHER AGENCIES,494.18,Revenue,01/08/2014,Regeneration
WC47- 0533,BRELMAYNE LTD,Third Party Payments,Private Contractor Fees,73025-PROFESSIONAL SERVICES-PRIV CONTRACTOR & OTHER AGENCIES,523.10,Revenue,06/08/2014,Regeneration
WC47- 0534,BRELMAYNE LTD,Third Party Payments,Private Contractor Fees,73025-PROFESSIONAL SERVICES-PRIV CONTRACTOR & OTHER AGENCIES,595.91,Revenue,01/08/2014,Regeneration
WC47- 0535,BRELMAYNE LTD,Supplies & Services,"Equip,Furniture & Materials",60008-MAINTENANCE-FURNITURE & EQUIPMENT,632.24,Revenue,05/08/2014,Neighbourhood Services
WC47- 0536,BRELMAYNE LTD,Premises,Premises-Repairs & Maintenance,"40000-REPAIRS,ALTERATIONS & MAINTENANCE-PREM",696.48,Revenue,01/08/2014,Regeneration
WC47- 0537,BRELMAYNE LTD,Third Party Payments,Private Contractor Fees,73025-PROFESSIONAL SERVICES-PRIV CONTRACTOR & OTHER AGENCIES,698.19,Revenue,06/08/2014,Regeneration
WC47- 0538,BRELMAYNE LTD,Third Party Payments,Private Contractor Fees,73025-PROFESSIONAL SERVICES-PRIV CONTRACTOR & OTHER AGENCIES,767.31,Revenue,06/08/2014,Regeneration
WC47- 0539,BRELMAYNE LTD,Third Party Payments,Private Contractor Fees,73025-PROFESSIONAL SERVICES-PRIV CONTRACTOR & OTHER AGENCIES,798.41,Revenue,01/08/2014,Regeneration
WC47- 0540,BRELMAYNE LTD,Premises,Premises-Repairs & Maintenance,"40000-REPAIRS,ALTERATIONS & MAINTENANCE-PREM","1,265.00",Revenue,29/08/2014,Neighbourhood Services
WC47- 0541,REDACTED,Transfer Payments,Transfer Payments,76422-DIRECT PAYMENTS TO SOCIAL SERVICES CLIENTS,680.00,Revenue,11/08/2014,Social Care & Inclusion
WC47- 0542,REDACTED,Transfer Payments,Transfer Payments,76422-DIRECT PAYMENTS TO SOCIAL SERVICES CLIENTS,440.00,Revenue,11/08/2014,Social Care & Inclusion
WC47- 0543,REDACTED,Third Party Payments,Private Contractor Fees,74006-HOLIDAY/CHRISTMAS ALLOWANCE-FOSTER CARERS-OTH AGENCY PROVISION,"1,278.80",Revenue,18/08/2014,Childrens
WC47- 0544,REDACTED,Supplies & Services,Other Supplies & Services,62515-MISCELLANEOUS SUPPLIES,"1,428.44",Revenue,18/08/2014,Childrens
WC47- 0545,REDACTED,Transfer Payments,Transfer Payments,76422-DIRECT PAYMENTS TO SOCIAL SERVICES CLIENTS,544.00,Revenue,11/08/2014,Social Care & Inclusion
WC47- 0546,REDACTED,Third Party Payments,Private Contractor Fees,73374-SUPPORTED & OTHER ACCOMMODATION,"2,935.24",Revenue,11/08/2014,Social Care & Inclusion
WC47- 0547,REDACTED,Transfer Payments,Transfer Payments,76422-DIRECT PAYMENTS TO SOCIAL SERVICES CLIENTS,493.20,Revenue,11/08/2014,Social Care & Inclusion
WC47- 0548,REDACTED,Transfer Payments,Transfer Payments,76422-DIRECT PAYMENTS TO SOCIAL SERVICES CLIENTS,"1,294.80",Revenue,11/08/2014,Social Care & Inclusion
WC47- 0549,REDACTED,Transfer Payments,Transfer Payments,76422-DIRECT PAYMENTS TO SOCIAL SERVICES CLIENTS,517.92,Revenue,11/08/2014,Social Care & Inclusion
WC47- 0550,REDACTED,Transfer Payments,Transfer Payments,76422-DIRECT PAYMENTS TO SOCIAL SERVICES CLIENTS,"1,039.78",Revenue,11/08/2014,Social Care & Inclusion
WC47- 0551,BRISTOW & SUTOR,Supplies & Services,Services,63102-CONSULTANTS FEES - CORPORATE,225.00,Revenue,18/08/2014,Resources
WC47- 0552,BRISTOW & SUTOR,Supplies & Services,Services,63102-CONSULTANTS FEES - CORPORATE,"1,064.92",Revenue,14/08/2014,Resources
WC47- 0553,BRITISH GAS BUSINESS,Premises,Utilities,42000-GAS-ENERGY COSTS,376.98,Revenue,26/08/2014,Childrens
WC47- 0554,BRITISH GAS BUSINESS,Premises,Utilities,42000-GAS-ENERGY COSTS,637.20,Revenue,19/08/2014,Regeneration
WC47- 0555,BRITISH GAS BUSINESS,Premises,Utilities,42000-GAS-ENERGY COSTS,"1,222.11",Revenue,07/08/2014,Regeneration
WC47- 0556,BRITISH GAS BUSINESS,Premises,Utilities,42000-GAS-ENERGY COSTS,"3,420.03",Revenue,19/08/2014,Regeneration
WC47- 0557,BRITISH GAS BUSINESS,Premises,Utilities,42000-GAS-ENERGY COSTS,"25,246.11",Revenue,19/08/2014,Regeneration
WC47- 0558,BROADOAK CARE,Third Party Payments,Private Contractor Fees,73373-RESIDENTIAL & NURSING CARE PLACEMENTS,"1,458.16",Revenue,05/08/2014,Social Care & Inclusion
WC47- 0559,BROADOAK CARE,Third Party Payments,Private Contractor Fees,73373-RESIDENTIAL & NURSING CARE PLACEMENTS,"1,458.16",Revenue,05/08/2014,Social Care & Inclusion
WC47- 0560,BROADOAK CARE,Third Party Payments,Private Contractor Fees,73373-RESIDENTIAL & NURSING CARE PLACEMENTS,"1,458.16",Revenue,26/08/2014,Social Care & Inclusion
WC47- 0561,BROADOAK CARE,Third Party Payments,Private Contractor Fees,73373-RESIDENTIAL & NURSING CARE PLACEMENTS,"1,458.16",Revenue,26/08/2014,Social Care & Inclusion
WC47- 0562,BROADOAK CARE,Third Party Payments,Private Contractor Fees,73373-RESIDENTIAL & NURSING CARE PLACEMENTS,"1,458.16",Revenue,26/08/2014,Social Care & Inclusion
WC47- 0563,BROADOAK CARE,Third Party Payments,Private Contractor Fees,73373-RESIDENTIAL & NURSING CARE PLACEMENTS,"1,534.08",Revenue,05/08/2014,Social Care & Inclusion
WC47- 0564,BROADOAK CARE,Third Party Payments,Private Contractor Fees,73373-RESIDENTIAL & NURSING CARE PLACEMENTS,"1,534.08",Revenue,26/08/2014,Social Care & Inclusion
WC47- 0565,BROADOAK CARE,Third Party Payments,Private Contractor Fees,73373-RESIDENTIAL & NURSING CARE PLACEMENTS,"1,534.08",Revenue,26/08/2014,Social Care & Inclusion
WC47- 0566,BROADOAK CARE,Third Party Payments,Private Contractor Fees,73373-RESIDENTIAL & NURSING CARE PLACEMENTS,"1,534.08",Revenue,26/08/2014,Social Care & Inclusion
WC47- 0567,BROADOAK CARE,Third Party Payments,Private Contractor Fees,73373-RESIDENTIAL & NURSING CARE PLACEMENTS,"1,534.08",Revenue,26/08/2014,Social Care & Inclusion
WC47- 0568,BROADOAK CARE,Third Party Payments,Private Contractor Fees,73373-RESIDENTIAL & NURSING CARE PLACEMENTS,"1,534.08",Revenue,26/08/2014,Social Care & Inclusion
WC47- 0569,BROADOAK CARE,Third Party Payments,Private Contractor Fees,73373-RESIDENTIAL & NURSING CARE PLACEMENTS,"1,534.08",Revenue,26/08/2014,Social Care & Inclusion
WC47- 0570,BROADOAK CARE,Third Party Payments,Private Contractor Fees,73373-RESIDENTIAL & NURSING CARE PLACEMENTS,"1,534.08",Revenue,26/08/2014,Social Care & Inclusion
WC47- 0571,BROADOAK CARE,Third Party Payments,Private Contractor Fees,73373-RESIDENTIAL & NURSING CARE PLACEMENTS,"1,534.08",Revenue,26/08/2014,Social Care & Inclusion
WC47- 0572,BROADOAK CARE,Third Party Payments,Private Contractor Fees,73373-RESIDENTIAL & NURSING CARE PLACEMENTS,"1,534.08",Revenue,26/08/2014,Social Care & Inclusion
WC47- 0573,BROADOAK CARE,Third Party Payments,Private Contractor Fees,73373-RESIDENTIAL & NURSING CARE PLACEMENTS,"1,534.08",Revenue,26/08/2014,Social Care & Inclusion
WC47- 0574,BROADOAK CARE,Third Party Payments,Private Contractor Fees,73373-RESIDENTIAL & NURSING CARE PLACEMENTS,"1,534.08",Revenue,26/08/2014,Social Care & Inclusion
WC47- 0575,BROADOAK CARE,Third Party Payments,Private Contractor Fees,73373-RESIDENTIAL & NURSING CARE PLACEMENTS,"1,534.08",Revenue,26/08/2014,Social Care & Inclusion
WC47- 0576,BROADOAK CARE,Third Party Payments,Private Contractor Fees,73373-RESIDENTIAL & NURSING CARE PLACEMENTS,"1,534.08",Revenue,26/08/2014,Social Care & Inclusion
WC47- 0577,BROADOAK CARE,Third Party Payments,Private Contractor Fees,73373-RESIDENTIAL & NURSING CARE PLACEMENTS,"1,534.08",Revenue,26/08/2014,Social Care & Inclusion
WC47- 0578,BROADOAK CARE,Third Party Payments,Private Contractor Fees,73373-RESIDENTIAL & NURSING CARE PLACEMENTS,"1,534.22",Revenue,26/08/2014,Social Care & Inclusion
WC47- 0579,BROADOAK CARE,Third Party Payments,Private Contractor Fees,73373-RESIDENTIAL & NURSING CARE PLACEMENTS,"1,862.76",Revenue,12/08/2014,Social Care & Inclusion
WC47- 0580,BROADWAY TRAVEL CONNECTIONS,Transport,Hire,52000-WITH DRIVER-HIRE OF VEHICLES,"1,425.00",Revenue,06/08/2014,Childrens
WC47- 0581,BROMWICH CONTRACTS,Supplies & Services,"Equip,Furniture & Materials",60500-GENERAL MATERIALS,500.00,Revenue,29/08/2014,Neighbourhood Services
WC47- 0582,BROWNHILLS ASPHALT TARMACADAM,Premises,Premises-Repairs & Maintenance,"40000-REPAIRS,ALTERATIONS & MAINTENANCE-PREM",265.00,Revenue,27/08/2014,Regeneration
WC47- 0583,BROWNHILLS ASPHALT TARMACADAM,Premises,Premises-Repairs & Maintenance,"40000-REPAIRS,ALTERATIONS & MAINTENANCE-PREM",280.00,Revenue,05/08/2014,Regeneration
WC47- 0584,BROWNHILLS ASPHALT TARMACADAM,Premises,Premises-Repairs & Maintenance,"40000-REPAIRS,ALTERATIONS & MAINTENANCE-PREM",300.00,Revenue,05/08/2014,Regeneration
WC47- 0585,BROWNHILLS ASPHALT TARMACADAM,Premises,Premises-Repairs & Maintenance,"40000-REPAIRS,ALTERATIONS & MAINTENANCE-PREM",395.00,Revenue,01/08/2014,Neighbourhood Services
WC47- 0586,BROWNHILLS ASPHALT TARMACADAM,Third Party Payments,Private Contractor Fees,73025-PROFESSIONAL SERVICES-PRIV CONTRACTOR & OTHER AGENCIES,680.00,Revenue,01/08/2014,Neighbourhood Services
WC47- 0587,BROWNHILLS ASPHALT TARMACADAM,Supplies & Services,"Equip,Furniture & Materials",60500-GENERAL MATERIALS,780.00,Revenue,18/08/2014,Neighbourhood Services
WC47- 0588,BROWNHILLS ASPHALT TARMACADAM,Capital,Capital,01006-SITE WORKS MAIN CONTRACTORS,"1,044.00",Capital,27/08/2014,Childrens
WC47- 0589,BROWNHILLS ASPHALT TARMACADAM,Premises,Premises-Repairs & Maintenance,"40000-REPAIRS,ALTERATIONS & MAINTENANCE-PREM","1,087.00",Revenue,06/08/2014,Neighbourhood Services
WC47- 0590,BROWNHILLS ASPHALT TARMACADAM,Premises,Premises-Repairs & Maintenance,"40000-REPAIRS,ALTERATIONS & MAINTENANCE-PREM","1,370.00",Revenue,06/08/2014,Neighbourhood Services
WC47- 0591,BROWNHILLS ASPHALT TARMACADAM,Third Party Payments,Private Contractor Fees,73025-PROFESSIONAL SERVICES-PRIV CONTRACTOR & OTHER AGENCIES,"1,885.00",Revenue,13/08/2014,Regeneration
WC47- 0592,BROWNHILLS ASPHALT TARMACADAM,Capital,Capital,01006-SITE WORKS MAIN CONTRACTORS,"2,500.00",Capital,04/08/2014,Childrens
WC47- 0593,BROWNHILLS ASPHALT TARMACADAM,Capital,Capital,01006-SITE WORKS MAIN CONTRACTORS,"18,000.00",Capital,05/08/2014,Regeneration
WC47- 0594,BROWNHILLS ASPHALT TARMACADAM,Capital,Capital,01006-SITE WORKS MAIN CONTRACTORS,"20,000.00",Capital,06/08/2014,Childrens
WC47- 0595,BROWNHILLS CARS,Transport,Hire,52000-WITH DRIVER-HIRE OF VEHICLES,308.00,Revenue,20/08/2014,Childrens
WC47- 0596,BROWNHILLS CARS,Transport,Hire,52000-WITH DRIVER-HIRE OF VEHICLES,812.00,Revenue,20/08/2014,Childrens
WC47- 0597,BROWNHILLS CARS,Transport,Hire,52000-WITH DRIVER-HIRE OF VEHICLES,"1,316.00",Revenue,20/08/2014,Childrens
WC47- 0598,BROWNHILLS COMMUNITY ASSOCIATION,Third Party Payments,Grants to Other Orgs,66505-OTHER-GRANTS TO OTHER ORGS,"2,931.21",Revenue,29/08/2014,Childrens
WC47- 0599,BROWNHILLS LOCAL COMMITTEE,Supplies & Services,Other Supplies & Services,62515-MISCELLANEOUS SUPPLIES,701.00,Revenue,19/08/2014,Neighbourhood Services
WC47- 0600,BROXAP LTD,Premises,Premises-Repairs & Maintenance,41001-GROUNDS MAINTENANCE,539.00,Revenue,18/08/2014,Neighbourhood Services
WC47- 0601,REDACTED,Transfer Payments,Transfer Payments,76422-DIRECT PAYMENTS TO SOCIAL SERVICES CLIENTS,"1,445.00",Revenue,11/08/2014,Social Care & Inclusion
WC47- 0602,REDACTED,Supplies & Services,Other Supplies & Services,62523-EVENTS,600.00,Revenue,18/08/2014,Neighbourhood Services
WC47- 0603,BT,Supplies & Services,Communications & Computing,63601-COSTS (NOT INTERNAL RECHARGES)-TELEPHONES,"17,870.99",Revenue,26/08/2014,Resources
WC47- 0604,BT PLC,Supplies & Services,Communications & Computing,63602-COST OF RENTAL-TELEPHONES,347.82,Revenue,20/08/2014,Childrens
WC47- 0605,BT PLC,Supplies & Services,Communications & Computing,63601-COSTS (NOT INTERNAL RECHARGES)-TELEPHONES,"2,226.32",Revenue,04/08/2014,Resources
WC47- 0606,BT PLC,Supplies & Services,Communications & Computing,63800-COMPUTER EQUIPMENT AND SUPPLIES,"3,261.62",Revenue,07/08/2014,Resources
WC47- 0607,BT PLC,Supplies & Services,Communications & Computing,63601-COSTS (NOT INTERNAL RECHARGES)-TELEPHONES,"4,296.62",Revenue,13/08/2014,Resources
WC47- 0608,BT PLC,Supplies & Services,Communications & Computing,63807-COMMS LINKS-COMPUTER,"5,478.63",Revenue,20/08/2014,Resources
WC47- 0609,BUFFET EXPRESS LTD,Supplies & Services,Provisions,61305-CATERING,267.00,Revenue,07/08/2014,Neighbourhood Services
WC47- 0610,BUPA CARE HOMES (CFHCARE) LTD,Third Party Payments,Private Contractor Fees,73373-RESIDENTIAL & NURSING CARE PLACEMENTS,"1,213.49",Revenue,12/08/2014,Social Care & Inclusion
WC47- 0611,BUPA CARE HOMES (CFHCARE) LTD,Third Party Payments,Private Contractor Fees,73373-RESIDENTIAL & NURSING CARE PLACEMENTS,"1,458.00",Revenue,19/08/2014,Social Care & Inclusion
WC47- 0612,BUPA CARE HOMES (CFHCARE) LTD,Third Party Payments,Private Contractor Fees,73373-RESIDENTIAL & NURSING CARE PLACEMENTS,"1,494.00",Revenue,19/08/2014,Social Care & Inclusion
WC47- 0613,BUPA CARE HOMES (CFHCARE) LTD,Third Party Payments,Private Contractor Fees,73373-RESIDENTIAL & NURSING CARE PLACEMENTS,"1,544.44",Revenue,12/08/2014,Social Care & Inclusion
WC47- 0614,BUPA CARE HOMES (CFHCARE) LTD,Third Party Payments,Private Contractor Fees,73373-RESIDENTIAL & NURSING CARE PLACEMENTS,"1,544.44",Revenue,19/08/2014,Social Care & Inclusion
WC47- 0615,BUPA CARE HOMES (CFHCARE) LTD,Third Party Payments,Private Contractor Fees,73373-RESIDENTIAL & NURSING CARE PLACEMENTS,"1,708.84",Revenue,19/08/2014,Social Care & Inclusion
WC47- 0616,BUPA CARE HOMES (CFHCARE) LTD,Third Party Payments,Private Contractor Fees,73373-RESIDENTIAL & NURSING CARE PLACEMENTS,"3,060.92",Revenue,19/08/2014,Social Care & Inclusion
WC47- 0617,BURTON ADDICTION CENTRE,Supplies & Services,Services,63000-PROFESSIONAL FEES AND SERVICES,"1,279.25",Revenue,06/08/2014,Neighbourhood Services
WC47- 0618,BURTON ADDICTION CENTRE,Supplies & Services,Services,63000-PROFESSIONAL FEES AND SERVICES,"1,279.25",Revenue,06/08/2014,Neighbourhood Services
WC47- 0619,BUSH HOME LTD,Third Party Payments,Private Contractor Fees,73373-RESIDENTIAL & NURSING CARE PLACEMENTS,438.32,Revenue,05/08/2014,Social Care & Inclusion
WC47- 0620,BUSH HOME LTD,Third Party Payments,Private Contractor Fees,73373-RESIDENTIAL & NURSING CARE PLACEMENTS,438.32,Revenue,12/08/2014,Social Care & Inclusion
WC47- 0621,BUSH HOME LTD,Third Party Payments,Private Contractor Fees,73373-RESIDENTIAL & NURSING CARE PLACEMENTS,"1,147.46",Revenue,26/08/2014,Social Care & Inclusion
WC47- 0622,BUSH HOME LTD,Third Party Payments,Private Contractor Fees,73373-RESIDENTIAL & NURSING CARE PLACEMENTS,"1,458.16",Revenue,12/08/2014,Social Care & Inclusion
WC47- 0623,BUSH HOME LTD,Third Party Payments,Private Contractor Fees,73373-RESIDENTIAL & NURSING CARE PLACEMENTS,"1,458.16",Revenue,12/08/2014,Social Care & Inclusion
WC47- 0624,BUSH HOME LTD,Third Party Payments,Private Contractor Fees,73373-RESIDENTIAL & NURSING CARE PLACEMENTS,"1,458.16",Revenue,12/08/2014,Social Care & Inclusion
WC47- 0625,BUSH HOME LTD,Third Party Payments,Private Contractor Fees,73373-RESIDENTIAL & NURSING CARE PLACEMENTS,"1,458.16",Revenue,26/08/2014,Social Care & Inclusion
WC47- 0626,BUSH HOME LTD,Third Party Payments,Private Contractor Fees,73373-RESIDENTIAL & NURSING CARE PLACEMENTS,"1,460.40",Revenue,12/08/2014,Social Care & Inclusion
WC47- 0627,BUSH HOME LTD,Third Party Payments,Private Contractor Fees,73373-RESIDENTIAL & NURSING CARE PLACEMENTS,"1,460.40",Revenue,12/08/2014,Social Care & Inclusion
WC47- 0628,BUSH HOME LTD,Third Party Payments,Private Contractor Fees,73373-RESIDENTIAL & NURSING CARE PLACEMENTS,"1,460.40",Revenue,26/08/2014,Social Care & Inclusion
WC47- 0629,BUSH HOME LTD,Third Party Payments,Private Contractor Fees,73373-RESIDENTIAL & NURSING CARE PLACEMENTS,"1,460.40",Revenue,26/08/2014,Social Care & Inclusion
WC47- 0630,BUSH HOME LTD,Third Party Payments,Private Contractor Fees,73373-RESIDENTIAL & NURSING CARE PLACEMENTS,"1,513.68",Revenue,12/08/2014,Social Care & Inclusion
WC47- 0631,BUSH HOME LTD,Third Party Payments,Private Contractor Fees,73373-RESIDENTIAL & NURSING CARE PLACEMENTS,"1,513.68",Revenue,26/08/2014,Social Care & Inclusion
WC47- 0632,BUSH HOME LTD,Third Party Payments,Private Contractor Fees,73373-RESIDENTIAL & NURSING CARE PLACEMENTS,"1,534.12",Revenue,05/08/2014,Social Care & Inclusion
WC47- 0633,BUSH HOME LTD,Third Party Payments,Private Contractor Fees,73373-RESIDENTIAL & NURSING CARE PLACEMENTS,"1,534.12",Revenue,12/08/2014,Social Care & Inclusion
WC47- 0634,BUSH HOME LTD,Third Party Payments,Private Contractor Fees,73373-RESIDENTIAL & NURSING CARE PLACEMENTS,"1,534.12",Revenue,12/08/2014,Social Care & Inclusion
WC47- 0635,BUSH HOME LTD,Third Party Payments,Private Contractor Fees,73373-RESIDENTIAL & NURSING CARE PLACEMENTS,"1,534.12",Revenue,12/08/2014,Social Care & Inclusion
WC47- 0636,BUSH HOME LTD,Third Party Payments,Private Contractor Fees,73373-RESIDENTIAL & NURSING CARE PLACEMENTS,"1,534.12",Revenue,12/08/2014,Social Care & Inclusion
WC47- 0637,BUSH HOME LTD,Third Party Payments,Private Contractor Fees,73373-RESIDENTIAL & NURSING CARE PLACEMENTS,"1,534.12",Revenue,12/08/2014,Social Care & Inclusion
WC47- 0638,BUSH HOME LTD,Third Party Payments,Private Contractor Fees,73373-RESIDENTIAL & NURSING CARE PLACEMENTS,"1,534.12",Revenue,12/08/2014,Social Care & Inclusion
WC47- 0639,BUSH HOME LTD,Third Party Payments,Private Contractor Fees,73373-RESIDENTIAL & NURSING CARE PLACEMENTS,"1,534.12",Revenue,12/08/2014,Social Care & Inclusion
WC47- 0640,BUSH HOME LTD,Third Party Payments,Private Contractor Fees,73373-RESIDENTIAL & NURSING CARE PLACEMENTS,"1,534.12",Revenue,12/08/2014,Social Care & Inclusion
WC47- 0641,BUSH HOME LTD,Third Party Payments,Private Contractor Fees,73373-RESIDENTIAL & NURSING CARE PLACEMENTS,"1,534.12",Revenue,12/08/2014,Social Care & Inclusion
WC47- 0642,BUSH HOME LTD,Third Party Payments,Private Contractor Fees,73373-RESIDENTIAL & NURSING CARE PLACEMENTS,"1,534.12",Revenue,26/08/2014,Social Care & Inclusion
WC47- 0643,BUSH HOME LTD,Third Party Payments,Private Contractor Fees,73373-RESIDENTIAL & NURSING CARE PLACEMENTS,"1,534.12",Revenue,26/08/2014,Social Care & Inclusion
WC47- 0644,BUSH HOME LTD,Third Party Payments,Private Contractor Fees,73373-RESIDENTIAL & NURSING CARE PLACEMENTS,"1,534.12",Revenue,26/08/2014,Social Care & Inclusion
WC47- 0645,BUSH HOME LTD,Third Party Payments,Private Contractor Fees,73373-RESIDENTIAL & NURSING CARE PLACEMENTS,"1,557.60",Revenue,12/08/2014,Social Care & Inclusion
WC47- 0646,BUSH HOME LTD,Third Party Payments,Private Contractor Fees,73373-RESIDENTIAL & NURSING CARE PLACEMENTS,"1,862.86",Revenue,05/08/2014,Social Care & Inclusion
WC47- 0647,BUSH HOME LTD,Third Party Payments,Private Contractor Fees,73373-RESIDENTIAL & NURSING CARE PLACEMENTS,"4,276.88",Revenue,19/08/2014,Social Care & Inclusion
WC47- 0648,BUSY BEES CHILDCARE LTD,Third Party Payments,Grants to Other Orgs,66505-OTHER-GRANTS TO OTHER ORGS,"2,782.69",Revenue,29/08/2014,Childrens
WC47- 0649,BUXTONS LTD,Supplies & Services,"Equip,Furniture & Materials",60500-GENERAL MATERIALS,309.00,Revenue,20/08/2014,Neighbourhood Services
WC47- 0650,C & V ORCHARD RESIDENTIAL LTD,Third Party Payments,Private Contractor Fees,73373-RESIDENTIAL & NURSING CARE PLACEMENTS,"1,531.00",Revenue,05/08/2014,Social Care & Inclusion
WC47- 0651,C & V ORCHARD RESIDENTIAL LTD,Third Party Payments,Private Contractor Fees,73373-RESIDENTIAL & NURSING CARE PLACEMENTS,"1,531.76",Revenue,05/08/2014,Social Care & Inclusion
WC47- 0652,C & V ORCHARD RESIDENTIAL LTD,Third Party Payments,Private Contractor Fees,73373-RESIDENTIAL & NURSING CARE PLACEMENTS,"1,531.76",Revenue,05/08/2014,Social Care & Inclusion
WC47- 0653,C & V ORCHARD RESIDENTIAL LTD,Third Party Payments,Private Contractor Fees,73373-RESIDENTIAL & NURSING CARE PLACEMENTS,"1,531.76",Revenue,05/08/2014,Social Care & Inclusion
WC47- 0654,C & V ORCHARD RESIDENTIAL LTD,Third Party Payments,Private Contractor Fees,73373-RESIDENTIAL & NURSING CARE PLACEMENTS,"1,531.76",Revenue,05/08/2014,Social Care & Inclusion
WC47- 0655,C & V ORCHARD RESIDENTIAL LTD,Third Party Payments,Private Contractor Fees,73373-RESIDENTIAL & NURSING CARE PLACEMENTS,"1,534.12",Revenue,05/08/2014,Social Care & Inclusion
WC47- 0656,C & V ORCHARD RESIDENTIAL LTD,Third Party Payments,Private Contractor Fees,73373-RESIDENTIAL & NURSING CARE PLACEMENTS,"1,534.12",Revenue,05/08/2014,Social Care & Inclusion
WC47- 0657,C & V ORCHARD RESIDENTIAL LTD,Third Party Payments,Private Contractor Fees,73373-RESIDENTIAL & NURSING CARE PLACEMENTS,"1,534.12",Revenue,05/08/2014,Social Care & Inclusion
WC47- 0658,REDACTED,Third Party Payments,Private Contractor Fees,74006-HOLIDAY/CHRISTMAS ALLOWANCE-FOSTER CARERS-OTH AGENCY PROVISION,"4,386.13",Revenue,18/08/2014,Childrens
WC47- 0659,REDACTED,Supplies & Services,Other Supplies & Services,62515-MISCELLANEOUS SUPPLIES,"4,502.36",Revenue,18/08/2014,Childrens
WC47- 0660,REDACTED,Supplies & Services,Other Supplies & Services,62515-MISCELLANEOUS SUPPLIES,"1,428.44",Revenue,18/08/2014,Childrens
WC47- 0661,REDACTED,Third Party Payments,Private Contractor Fees,74006-HOLIDAY/CHRISTMAS ALLOWANCE-FOSTER CARERS-OTH AGENCY PROVISION,"1,610.40",Revenue,18/08/2014,Childrens
WC47- 0662,C P DAVIDSON & SONS LTD,Third Party Payments,Private Contractor Fees,73025-PROFESSIONAL SERVICES-PRIV CONTRACTOR & OTHER AGENCIES,252.00,Revenue,19/08/2014,Neighbourhood Services
WC47- 0663,C P DAVIDSON & SONS LTD,Supplies & Services,"Equip,Furniture & Materials",60514-MATERIALS TO STORES,532.47,Revenue,04/08/2014,Neighbourhood Services
WC47- 0664,C P DAVIDSON & SONS LTD,Supplies & Services,"Equip,Furniture & Materials",60514-MATERIALS TO STORES,595.08,Revenue,18/08/2014,Neighbourhood Services
WC47- 0665,C&S CARE SERVICES,Employees,Agency,34305-AGENCY STAFF-EMPLOYEES,461.50,Revenue,06/08/2014,Social Care & Inclusion
WC47- 0666,REDACTED,Supplies & Services,Services,63000-PROFESSIONAL FEES AND SERVICES,504.00,Revenue,27/08/2014,Neighbourhood Services
WC47- 0667,REDACTED,Supplies & Services,Services,63000-PROFESSIONAL FEES AND SERVICES,786.00,Revenue,27/08/2014,Neighbourhood Services
WC47- 0668,CABRINI CHILDRENS SOCIETY,Transfer Payments,Transfer Payments,74009-ADOPTION ALLOWANCE,"5,152.00",Revenue,06/08/2014,Childrens
WC47- 0669,CACI  LIMITED,Supplies & Services,Services,63000-PROFESSIONAL FEES AND SERVICES,"10,457.84",Revenue,26/08/2014,Childrens
WC47- 0670,CALDMORE AREA HOUSING ASS LTD,Premises,Rent,43001-RENTS-OTHER,306.49,Revenue,01/08/2014,Resources
WC47- 0671,CALDMORE AREA HOUSING ASS LTD,Third Party Payments,Private Contractor Fees,73373-RESIDENTIAL & NURSING CARE PLACEMENTS,"2,477.32",Revenue,12/08/2014,Social Care & Inclusion
WC47- 0672,CALDMORE AREA HOUSING ASS LTD,Third Party Payments,Private Contractor Fees,73373-RESIDENTIAL & NURSING CARE PLACEMENTS,"2,477.32",Revenue,12/08/2014,Social Care & Inclusion
WC47- 0673,CALDMORE AREA HOUSING ASS LTD,Third Party Payments,Private Contractor Fees,73373-RESIDENTIAL & NURSING CARE PLACEMENTS,"2,477.32",Revenue,12/08/2014,Social Care & Inclusion
WC47- 0674,CALDMORE AREA HOUSING ASS LTD,Third Party Payments,Private Contractor Fees,73373-RESIDENTIAL & NURSING CARE PLACEMENTS,"2,477.32",Revenue,12/08/2014,Social Care & Inclusion
WC47- 0675,CALDMORE AREA HOUSING ASS LTD,Third Party Payments,Private Contractor Fees,73373-RESIDENTIAL & NURSING CARE PLACEMENTS,"2,477.32",Revenue,19/08/2014,Social Care & Inclusion
WC47- 0676,CALDMORE AREA HOUSING ASS LTD,Third Party Payments,Private Contractor Fees,73365-BLOCK GROSS-SUPPORTING PEOPLE,"30,663.09",Revenue,04/08/2014,Social Care & Inclusion
WC47- 0677,REDACTED,Third Party Payments,Private Contractor Fees,74006-HOLIDAY/CHRISTMAS ALLOWANCE-FOSTER CARERS-OTH AGENCY PROVISION,295.52,Revenue,04/08/2014,Childrens
WC47- 0678,REDACTED,Transfer Payments,Transfer Payments,76422-DIRECT PAYMENTS TO SOCIAL SERVICES CLIENTS,287.70,Revenue,11/08/2014,Childrens
WC47- 0679,CANON (UK) LTD 001,Supplies & Services,"Equip,Furniture & Materials",60009-LEASING/HIRE/RENTAL-EQUIPMENT,125.72,Revenue,07/08/2014,Childrens
WC47- 0680,CANON (UK) LTD 001,Supplies & Services,"Equip,Furniture & Materials",60009-LEASING/HIRE/RENTAL-EQUIPMENT,125.72,Revenue,07/08/2014,Childrens
WC47- 0681,CAPITA EDUCATION RESOURCING,Supplies & Services,Services,63000-PROFESSIONAL FEES AND SERVICES,"1,035.85",Revenue,18/08/2014,Resources
WC47- 0682,CAPITA EDUCATION RESOURCING,Supplies & Services,Services,63000-PROFESSIONAL FEES AND SERVICES,"4,078.25",Revenue,18/08/2014,Resources
WC47- 0683,CAPITA HEALTH AND WELLBEING LTD,Supplies & Services,Services,63102-CONSULTANTS FEES - CORPORATE,388.00,Revenue,08/08/2014,Resources
WC47- 0684,CAPITA SPECIALIST INSURANCE SOLUTIONS,Supplies & Services,Other Supplies & Services,67000-MISC INSURANCES - INSURANCE PREMIUMS,"18,535.67",Revenue,11/08/2014,Resources
WC47- 0685,CAPITA TRANSLATION AND INTERPRETING,Supplies & Services,Services,"62521-INTERPRETATION,TRANSLATION & HUMAN AIDS TO TRANSCRIPTION",258.75,Revenue,06/08/2014,Childrens
WC47- 0686,CAPITA TREASURY SOLUTIONS LIMITED,Supplies & Services,Services,63000-PROFESSIONAL FEES AND SERVICES,"4,375.00",Revenue,11/08/2014,Capital Financing
WC47- 0687,CARE 2 U LIMITED,Third Party Payments,Private Contractor Fees,73372-DOMICILIARY CARE,"10,214.28",Revenue,19/08/2014,Social Care & Inclusion
WC47- 0688,CARE 2 U LIMITED,Third Party Payments,Private Contractor Fees,73372-DOMICILIARY CARE,"22,891.09",Revenue,19/08/2014,Social Care & Inclusion
WC47- 0689,CARE ASSIST LIMITED,Third Party Payments,Private Contractor Fees,73372-DOMICILIARY CARE,"2,957.14",Revenue,05/08/2014,Social Care & Inclusion
WC47- 0690,CARE ASSIST LIMITED,Third Party Payments,Private Contractor Fees,73372-DOMICILIARY CARE,"3,055.71",Revenue,05/08/2014,Social Care & Inclusion
WC47- 0691,CARE AVENUES LTD,Third Party Payments,Private Contractor Fees,73372-DOMICILIARY CARE,"2,021.21",Revenue,19/08/2014,Social Care & Inclusion
WC47- 0692,CARE FIRST CARE HOMES LTD,Third Party Payments,Private Contractor Fees,73373-RESIDENTIAL & NURSING CARE PLACEMENTS,747.00,Revenue,19/08/2014,Social Care & Inclusion
WC47- 0693,CARE FIRST MANAGEMENT SERVICES LTD,Third Party Payments,Private Contractor Fees,73372-DOMICILIARY CARE,780.00,Revenue,08/08/2014,Social Care & Inclusion
WC47- 0694,CARE FIRST MANAGEMENT SERVICES LTD,Third Party Payments,Private Contractor Fees,73374-SUPPORTED & OTHER ACCOMMODATION,"3,850.00",Revenue,20/08/2014,Social Care & Inclusion
WC47- 0695,CARE LEAVERS,Third Party Payments,Private Contractor Fees,74500-CARE LEAVERS MTCE PAYMENTS,"16,879.52",Revenue,14/08/2014,Childrens
WC47- 0696,CARE LEAVERS,Third Party Payments,Private Contractor Fees,74500-CARE LEAVERS MTCE PAYMENTS,"17,223.08",Revenue,27/08/2014,Childrens
WC47- 0697,CAREVIEW SERVICES LTD,Third Party Payments,Private Contractor Fees,73373-RESIDENTIAL & NURSING CARE PLACEMENTS,"6,653.13",Revenue,19/08/2014,Social Care & Inclusion
WC47- 0698,CARING CARE LIMITED,Employees,Agency,34305-AGENCY STAFF-EMPLOYEES,253.00,Revenue,01/08/2014,Social Care & Inclusion
WC47- 0699,CARING CARE LIMITED,Employees,Agency,34305-AGENCY STAFF-EMPLOYEES,253.00,Revenue,01/08/2014,Social Care & Inclusion
WC47- 0700,CARING CARE LIMITED,Third Party Payments,Private Contractor Fees,73372-DOMICILIARY CARE,256.51,Revenue,01/08/2014,Social Care & Inclusion
WC47- 0701,CARING CARE LIMITED,Third Party Payments,Private Contractor Fees,73372-DOMICILIARY CARE,261.75,Revenue,04/08/2014,Social Care & Inclusion
WC47- 0702,CARING CARE LIMITED,Employees,Agency,34305-AGENCY STAFF-EMPLOYEES,270.25,Revenue,06/08/2014,Social Care & Inclusion
WC47- 0703,CARING CARE LIMITED,Third Party Payments,Private Contractor Fees,73372-DOMICILIARY CARE,444.97,Revenue,01/08/2014,Social Care & Inclusion
WC47- 0704,CARING CARE LIMITED,Employees,Agency,34305-AGENCY STAFF-EMPLOYEES,477.25,Revenue,01/08/2014,Social Care & Inclusion
WC47- 0705,CARING CARE LIMITED,Employees,Agency,34305-AGENCY STAFF-EMPLOYEES,540.50,Revenue,01/08/2014,Social Care & Inclusion
WC47- 0706,CARING CARE LIMITED,Employees,Agency,34305-AGENCY STAFF-EMPLOYEES,552.00,Revenue,01/08/2014,Social Care & Inclusion
WC47- 0707,CARING CARE LIMITED,Third Party Payments,Private Contractor Fees,73372-DOMICILIARY CARE,586.32,Revenue,04/08/2014,Social Care & Inclusion
WC47- 0708,CARING CARE LIMITED,Third Party Payments,Private Contractor Fees,73372-DOMICILIARY CARE,612.49,Revenue,04/08/2014,Social Care & Inclusion
WC47- 0709,CARING CARE LIMITED,Employees,Agency,34305-AGENCY STAFF-EMPLOYEES,724.50,Revenue,01/08/2014,Social Care & Inclusion
WC47- 0710,CARING CARE LIMITED,Employees,Agency,34305-AGENCY STAFF-EMPLOYEES,741.75,Revenue,06/08/2014,Social Care & Inclusion
WC47- 0711,CARING CARE LIMITED,Third Party Payments,Private Contractor Fees,73372-DOMICILIARY CARE,779.70,Revenue,04/08/2014,Social Care & Inclusion
WC47- 0712,CARING CARE LIMITED,Employees,Agency,34305-AGENCY STAFF-EMPLOYEES,782.00,Revenue,06/08/2014,Social Care & Inclusion
WC47- 0713,CARING CARE LIMITED,Employees,Agency,34305-AGENCY STAFF-EMPLOYEES,799.25,Revenue,01/08/2014,Social Care & Inclusion
WC47- 0714,CARING CARE LIMITED,Employees,Agency,34305-AGENCY STAFF-EMPLOYEES,828.00,Revenue,01/08/2014,Social Care & Inclusion
WC47- 0715,CARING CARE LIMITED,Third Party Payments,Private Contractor Fees,73372-DOMICILIARY CARE,837.60,Revenue,04/08/2014,Social Care & Inclusion
WC47- 0716,CARING CARE LIMITED,Employees,Agency,34305-AGENCY STAFF-EMPLOYEES,839.50,Revenue,01/08/2014,Social Care & Inclusion
WC47- 0717,CARING CARE LIMITED,Third Party Payments,Private Contractor Fees,73372-DOMICILIARY CARE,994.65,Revenue,04/08/2014,Social Care & Inclusion
WC47- 0718,CARING CARE LIMITED,Third Party Payments,Private Contractor Fees,73372-DOMICILIARY CARE,"1,062.28",Revenue,04/08/2014,Social Care & Inclusion
WC47- 0719,CARING CARE LIMITED,Third Party Payments,Private Contractor Fees,73372-DOMICILIARY CARE,"1,078.41",Revenue,04/08/2014,Social Care & Inclusion
WC47- 0720,CARING CARE LIMITED,Third Party Payments,Private Contractor Fees,73372-DOMICILIARY CARE,"1,172.64",Revenue,04/08/2014,Social Care & Inclusion
WC47- 0721,CARING CARE LIMITED,Employees,Agency,34305-AGENCY STAFF-EMPLOYEES,"1,426.00",Revenue,01/08/2014,Social Care & Inclusion
WC47- 0722,CARING CARE LIMITED,Employees,Agency,34305-AGENCY STAFF-EMPLOYEES,"4,059.50",Revenue,01/08/2014,Social Care & Inclusion
WC47- 0723,CARING CARE LIMITED,Third Party Payments,Private Contractor Fees,73372-DOMICILIARY CARE,"36,090.19",Revenue,19/08/2014,Social Care & Inclusion
WC47- 0724,REDACTED,Third Party Payments,Private Contractor Fees,73374-SUPPORTED & OTHER ACCOMMODATION,"4,912.20",Revenue,11/08/2014,Social Care & Inclusion
WC47- 0725,REDACTED,Transfer Payments,Transfer Payments,76422-DIRECT PAYMENTS TO SOCIAL SERVICES CLIENTS,450.00,Revenue,11/08/2014,Social Care & Inclusion
WC47- 0726,REDACTED,Supplies & Services,Other Supplies & Services,62515-MISCELLANEOUS SUPPLIES,533.96,Revenue,18/08/2014,Childrens
WC47- 0727,REDACTED,Third Party Payments,Private Contractor Fees,74006-HOLIDAY/CHRISTMAS ALLOWANCE-FOSTER CARERS-OTH AGENCY PROVISION,639.40,Revenue,18/08/2014,Childrens
WC47- 0728,REDACTED,Third Party Payments,Private Contractor Fees,74006-HOLIDAY/CHRISTMAS ALLOWANCE-FOSTER CARERS-OTH AGENCY PROVISION,639.40,Revenue,04/08/2014,Childrens
WC47- 0729,REDACTED,Supplies & Services,Other Supplies & Services,64002-OTHER EXPENSES-EXPENSES,400.00,Revenue,14/08/2014,Childrens
WC47- 0730,REDACTED,Transfer Payments,Transfer Payments,76422-DIRECT PAYMENTS TO SOCIAL SERVICES CLIENTS,250.00,Revenue,11/08/2014,Social Care & Inclusion
WC47- 0731,CARTER SYNERGY LTD,Premises,Premises-Repairs & Maintenance,40005-HEATING-OP MTCE,918.50,Revenue,07/08/2014,Neighbourhood Services
WC47- 0732,CASHFRIDAY,Third Party Payments,Private Contractor Fees,73372-DOMICILIARY CARE,294.00,Revenue,06/08/2014,Social Care & Inclusion
WC47- 0733,CASHFRIDAY,Third Party Payments,Private Contractor Fees,73372-DOMICILIARY CARE,294.00,Revenue,08/08/2014,Social Care & Inclusion
WC47- 0734,CASHFRIDAY,Third Party Payments,Private Contractor Fees,73372-DOMICILIARY CARE,294.00,Revenue,08/08/2014,Social Care & Inclusion
WC47- 0735,CASHFRIDAY,Third Party Payments,Private Contractor Fees,73372-DOMICILIARY CARE,327.00,Revenue,08/08/2014,Social Care & Inclusion
WC47- 0736,CASHFRIDAY,Third Party Payments,Private Contractor Fees,73372-DOMICILIARY CARE,337.00,Revenue,08/08/2014,Social Care & Inclusion
WC47- 0737,CASHFRIDAY,Third Party Payments,Private Contractor Fees,73372-DOMICILIARY CARE,379.00,Revenue,06/08/2014,Social Care & Inclusion
WC47- 0738,CASHFRIDAY,Third Party Payments,Private Contractor Fees,73372-DOMICILIARY CARE,388.50,Revenue,08/08/2014,Social Care & Inclusion
WC47- 0739,CASHFRIDAY,Third Party Payments,Private Contractor Fees,73372-DOMICILIARY CARE,396.00,Revenue,08/08/2014,Social Care & Inclusion
WC47- 0740,CASHFRIDAY,Third Party Payments,Private Contractor Fees,73372-DOMICILIARY CARE,476.00,Revenue,08/08/2014,Social Care & Inclusion
WC47- 0741,CASHFRIDAY,Third Party Payments,Private Contractor Fees,73372-DOMICILIARY CARE,476.00,Revenue,08/08/2014,Social Care & Inclusion
WC47- 0742,CASHFRIDAY,Third Party Payments,Private Contractor Fees,73372-DOMICILIARY CARE,479.00,Revenue,08/08/2014,Social Care & Inclusion
WC47- 0743,CASHFRIDAY,Third Party Payments,Private Contractor Fees,73372-DOMICILIARY CARE,489.00,Revenue,08/08/2014,Social Care & Inclusion
WC47- 0744,CASHFRIDAY,Third Party Payments,Private Contractor Fees,73372-DOMICILIARY CARE,490.00,Revenue,08/08/2014,Social Care & Inclusion
WC47- 0745,CASHFRIDAY,Third Party Payments,Private Contractor Fees,73372-DOMICILIARY CARE,509.00,Revenue,08/08/2014,Social Care & Inclusion
WC47- 0746,CASHFRIDAY,Third Party Payments,Private Contractor Fees,73372-DOMICILIARY CARE,588.00,Revenue,08/08/2014,Social Care & Inclusion
WC47- 0747,CASHFRIDAY,Third Party Payments,Private Contractor Fees,73372-DOMICILIARY CARE,766.50,Revenue,08/08/2014,Social Care & Inclusion
WC47- 0748,CASHFRIDAY,Third Party Payments,Private Contractor Fees,73372-DOMICILIARY CARE,784.00,Revenue,08/08/2014,Social Care & Inclusion
WC47- 0749,CASHFRIDAY,Third Party Payments,Private Contractor Fees,73372-DOMICILIARY CARE,784.00,Revenue,08/08/2014,Social Care & Inclusion
WC47- 0750,CASHFRIDAY,Third Party Payments,Private Contractor Fees,73372-DOMICILIARY CARE,889.00,Revenue,08/08/2014,Social Care & Inclusion
WC47- 0751,CASHFRIDAY,Third Party Payments,Private Contractor Fees,73372-DOMICILIARY CARE,889.00,Revenue,08/08/2014,Social Care & Inclusion
WC47- 0752,CASHFRIDAY,Third Party Payments,Private Contractor Fees,73372-DOMICILIARY CARE,"1,057.00",Revenue,08/08/2014,Social Care & Inclusion
WC47- 0753,CASHFRIDAY,Third Party Payments,Private Contractor Fees,73372-DOMICILIARY CARE,"1,229.50",Revenue,08/08/2014,Social Care & Inclusion
WC47- 0754,CATCH 22 CHARITY LTD,Employees,Training,30030-EXTERNAL TRAINING,"1,940.45",Revenue,18/08/2014,Childrens
WC47- 0755,CATHEDRAL LEASING LTD,Supplies & Services,"Equip,Furniture & Materials",60539-CLEANING MATERIALS,250.89,Revenue,08/08/2014,Childrens
WC47- 0756,CATHEDRAL LEASING LTD,Supplies & Services,"Equip,Furniture & Materials",60539-CLEANING MATERIALS,291.12,Revenue,13/08/2014,Childrens
WC47- 0757,REDACTED,Transfer Payments,Transfer Payments,76422-DIRECT PAYMENTS TO SOCIAL SERVICES CLIENTS,622.68,Revenue,11/08/2014,Social Care & Inclusion
WC47- 0758,REDACTED,Transfer Payments,Transfer Payments,76422-DIRECT PAYMENTS TO SOCIAL SERVICES CLIENTS,690.48,Revenue,11/08/2014,Social Care & Inclusion
WC47- 0759,REDACTED,Third Party Payments,Private Contractor Fees,74006-HOLIDAY/CHRISTMAS ALLOWANCE-FOSTER CARERS-OTH AGENCY PROVISION,417.56,Revenue,04/08/2014,Childrens
WC47- 0760,REDACTED,Transfer Payments,Transfer Payments,76422-DIRECT PAYMENTS TO SOCIAL SERVICES CLIENTS,388.40,Revenue,11/08/2014,Social Care & Inclusion
WC47- 0761,REDACTED,Transfer Payments,Transfer Payments,76422-DIRECT PAYMENTS TO SOCIAL SERVICES CLIENTS,"1,014.26",Revenue,11/08/2014,Childrens
WC47- 0762,REDACTED,Third Party Payments,Private Contractor Fees,74006-HOLIDAY/CHRISTMAS ALLOWANCE-FOSTER CARERS-OTH AGENCY PROVISION,417.56,Revenue,04/08/2014,Childrens
WC47- 0763,CCS MEDIA LTD,Supplies & Services,Communications & Computing,63800-COMPUTER EQUIPMENT AND SUPPLIES,276.00,Revenue,20/08/2014,Resources
WC47- 0764,CENTRAL CONSTRUCTION TRAINING LTD,Third Party Payments,Grants to Other Orgs,66500-GRANTS TO OTHER ORGS,750.00,Revenue,20/08/2014,Regeneration
WC47- 0765,CENTRAL CONSTRUCTION TRAINING LTD,Third Party Payments,Grants to Other Orgs,66500-GRANTS TO OTHER ORGS,"1,500.00",Revenue,20/08/2014,Regeneration
WC47- 0766,CENTRAL CONSTRUCTION TRAINING LTD,Third Party Payments,Grants to Other Orgs,66500-GRANTS TO OTHER ORGS,"2,250.00",Revenue,20/08/2014,Regeneration
WC47- 0767,CENTRAL CONSTRUCTION TRAINING LTD,Third Party Payments,Grants to Other Orgs,66500-GRANTS TO OTHER ORGS,"2,250.00",Revenue,20/08/2014,Regeneration
WC47- 0768,CENTRO WMPTA,Transport,Hire,52000-WITH DRIVER-HIRE OF VEHICLES,738.40,Revenue,18/08/2014,Childrens
WC47- 0769,CENTRO WMPTA,Transfer Payments,Transfer Payments,76000-TRANSFER PAYMENTS - SOCIAL SERVICES CLIENTS,"1,903.50",Revenue,06/08/2014,Social Care & Inclusion
WC47- 0770,CERTAS ENERGY UK LIMITED,Transport,Other Transport,50301-FUEL-TRANSPORT RUN COSTS,587.31,Revenue,13/08/2014,Neighbourhood Services
WC47- 0771,CERTAS ENERGY UK LIMITED,Transport,Other Transport,50301-FUEL-TRANSPORT RUN COSTS,883.35,Revenue,13/08/2014,Neighbourhood Services
WC47- 0772,CERTAS ENERGY UK LIMITED,Transport,Other Transport,50301-FUEL-TRANSPORT RUN COSTS,889.65,Revenue,20/08/2014,Neighbourhood Services
WC47- 0773,CERTAS ENERGY UK LIMITED,Transport,Other Transport,50301-FUEL-TRANSPORT RUN COSTS,"1,770.89",Revenue,13/08/2014,Neighbourhood Services
WC47- 0774,CERTAS ENERGY UK LIMITED,Transport,Other Transport,50301-FUEL-TRANSPORT RUN COSTS,"20,813.27",Revenue,13/08/2014,Neighbourhood Services
WC47- 0775,CERTAS ENERGY UK LIMITED,Transport,Other Transport,50301-FUEL-TRANSPORT RUN COSTS,"20,972.00",Revenue,13/08/2014,Neighbourhood Services
WC47- 0776,CERTAS ENERGY UK LIMITED,Transport,Other Transport,50301-FUEL-TRANSPORT RUN COSTS,"20,986.10",Revenue,13/08/2014,Neighbourhood Services
WC47- 0777,CF ASSET FINANCE LIMITED,Supplies & Services,"Equip,Furniture & Materials",60009-LEASING/HIRE/RENTAL-EQUIPMENT,254.64,Revenue,19/08/2014,Resources
WC47- 0778,CF ASSET FINANCE LIMITED,Supplies & Services,"Equip,Furniture & Materials",60009-LEASING/HIRE/RENTAL-EQUIPMENT,272.86,Revenue,15/08/2014,Childrens
WC47- 0779,CF ASSET FINANCE LIMITED,Supplies & Services,"Equip,Furniture & Materials",60009-LEASING/HIRE/RENTAL-EQUIPMENT,318.83,Revenue,21/08/2014,Social Care & Inclusion
WC47- 0780,CF ASSET FINANCE LIMITED,Central,Leasing,60030-OPERATING LEASES-EQUIPMENT-CORP USE ONLY,326.84,Revenue,08/08/2014,Social Care & Inclusion
WC47- 0781,CF ASSET FINANCE LIMITED,Supplies & Services,"Equip,Furniture & Materials",60004-PHOTOGRAPHIC DEVELOPMENT/PRINTING-EQUIPMENT,326.84,Revenue,20/08/2014,Social Care & Inclusion
WC47- 0782,CF ASSET FINANCE LIMITED,Supplies & Services,"Equip,Furniture & Materials",60009-LEASING/HIRE/RENTAL-EQUIPMENT,777.27,Revenue,19/08/2014,Resources
WC47- 0783,CF CORPORATE FINANCE LTD,Supplies & Services,"Equip,Furniture & Materials",60009-LEASING/HIRE/RENTAL-EQUIPMENT,442.40,Revenue,26/08/2014,Childrens
WC47- 0784,CF CORPORATE FINANCE LTD,Supplies & Services,"Equip,Furniture & Materials",60009-LEASING/HIRE/RENTAL-EQUIPMENT,"1,290.34",Revenue,11/08/2014,Childrens
WC47- 0785,REDACTED,Transfer Payments,Transfer Payments,76422-DIRECT PAYMENTS TO SOCIAL SERVICES CLIENTS,500.00,Revenue,11/08/2014,Social Care & Inclusion
WC47- 0786,REDACTED,Transfer Payments,Transfer Payments,76422-DIRECT PAYMENTS TO SOCIAL SERVICES CLIENTS,748.00,Revenue,11/08/2014,Social Care & Inclusion
WC47- 0787,REDACTED,Third Party Payments,Private Contractor Fees,74006-HOLIDAY/CHRISTMAS ALLOWANCE-FOSTER CARERS-OTH AGENCY PROVISION,639.40,Revenue,04/08/2014,Childrens
WC47- 0788,CHARLES CODDY WALKER ACADEMY,Third Party Payments,Grants to Other Orgs,66505-OTHER-GRANTS TO OTHER ORGS,"42,942.00",Revenue,26/08/2014,Childrens
WC47- 0789,CHARLIE CATERPILLAR'S DAY NURSERY,Premises,Premises-Repairs & Maintenance,41001-GROUNDS MAINTENANCE,353.78,Revenue,20/08/2014,Childrens
WC47- 0790,CHARLIE CATERPILLAR'S DAY NURSERY,Employees,Agency,34305-AGENCY STAFF-EMPLOYEES,464.16,Revenue,11/08/2014,Childrens
WC47- 0791,CHARLIE CATERPILLAR'S DAY NURSERY,Premises,Premises-Repairs & Maintenance,41090-LANDSCAPING GROUNDS MAINTENANCE,500.00,Revenue,20/08/2014,Childrens
WC47- 0792,CHARLIE CATERPILLAR'S DAY NURSERY,Employees,Other Staff Costs,32000-MISC FEES AND EXPENSES,525.00,Revenue,18/08/2014,Childrens
WC47- 0793,CHARLIE CATERPILLAR'S DAY NURSERY,Employees,Other Staff Costs,32000-MISC FEES AND EXPENSES,546.00,Revenue,18/08/2014,Childrens
WC47- 0794,CHARLIE CATERPILLAR'S DAY NURSERY,Employees,Other Staff Costs,32000-MISC FEES AND EXPENSES,546.00,Revenue,20/08/2014,Childrens
WC47- 0795,CHARLIE CATERPILLAR'S DAY NURSERY,Employees,Agency,34305-AGENCY STAFF-EMPLOYEES,"1,346.30",Revenue,11/08/2014,Childrens
WC47- 0796,CHARLIE CATERPILLAR'S DAY NURSERY,Third Party Payments,Private Contractor Fees,73014-LEGAL FEES-PRIV CONTRACTOR FEES,"2,147.10",Revenue,12/08/2014,Childrens
WC47- 0797,CHARLIE CATERPILLAR'S DAY NURSERY,Employees,Agency,34305-AGENCY STAFF-EMPLOYEES,"2,263.96",Revenue,11/08/2014,Childrens
WC47- 0798,CHARLIE CATERPILLAR'S DAY NURSERY,Employees,Agency,34305-AGENCY STAFF-EMPLOYEES,"2,600.62",Revenue,11/08/2014,Childrens
WC47- 0799,CHARLIE CATERPILLAR'S DAY NURSERY,Employees,Agency,34305-AGENCY STAFF-EMPLOYEES,"3,754.49",Revenue,11/08/2014,Childrens
WC47- 0800,CHARLIE CATERPILLAR'S DAY NURSERY,Employees,Agency,34305-AGENCY STAFF-EMPLOYEES,"4,102.20",Revenue,11/08/2014,Childrens
WC47- 0801,CHARLIE CATERPILLAR'S DAY NURSERY,Third Party Payments,Private Contractor Fees,74031-TRADED SERVICES FOR CURRICULUM SUPPORT-OTH AGENCY PROVISION,"4,459.50",Revenue,11/08/2014,Childrens
WC47- 0802,CHARLIE CATERPILLAR'S DAY NURSERY,Third Party Payments,Grants to Other Orgs,66505-OTHER-GRANTS TO OTHER ORGS,"11,472.77",Revenue,29/08/2014,Childrens
WC47- 0803,REDACTED,Transfer Payments,Transfer Payments,76422-DIRECT PAYMENTS TO SOCIAL SERVICES CLIENTS,860.56,Revenue,11/08/2014,Childrens
WC47- 0804,CHARMEND LTD,Third Party Payments,Private Contractor Fees,73373-RESIDENTIAL & NURSING CARE PLACEMENTS,"2,140.28",Revenue,26/08/2014,Social Care & Inclusion
WC47- 0805,CHARTER CARE,Third Party Payments,Private Contractor Fees,73372-DOMICILIARY CARE,360.74,Revenue,14/08/2014,Social Care & Inclusion
WC47- 0806,CHARTER CARE,Third Party Payments,Private Contractor Fees,73372-DOMICILIARY CARE,381.96,Revenue,14/08/2014,Social Care & Inclusion
WC47- 0807,CHARTER CARE,Third Party Payments,Private Contractor Fees,73372-DOMICILIARY CARE,"32,931.21",Revenue,19/08/2014,Social Care & Inclusion
WC47- 0808,CHASE HOUSE AND PARTNER,Third Party Payments,Private Contractor Fees,73373-RESIDENTIAL & NURSING CARE PLACEMENTS,"4,445.68",Revenue,19/08/2014,Social Care & Inclusion
WC47- 0809,CHASE HOUSE AND PARTNER,Third Party Payments,Private Contractor Fees,73373-RESIDENTIAL & NURSING CARE PLACEMENTS,"4,455.44",Revenue,19/08/2014,Social Care & Inclusion
WC47- 0810,CHASE HOUSE AND PARTNER,Third Party Payments,Private Contractor Fees,73373-RESIDENTIAL & NURSING CARE PLACEMENTS,"4,562.48",Revenue,19/08/2014,Social Care & Inclusion
WC47- 0811,CHASE HOUSE AND PARTNER,Third Party Payments,Private Contractor Fees,73373-RESIDENTIAL & NURSING CARE PLACEMENTS,"4,753.76",Revenue,19/08/2014,Social Care & Inclusion
WC47- 0812,CHASEVIEW CARE HOME,Third Party Payments,Private Contractor Fees,73373-RESIDENTIAL & NURSING CARE PLACEMENTS,"1,600.71",Revenue,26/08/2014,Social Care & Inclusion
WC47- 0813,CHASEVIEW CARE HOME,Third Party Payments,Private Contractor Fees,73373-RESIDENTIAL & NURSING CARE PLACEMENTS,"1,654.07",Revenue,26/08/2014,Social Care & Inclusion
WC47- 0814,CHASEVIEW CARE HOME,Third Party Payments,Private Contractor Fees,73373-RESIDENTIAL & NURSING CARE PLACEMENTS,"1,654.07",Revenue,26/08/2014,Social Care & Inclusion
WC47- 0815,CHEMTECH WASTE MANAGEMENT LTD#1,Third Party Payments,Private Contractor Fees,73029-HAZARDOUS WASTE REMOVAL/DISPOSAL-PRIV CONTRACTOR FEES,-450.00,Revenue,01/08/2014,Neighbourhood Services
WC47- 0816,CHERISH HOME CARE,Third Party Payments,Private Contractor Fees,73372-DOMICILIARY CARE,"1,374.24",Revenue,21/08/2014,Social Care & Inclusion
WC47- 0817,CHERISH HOME CARE,Third Party Payments,Private Contractor Fees,73372-DOMICILIARY CARE,"1,411.72",Revenue,21/08/2014,Social Care & Inclusion
WC47- 0818,REDACTED,Transfer Payments,Transfer Payments,76422-DIRECT PAYMENTS TO SOCIAL SERVICES CLIENTS,450.00,Revenue,11/08/2014,Social Care & Inclusion
WC47- 0819,REDACTED,Transfer Payments,Transfer Payments,76422-DIRECT PAYMENTS TO SOCIAL SERVICES CLIENTS,"1,601.60",Revenue,11/08/2014,Social Care & Inclusion
WC47- 0820,CHILD POVERTY ACTION GROUP,Supplies & Services,"Equip,Furniture & Materials",69400-REFERENCE BOOKS,630.00,Revenue,22/08/2014,Resources
WC47- 0821,CHILDCARE BUREAU LTD,Third Party Payments,Private Contractor Fees,74037-INDEPENDENT FOSTER CARE-OTH AGENCY PROVISION,"3,733.52",Revenue,14/08/2014,Childrens
WC47- 0822,CHILDCARE BUREAU LTD,Third Party Payments,Private Contractor Fees,74037-INDEPENDENT FOSTER CARE-OTH AGENCY PROVISION,"3,809.68",Revenue,14/08/2014,Childrens
WC47- 0823,CHILDLINK,Transport,Car Allowances,53001-OTHER/VOLUNTEERS-CAR ALLOWANCES,3.06,Revenue,15/08/2014,Childrens
WC47- 0824,CHILDLINK,Transport,Car Allowances,53001-OTHER/VOLUNTEERS-CAR ALLOWANCES,3.06,Revenue,19/08/2014,Childrens
WC47- 0825,CHILDLINK,Transport,Car Allowances,53001-OTHER/VOLUNTEERS-CAR ALLOWANCES,3.06,Revenue,27/08/2014,Childrens
WC47- 0826,CHILDLINK,Transport,Car Allowances,53001-OTHER/VOLUNTEERS-CAR ALLOWANCES,4.33,Revenue,11/08/2014,Childrens
WC47- 0827,CHILDLINK,Supplies & Services,Other Supplies & Services,63128-HIRE OF ROOM-SERVICES-FEES,11.47,Revenue,27/08/2014,Childrens
WC47- 0828,CHILDLINK,Supplies & Services,Other Supplies & Services,63128-HIRE OF ROOM-SERVICES-FEES,13.63,Revenue,11/08/2014,Childrens
WC47- 0829,CHILDLINK,Supplies & Services,Other Supplies & Services,63128-HIRE OF ROOM-SERVICES-FEES,13.91,Revenue,19/08/2014,Childrens
WC47- 0830,CHILDLINK,Supplies & Services,Other Supplies & Services,63128-HIRE OF ROOM-SERVICES-FEES,13.91,Revenue,27/08/2014,Childrens
WC47- 0831,CHILDLINK,Transport,Car Allowances,53001-OTHER/VOLUNTEERS-CAR ALLOWANCES,14.53,Revenue,11/08/2014,Childrens
WC47- 0832,CHILDLINK,Supplies & Services,Other Supplies & Services,63128-HIRE OF ROOM-SERVICES-FEES,14.59,Revenue,15/08/2014,Childrens
WC47- 0833,CHILDLINK,Transport,Car Allowances,53001-OTHER/VOLUNTEERS-CAR ALLOWANCES,14.90,Revenue,15/08/2014,Childrens
WC47- 0834,CHILDLINK,Transport,Car Allowances,53001-OTHER/VOLUNTEERS-CAR ALLOWANCES,17.21,Revenue,27/08/2014,Childrens
WC47- 0835,CHILDLINK,Transport,Car Allowances,53001-OTHER/VOLUNTEERS-CAR ALLOWANCES,22.55,Revenue,11/08/2014,Childrens
WC47- 0836,CHILDLINK,Transport,Car Allowances,53001-OTHER/VOLUNTEERS-CAR ALLOWANCES,24.01,Revenue,15/08/2014,Childrens
WC47- 0837,CHILDLINK,Transport,Car Allowances,53001-OTHER/VOLUNTEERS-CAR ALLOWANCES,28.40,Revenue,11/08/2014,Childrens
WC47- 0838,CHILDLINK,Transport,Car Allowances,53003-OTHER-TRAVEL ALLOWANCES,28.69,Revenue,27/08/2014,Childrens
WC47- 0839,CHILDLINK,Transport,Car Allowances,53001-OTHER/VOLUNTEERS-CAR ALLOWANCES,30.28,Revenue,27/08/2014,Childrens
WC47- 0840,CHILDLINK,Transport,Car Allowances,53001-OTHER/VOLUNTEERS-CAR ALLOWANCES,32.42,Revenue,15/08/2014,Childrens
WC47- 0841,CHILDLINK,Transport,Car Allowances,53001-OTHER/VOLUNTEERS-CAR ALLOWANCES,39.96,Revenue,19/08/2014,Childrens
WC47- 0842,CHILDLINK,Transport,Car Allowances,53003-OTHER-TRAVEL ALLOWANCES,40.72,Revenue,11/08/2014,Childrens
WC47- 0843,CHILDLINK,Transport,Car Allowances,53003-OTHER-TRAVEL ALLOWANCES,46.90,Revenue,15/08/2014,Childrens
WC47- 0844,CHILDLINK,Transport,Car Allowances,53003-OTHER-TRAVEL ALLOWANCES,46.90,Revenue,19/08/2014,Childrens
WC47- 0845,CHILDLINK,Transport,Car Allowances,53003-OTHER-TRAVEL ALLOWANCES,46.90,Revenue,27/08/2014,Childrens
WC47- 0846,CHILDLINK,Transport,Car Allowances,53003-OTHER-TRAVEL ALLOWANCES,54.67,Revenue,27/08/2014,Childrens
WC47- 0847,CHILDLINK,Third Party Payments,Private Contractor Fees,76003-SECTION 34 (CONTACT),55.32,Revenue,15/08/2014,Childrens
WC47- 0848,CHILDLINK,Third Party Payments,Private Contractor Fees,76003-SECTION 34 (CONTACT),55.32,Revenue,19/08/2014,Childrens
WC47- 0849,CHILDLINK,Third Party Payments,Private Contractor Fees,76003-SECTION 34 (CONTACT),55.32,Revenue,27/08/2014,Childrens
WC47- 0850,CHILDLINK,Transport,Car Allowances,53001-OTHER/VOLUNTEERS-CAR ALLOWANCES,56.43,Revenue,11/08/2014,Childrens
WC47- 0851,CHILDLINK,Transport,Car Allowances,53001-OTHER/VOLUNTEERS-CAR ALLOWANCES,57.33,Revenue,08/08/2014,Childrens
WC47- 0852,CHILDLINK,Transport,Car Allowances,53001-OTHER/VOLUNTEERS-CAR ALLOWANCES,57.59,Revenue,19/08/2014,Childrens
WC47- 0853,CHILDLINK,Transport,Car Allowances,53001-OTHER/VOLUNTEERS-CAR ALLOWANCES,57.59,Revenue,27/08/2014,Childrens
WC47- 0854,CHILDLINK,Transport,Car Allowances,53003-OTHER-TRAVEL ALLOWANCES,57.93,Revenue,08/08/2014,Childrens
WC47- 0855,CHILDLINK,Supplies & Services,Other Supplies & Services,63128-HIRE OF ROOM-SERVICES-FEES,58.46,Revenue,19/08/2014,Childrens
WC47- 0856,CHILDLINK,Transport,Car Allowances,53003-OTHER-TRAVEL ALLOWANCES,58.54,Revenue,15/08/2014,Childrens
WC47- 0857,CHILDLINK,Supplies & Services,Other Supplies & Services,63128-HIRE OF ROOM-SERVICES-FEES,58.78,Revenue,19/08/2014,Childrens
WC47- 0858,CHILDLINK,Transport,Car Allowances,53001-OTHER/VOLUNTEERS-CAR ALLOWANCES,60.41,Revenue,15/08/2014,Childrens
WC47- 0859,CHILDLINK,Supplies & Services,Other Supplies & Services,63128-HIRE OF ROOM-SERVICES-FEES,63.40,Revenue,19/08/2014,Childrens
WC47- 0860,CHILDLINK,Transport,Car Allowances,53001-OTHER/VOLUNTEERS-CAR ALLOWANCES,63.49,Revenue,19/08/2014,Childrens
WC47- 0861,CHILDLINK,Transport,Car Allowances,53001-OTHER/VOLUNTEERS-CAR ALLOWANCES,64.45,Revenue,11/08/2014,Childrens
WC47- 0862,CHILDLINK,Transport,Car Allowances,53001-OTHER/VOLUNTEERS-CAR ALLOWANCES,64.77,Revenue,15/08/2014,Childrens
WC47- 0863,CHILDLINK,Supplies & Services,Other Supplies & Services,63128-HIRE OF ROOM-SERVICES-FEES,64.80,Revenue,27/08/2014,Childrens
WC47- 0864,CHILDLINK,Transport,Car Allowances,53003-OTHER-TRAVEL ALLOWANCES,65.02,Revenue,15/08/2014,Childrens
WC47- 0865,CHILDLINK,Supplies & Services,Other Supplies & Services,63128-HIRE OF ROOM-SERVICES-FEES,65.13,Revenue,27/08/2014,Childrens
WC47- 0866,CHILDLINK,Transport,Car Allowances,53001-OTHER/VOLUNTEERS-CAR ALLOWANCES,65.17,Revenue,19/08/2014,Childrens
WC47- 0867,CHILDLINK,Transport,Car Allowances,53001-OTHER/VOLUNTEERS-CAR ALLOWANCES,65.22,Revenue,27/08/2014,Childrens
WC47- 0868,CHILDLINK,Transport,Car Allowances,53001-OTHER/VOLUNTEERS-CAR ALLOWANCES,65.41,Revenue,19/08/2014,Childrens
WC47- 0869,CHILDLINK,Supplies & Services,Other Supplies & Services,63128-HIRE OF ROOM-SERVICES-FEES,66.28,Revenue,11/08/2014,Childrens
WC47- 0870,CHILDLINK,Transport,Car Allowances,53003-OTHER-TRAVEL ALLOWANCES,66.31,Revenue,11/08/2014,Childrens
WC47- 0871,CHILDLINK,Supplies & Services,Other Supplies & Services,63128-HIRE OF ROOM-SERVICES-FEES,66.61,Revenue,15/08/2014,Childrens
WC47- 0872,CHILDLINK,Supplies & Services,Other Supplies & Services,63128-HIRE OF ROOM-SERVICES-FEES,67.27,Revenue,19/08/2014,Childrens
WC47- 0873,CHILDLINK,Transport,Car Allowances,53001-OTHER/VOLUNTEERS-CAR ALLOWANCES,67.46,Revenue,11/08/2014,Childrens
WC47- 0874,CHILDLINK,Transport,Car Allowances,53001-OTHER/VOLUNTEERS-CAR ALLOWANCES,67.83,Revenue,19/08/2014,Childrens
WC47- 0875,CHILDLINK,Transport,Car Allowances,53001-OTHER/VOLUNTEERS-CAR ALLOWANCES,68.65,Revenue,27/08/2014,Childrens
WC47- 0876,CHILDLINK,Transport,Car Allowances,53003-OTHER-TRAVEL ALLOWANCES,68.79,Revenue,11/08/2014,Childrens
WC47- 0877,CHILDLINK,Transport,Car Allowances,53003-OTHER-TRAVEL ALLOWANCES,68.97,Revenue,11/08/2014,Childrens
WC47- 0878,CHILDLINK,Transport,Car Allowances,53003-OTHER-TRAVEL ALLOWANCES,69.13,Revenue,15/08/2014,Childrens
WC47- 0879,CHILDLINK,Transport,Car Allowances,53003-OTHER-TRAVEL ALLOWANCES,69.82,Revenue,19/08/2014,Childrens
WC47- 0880,CHILDLINK,Supplies & Services,Other Supplies & Services,63128-HIRE OF ROOM-SERVICES-FEES,70.60,Revenue,27/08/2014,Childrens
WC47- 0881,CHILDLINK,Transport,Car Allowances,53003-OTHER-TRAVEL ALLOWANCES,72.15,Revenue,19/08/2014,Childrens
WC47- 0882,CHILDLINK,Transport,Car Allowances,53003-OTHER-TRAVEL ALLOWANCES,73.28,Revenue,27/08/2014,Childrens
WC47- 0883,CHILDLINK,Transport,Car Allowances,53001-OTHER/VOLUNTEERS-CAR ALLOWANCES,73.75,Revenue,08/08/2014,Childrens
WC47- 0884,CHILDLINK,Supplies & Services,Other Supplies & Services,63128-HIRE OF ROOM-SERVICES-FEES,74.36,Revenue,08/08/2014,Childrens
WC47- 0885,CHILDLINK,Transport,Car Allowances,53001-OTHER/VOLUNTEERS-CAR ALLOWANCES,75.19,Revenue,11/08/2014,Childrens
WC47- 0886,CHILDLINK,Supplies & Services,Other Supplies & Services,63128-HIRE OF ROOM-SERVICES-FEES,75.85,Revenue,08/08/2014,Childrens
WC47- 0887,CHILDLINK,Transport,Car Allowances,53003-OTHER-TRAVEL ALLOWANCES,76.04,Revenue,19/08/2014,Childrens
WC47- 0888,CHILDLINK,Transport,Car Allowances,53001-OTHER/VOLUNTEERS-CAR ALLOWANCES,76.42,Revenue,26/08/2014,Childrens
WC47- 0889,CHILDLINK,Transport,Car Allowances,53001-OTHER/VOLUNTEERS-CAR ALLOWANCES,76.56,Revenue,11/08/2014,Childrens
WC47- 0890,CHILDLINK,Transport,Car Allowances,53003-OTHER-TRAVEL ALLOWANCES,76.92,Revenue,11/08/2014,Childrens
WC47- 0891,CHILDLINK,Transport,Car Allowances,53003-OTHER-TRAVEL ALLOWANCES,77.37,Revenue,11/08/2014,Childrens
WC47- 0892,CHILDLINK,Supplies & Services,Other Supplies & Services,63128-HIRE OF ROOM-SERVICES-FEES,77.40,Revenue,11/08/2014,Childrens
WC47- 0893,CHILDLINK,Supplies & Services,Other Supplies & Services,63128-HIRE OF ROOM-SERVICES-FEES,77.58,Revenue,15/08/2014,Childrens
WC47- 0894,CHILDLINK,Transport,Car Allowances,53001-OTHER/VOLUNTEERS-CAR ALLOWANCES,77.96,Revenue,27/08/2014,Childrens
WC47- 0895,CHILDLINK,Third Party Payments,Private Contractor Fees,76003-SECTION 34 (CONTACT),78.22,Revenue,11/08/2014,Childrens
WC47- 0896,CHILDLINK,Transport,Car Allowances,53003-OTHER-TRAVEL ALLOWANCES,78.72,Revenue,08/08/2014,Childrens
WC47- 0897,CHILDLINK,Transport,Car Allowances,53001-OTHER/VOLUNTEERS-CAR ALLOWANCES,79.16,Revenue,27/08/2014,Childrens
WC47- 0898,CHILDLINK,Transport,Car Allowances,53003-OTHER-TRAVEL ALLOWANCES,80.13,Revenue,27/08/2014,Childrens
WC47- 0899,CHILDLINK,Third Party Payments,Private Contractor Fees,76003-SECTION 34 (CONTACT),85.29,Revenue,19/08/2014,Childrens
WC47- 0900,CHILDLINK,Supplies & Services,Other Supplies & Services,63128-HIRE OF ROOM-SERVICES-FEES,86.75,Revenue,11/08/2014,Childrens
WC47- 0901,CHILDLINK,Supplies & Services,Other Supplies & Services,63128-HIRE OF ROOM-SERVICES-FEES,86.86,Revenue,08/08/2014,Childrens
WC47- 0902,CHILDLINK,Transport,Car Allowances,53001-OTHER/VOLUNTEERS-CAR ALLOWANCES,86.87,Revenue,11/08/2014,Childrens
WC47- 0903,CHILDLINK,Transport,Car Allowances,53001-OTHER/VOLUNTEERS-CAR ALLOWANCES,87.40,Revenue,08/08/2014,Childrens
WC47- 0904,CHILDLINK,Supplies & Services,Other Supplies & Services,63128-HIRE OF ROOM-SERVICES-FEES,92.57,Revenue,15/08/2014,Childrens
WC47- 0905,CHILDLINK,Transport,Car Allowances,53001-OTHER/VOLUNTEERS-CAR ALLOWANCES,92.70,Revenue,15/08/2014,Childrens
WC47- 0906,CHILDLINK,Third Party Payments,Private Contractor Fees,76003-SECTION 34 (CONTACT),92.91,Revenue,27/08/2014,Childrens
WC47- 0907,CHILDLINK,Third Party Payments,Private Contractor Fees,76003-SECTION 34 (CONTACT),97.20,Revenue,11/08/2014,Childrens
WC47- 0908,CHILDLINK,Third Party Payments,Private Contractor Fees,76003-SECTION 34 (CONTACT),99.20,Revenue,19/08/2014,Childrens
WC47- 0909,CHILDLINK,Third Party Payments,Private Contractor Fees,76003-SECTION 34 (CONTACT),99.20,Revenue,27/08/2014,Childrens
WC47- 0910,CHILDLINK,Transport,Car Allowances,53001-OTHER/VOLUNTEERS-CAR ALLOWANCES,100.44,Revenue,19/08/2014,Childrens
WC47- 0911,CHILDLINK,Transport,Car Allowances,53003-OTHER-TRAVEL ALLOWANCES,101.83,Revenue,11/08/2014,Childrens
WC47- 0912,CHILDLINK,Transport,Car Allowances,53003-OTHER-TRAVEL ALLOWANCES,102.57,Revenue,08/08/2014,Childrens
WC47- 0913,CHILDLINK,Transport,Car Allowances,53003-OTHER-TRAVEL ALLOWANCES,103.23,Revenue,19/08/2014,Childrens
WC47- 0914,CHILDLINK,Third Party Payments,Private Contractor Fees,76003-SECTION 34 (CONTACT),104.05,Revenue,15/08/2014,Childrens
WC47- 0915,CHILDLINK,Transport,Car Allowances,53003-OTHER-TRAVEL ALLOWANCES,104.98,Revenue,19/08/2014,Childrens
WC47- 0916,CHILDLINK,Transport,Car Allowances,53003-OTHER-TRAVEL ALLOWANCES,106.04,Revenue,27/08/2014,Childrens
WC47- 0917,CHILDLINK,Transport,Car Allowances,53001-OTHER/VOLUNTEERS-CAR ALLOWANCES,110.73,Revenue,27/08/2014,Childrens
WC47- 0918,CHILDLINK,Transport,Car Allowances,53001-OTHER/VOLUNTEERS-CAR ALLOWANCES,111.29,Revenue,11/08/2014,Childrens
WC47- 0919,CHILDLINK,Transport,Car Allowances,53001-OTHER/VOLUNTEERS-CAR ALLOWANCES,114.67,Revenue,27/08/2014,Childrens
WC47- 0920,CHILDLINK,Transport,Car Allowances,53003-OTHER-TRAVEL ALLOWANCES,118.05,Revenue,26/08/2014,Childrens
WC47- 0921,CHILDLINK,Transport,Car Allowances,53001-OTHER/VOLUNTEERS-CAR ALLOWANCES,119.02,Revenue,15/08/2014,Childrens
WC47- 0922,CHILDLINK,Transport,Car Allowances,53001-OTHER/VOLUNTEERS-CAR ALLOWANCES,119.42,Revenue,19/08/2014,Childrens
WC47- 0923,CHILDLINK,Third Party Payments,Private Contractor Fees,76003-SECTION 34 (CONTACT),122.58,Revenue,11/08/2014,Childrens
WC47- 0924,CHILDLINK,Third Party Payments,Private Contractor Fees,76003-SECTION 34 (CONTACT),123.19,Revenue,15/08/2014,Childrens
WC47- 0925,CHILDLINK,Third Party Payments,Private Contractor Fees,76003-SECTION 34 (CONTACT),124.40,Revenue,19/08/2014,Childrens
WC47- 0926,CHILDLINK,Transport,Car Allowances,53001-OTHER/VOLUNTEERS-CAR ALLOWANCES,124.47,Revenue,15/08/2014,Childrens
WC47- 0927,CHILDLINK,Third Party Payments,Private Contractor Fees,76003-SECTION 34 (CONTACT),124.88,Revenue,08/08/2014,Childrens
WC47- 0928,CHILDLINK,Transport,Car Allowances,53001-OTHER/VOLUNTEERS-CAR ALLOWANCES,126.95,Revenue,19/08/2014,Childrens
WC47- 0929,CHILDLINK,Transport,Car Allowances,53001-OTHER/VOLUNTEERS-CAR ALLOWANCES,127.07,Revenue,08/08/2014,Childrens
WC47- 0930,CHILDLINK,Third Party Payments,Private Contractor Fees,76003-SECTION 34 (CONTACT),130.57,Revenue,27/08/2014,Childrens
WC47- 0931,CHILDLINK,Transport,Car Allowances,53003-OTHER-TRAVEL ALLOWANCES,130.60,Revenue,11/08/2014,Childrens
WC47- 0932,CHILDLINK,Transport,Car Allowances,53001-OTHER/VOLUNTEERS-CAR ALLOWANCES,132.27,Revenue,11/08/2014,Childrens
WC47- 0933,CHILDLINK,Transport,Car Allowances,53001-OTHER/VOLUNTEERS-CAR ALLOWANCES,132.58,Revenue,15/08/2014,Childrens
WC47- 0934,CHILDLINK,Transport,Car Allowances,53001-OTHER/VOLUNTEERS-CAR ALLOWANCES,133.13,Revenue,26/08/2014,Childrens
WC47- 0935,CHILDLINK,Transport,Car Allowances,53003-OTHER-TRAVEL ALLOWANCES,133.51,Revenue,27/08/2014,Childrens
WC47- 0936,CHILDLINK,Transport,Car Allowances,53003-OTHER-TRAVEL ALLOWANCES,133.77,Revenue,15/08/2014,Childrens
WC47- 0937,CHILDLINK,Transport,Car Allowances,53003-OTHER-TRAVEL ALLOWANCES,136.44,Revenue,19/08/2014,Childrens
WC47- 0938,CHILDLINK,Transport,Car Allowances,53003-OTHER-TRAVEL ALLOWANCES,138.58,Revenue,15/08/2014,Childrens
WC47- 0939,CHILDLINK,Transport,Car Allowances,53003-OTHER-TRAVEL ALLOWANCES,138.75,Revenue,08/08/2014,Childrens
WC47- 0940,CHILDLINK,Transport,Car Allowances,53003-OTHER-TRAVEL ALLOWANCES,139.04,Revenue,19/08/2014,Childrens
WC47- 0941,CHILDLINK,Transport,Car Allowances,53003-OTHER-TRAVEL ALLOWANCES,139.63,Revenue,19/08/2014,Childrens
WC47- 0942,CHILDLINK,Third Party Payments,Private Contractor Fees,76003-SECTION 34 (CONTACT),140.28,Revenue,08/08/2014,Childrens
WC47- 0943,CHILDLINK,Third Party Payments,Private Contractor Fees,76003-SECTION 34 (CONTACT),141.04,Revenue,08/08/2014,Childrens
WC47- 0944,CHILDLINK,Transport,Car Allowances,53003-OTHER-TRAVEL ALLOWANCES,141.23,Revenue,11/08/2014,Childrens
WC47- 0945,CHILDLINK,Transport,Car Allowances,53003-OTHER-TRAVEL ALLOWANCES,141.46,Revenue,15/08/2014,Childrens
WC47- 0946,CHILDLINK,Transport,Car Allowances,53003-OTHER-TRAVEL ALLOWANCES,143.09,Revenue,26/08/2014,Childrens
WC47- 0947,CHILDLINK,Transport,Car Allowances,53003-OTHER-TRAVEL ALLOWANCES,143.54,Revenue,11/08/2014,Childrens
WC47- 0948,CHILDLINK,Transport,Car Allowances,53003-OTHER-TRAVEL ALLOWANCES,144.42,Revenue,11/08/2014,Childrens
WC47- 0949,CHILDLINK,Third Party Payments,Private Contractor Fees,76003-SECTION 34 (CONTACT),144.65,Revenue,08/08/2014,Childrens
WC47- 0950,CHILDLINK,Transport,Car Allowances,53003-OTHER-TRAVEL ALLOWANCES,144.76,Revenue,15/08/2014,Childrens
WC47- 0951,CHILDLINK,Supplies & Services,Other Supplies & Services,63128-HIRE OF ROOM-SERVICES-FEES,145.02,Revenue,15/08/2014,Childrens
WC47- 0952,CHILDLINK,Transport,Car Allowances,53003-OTHER-TRAVEL ALLOWANCES,146.50,Revenue,19/08/2014,Childrens
WC47- 0953,CHILDLINK,Transport,Car Allowances,53003-OTHER-TRAVEL ALLOWANCES,146.50,Revenue,27/08/2014,Childrens
WC47- 0954,CHILDLINK,Third Party Payments,Private Contractor Fees,76003-SECTION 34 (CONTACT),147.46,Revenue,15/08/2014,Childrens
WC47- 0955,CHILDLINK,Transport,Car Allowances,53001-OTHER/VOLUNTEERS-CAR ALLOWANCES,148.44,Revenue,08/08/2014,Childrens
WC47- 0956,CHILDLINK,Third Party Payments,Private Contractor Fees,76003-SECTION 34 (CONTACT),150.41,Revenue,19/08/2014,Childrens
WC47- 0957,CHILDLINK,Transport,Car Allowances,53003-OTHER-TRAVEL ALLOWANCES,150.70,Revenue,15/08/2014,Childrens
WC47- 0958,CHILDLINK,Supplies & Services,Other Supplies & Services,63128-HIRE OF ROOM-SERVICES-FEES,153.50,Revenue,08/08/2014,Childrens
WC47- 0959,CHILDLINK,Transport,Car Allowances,53003-OTHER-TRAVEL ALLOWANCES,153.65,Revenue,15/08/2014,Childrens
WC47- 0960,CHILDLINK,Supplies & Services,Other Supplies & Services,63128-HIRE OF ROOM-SERVICES-FEES,157.07,Revenue,11/08/2014,Childrens
WC47- 0961,CHILDLINK,Third Party Payments,Private Contractor Fees,76003-SECTION 34 (CONTACT),157.73,Revenue,26/08/2014,Childrens
WC47- 0962,CHILDLINK,Third Party Payments,Private Contractor Fees,76003-SECTION 34 (CONTACT),158.88,Revenue,08/08/2014,Childrens
WC47- 0963,CHILDLINK,Third Party Payments,Private Contractor Fees,76003-SECTION 34 (CONTACT),159.01,Revenue,11/08/2014,Childrens
WC47- 0964,CHILDLINK,Transport,Car Allowances,53001-OTHER/VOLUNTEERS-CAR ALLOWANCES,161.67,Revenue,15/08/2014,Childrens
WC47- 0965,CHILDLINK,Transport,Car Allowances,53003-OTHER-TRAVEL ALLOWANCES,162.08,Revenue,08/08/2014,Childrens
WC47- 0966,CHILDLINK,Third Party Payments,Private Contractor Fees,76003-SECTION 34 (CONTACT),162.11,Revenue,15/08/2014,Childrens
WC47- 0967,CHILDLINK,Third Party Payments,Private Contractor Fees,76003-SECTION 34 (CONTACT),165.62,Revenue,11/08/2014,Childrens
WC47- 0968,CHILDLINK,Third Party Payments,Private Contractor Fees,76003-SECTION 34 (CONTACT),165.67,Revenue,11/08/2014,Childrens
WC47- 0969,CHILDLINK,Third Party Payments,Private Contractor Fees,76003-SECTION 34 (CONTACT),168.35,Revenue,11/08/2014,Childrens
WC47- 0970,CHILDLINK,Transport,Car Allowances,53001-OTHER/VOLUNTEERS-CAR ALLOWANCES,171.12,Revenue,08/08/2014,Childrens
WC47- 0971,CHILDLINK,Transport,Car Allowances,53001-OTHER/VOLUNTEERS-CAR ALLOWANCES,175.10,Revenue,11/08/2014,Childrens
WC47- 0972,CHILDLINK,Transport,Car Allowances,53001-OTHER/VOLUNTEERS-CAR ALLOWANCES,178.13,Revenue,26/08/2014,Childrens
WC47- 0973,CHILDLINK,Third Party Payments,Private Contractor Fees,76003-SECTION 34 (CONTACT),179.63,Revenue,15/08/2014,Childrens
WC47- 0974,CHILDLINK,Third Party Payments,Private Contractor Fees,76003-SECTION 34 (CONTACT),186.72,Revenue,26/08/2014,Childrens
WC47- 0975,CHILDLINK,Third Party Payments,Private Contractor Fees,76003-SECTION 34 (CONTACT),188.37,Revenue,11/08/2014,Childrens
WC47- 0976,CHILDLINK,Third Party Payments,Private Contractor Fees,76003-SECTION 34 (CONTACT),188.53,Revenue,19/08/2014,Childrens
WC47- 0977,CHILDLINK,Transport,Car Allowances,53003-OTHER-TRAVEL ALLOWANCES,188.63,Revenue,15/08/2014,Childrens
WC47- 0978,CHILDLINK,Third Party Payments,Private Contractor Fees,76003-SECTION 34 (CONTACT),190.27,Revenue,11/08/2014,Childrens
WC47- 0979,CHILDLINK,Third Party Payments,Private Contractor Fees,76003-SECTION 34 (CONTACT),193.93,Revenue,27/08/2014,Childrens
WC47- 0980,CHILDLINK,Third Party Payments,Private Contractor Fees,76003-SECTION 34 (CONTACT),195.07,Revenue,15/08/2014,Childrens
WC47- 0981,CHILDLINK,Third Party Payments,Private Contractor Fees,76003-SECTION 34 (CONTACT),195.68,Revenue,15/08/2014,Childrens
WC47- 0982,CHILDLINK,Transport,Car Allowances,53003-OTHER-TRAVEL ALLOWANCES,199.66,Revenue,08/08/2014,Childrens
WC47- 0983,CHILDLINK,Transport,Car Allowances,53001-OTHER/VOLUNTEERS-CAR ALLOWANCES,201.28,Revenue,08/08/2014,Childrens
WC47- 0984,CHILDLINK,Transport,Car Allowances,53003-OTHER-TRAVEL ALLOWANCES,204.30,Revenue,11/08/2014,Childrens
WC47- 0985,CHILDLINK,Third Party Payments,Private Contractor Fees,76003-SECTION 34 (CONTACT),207.12,Revenue,08/08/2014,Childrens
WC47- 0986,CHILDLINK,Transport,Car Allowances,53001-OTHER/VOLUNTEERS-CAR ALLOWANCES,208.34,Revenue,08/08/2014,Childrens
WC47- 0987,CHILDLINK,Transport,Car Allowances,53001-OTHER/VOLUNTEERS-CAR ALLOWANCES,210.70,Revenue,19/08/2014,Childrens
WC47- 0988,CHILDLINK,Third Party Payments,Private Contractor Fees,76003-SECTION 34 (CONTACT),211.93,Revenue,11/08/2014,Childrens
WC47- 0989,CHILDLINK,Transport,Car Allowances,53003-OTHER-TRAVEL ALLOWANCES,212.78,Revenue,08/08/2014,Childrens
WC47- 0990,CHILDLINK,Transport,Car Allowances,53001-OTHER/VOLUNTEERS-CAR ALLOWANCES,213.47,Revenue,15/08/2014,Childrens
WC47- 0991,CHILDLINK,Transport,Car Allowances,53003-OTHER-TRAVEL ALLOWANCES,214.54,Revenue,11/08/2014,Childrens
WC47- 0992,CHILDLINK,Transport,Car Allowances,53001-OTHER/VOLUNTEERS-CAR ALLOWANCES,215.19,Revenue,11/08/2014,Childrens
WC47- 0993,CHILDLINK,Third Party Payments,Private Contractor Fees,76003-SECTION 34 (CONTACT),216.12,Revenue,27/08/2014,Childrens
WC47- 0994,CHILDLINK,Third Party Payments,Private Contractor Fees,76003-SECTION 34 (CONTACT),219.28,Revenue,26/08/2014,Childrens
WC47- 0995,CHILDLINK,Third Party Payments,Private Contractor Fees,76003-SECTION 34 (CONTACT),220.87,Revenue,19/08/2014,Childrens
WC47- 0996,CHILDLINK,Third Party Payments,Private Contractor Fees,76003-SECTION 34 (CONTACT),223.77,Revenue,15/08/2014,Childrens
WC47- 0997,CHILDLINK,Third Party Payments,Private Contractor Fees,76003-SECTION 34 (CONTACT),224.30,Revenue,15/08/2014,Childrens
WC47- 0998,CHILDLINK,Third Party Payments,Private Contractor Fees,76003-SECTION 34 (CONTACT),225.04,Revenue,19/08/2014,Childrens
WC47- 0999,CHILDLINK,Third Party Payments,Private Contractor Fees,76003-SECTION 34 (CONTACT),227.13,Revenue,27/08/2014,Childrens
WC47- 1000,CHILDLINK,Third Party Payments,Private Contractor Fees,76003-SECTION 34 (CONTACT),230.78,Revenue,11/08/2014,Childrens
WC47- 1001,CHILDLINK,Transport,Car Allowances,53003-OTHER-TRAVEL ALLOWANCES,234.87,Revenue,08/08/2014,Childrens
WC47- 1002,CHILDLINK,Third Party Payments,Private Contractor Fees,76003-SECTION 34 (CONTACT),236.17,Revenue,11/08/2014,Childrens
WC47- 1003,CHILDLINK,Third Party Payments,Private Contractor Fees,76003-SECTION 34 (CONTACT),238.60,Revenue,26/08/2014,Childrens
WC47- 1004,CHILDLINK,Third Party Payments,Private Contractor Fees,76003-SECTION 34 (CONTACT),239.10,Revenue,27/08/2014,Childrens
WC47- 1005,CHILDLINK,Third Party Payments,Private Contractor Fees,76003-SECTION 34 (CONTACT),241.58,Revenue,19/08/2014,Childrens
WC47- 1006,CHILDLINK,Third Party Payments,Private Contractor Fees,76003-SECTION 34 (CONTACT),242.12,Revenue,15/08/2014,Childrens
WC47- 1007,CHILDLINK,Third Party Payments,Private Contractor Fees,76003-SECTION 34 (CONTACT),244.33,Revenue,11/08/2014,Childrens
WC47- 1008,CHILDLINK,Transport,Car Allowances,53003-OTHER-TRAVEL ALLOWANCES,246.70,Revenue,26/08/2014,Childrens
WC47- 1009,CHILDLINK,Third Party Payments,Private Contractor Fees,76003-SECTION 34 (CONTACT),247.08,Revenue,19/08/2014,Childrens
WC47- 1010,CHILDLINK,Third Party Payments,Private Contractor Fees,76003-SECTION 34 (CONTACT),253.81,Revenue,27/08/2014,Childrens
WC47- 1011,CHILDLINK,Transport,Car Allowances,53003-OTHER-TRAVEL ALLOWANCES,255.51,Revenue,27/08/2014,Childrens
WC47- 1012,CHILDLINK,Transport,Car Allowances,53001-OTHER/VOLUNTEERS-CAR ALLOWANCES,264.13,Revenue,26/08/2014,Childrens
WC47- 1013,CHILDLINK,Transport,Car Allowances,53001-OTHER/VOLUNTEERS-CAR ALLOWANCES,264.68,Revenue,27/08/2014,Childrens
WC47- 1014,CHILDLINK,Transport,Car Allowances,53003-OTHER-TRAVEL ALLOWANCES,264.87,Revenue,26/08/2014,Childrens
WC47- 1015,CHILDLINK,Transport,Car Allowances,53003-OTHER-TRAVEL ALLOWANCES,265.42,Revenue,27/08/2014,Childrens
WC47- 1016,CHILDLINK,Transport,Car Allowances,53003-OTHER-TRAVEL ALLOWANCES,265.70,Revenue,11/08/2014,Childrens
WC47- 1017,CHILDLINK,Third Party Payments,Private Contractor Fees,76003-SECTION 34 (CONTACT),266.32,Revenue,27/08/2014,Childrens
WC47- 1018,CHILDLINK,Transport,Car Allowances,53001-OTHER/VOLUNTEERS-CAR ALLOWANCES,270.56,Revenue,15/08/2014,Childrens
WC47- 1019,CHILDLINK,Transport,Car Allowances,53003-OTHER-TRAVEL ALLOWANCES,272.38,Revenue,15/08/2014,Childrens
WC47- 1020,CHILDLINK,Transport,Car Allowances,53003-OTHER-TRAVEL ALLOWANCES,273.73,Revenue,15/08/2014,Childrens
WC47- 1021,CHILDLINK,Transport,Car Allowances,53001-OTHER/VOLUNTEERS-CAR ALLOWANCES,276.43,Revenue,11/08/2014,Childrens
WC47- 1022,CHILDLINK,Transport,Car Allowances,53003-OTHER-TRAVEL ALLOWANCES,279.65,Revenue,11/08/2014,Childrens
WC47- 1023,CHILDLINK,Transport,Car Allowances,53003-OTHER-TRAVEL ALLOWANCES,294.85,Revenue,19/08/2014,Childrens
WC47- 1024,CHILDLINK,Third Party Payments,Private Contractor Fees,76003-SECTION 34 (CONTACT),305.48,Revenue,11/08/2014,Childrens
WC47- 1025,CHILDLINK,Third Party Payments,Private Contractor Fees,76003-SECTION 34 (CONTACT),305.62,Revenue,08/08/2014,Childrens
WC47- 1026,CHILDLINK,Third Party Payments,Private Contractor Fees,76003-SECTION 34 (CONTACT),318.11,Revenue,11/08/2014,Childrens
WC47- 1027,CHILDLINK,Third Party Payments,Private Contractor Fees,76003-SECTION 34 (CONTACT),318.88,Revenue,15/08/2014,Childrens
WC47- 1028,CHILDLINK,Transport,Car Allowances,53003-OTHER-TRAVEL ALLOWANCES,325.05,Revenue,27/08/2014,Childrens
WC47- 1029,CHILDLINK,Third Party Payments,Private Contractor Fees,76003-SECTION 34 (CONTACT),328.05,Revenue,27/08/2014,Childrens
WC47- 1030,CHILDLINK,Supplies & Services,Other Supplies & Services,63128-HIRE OF ROOM-SERVICES-FEES,345.72,Revenue,15/08/2014,Childrens
WC47- 1031,CHILDLINK,Supplies & Services,Other Supplies & Services,63128-HIRE OF ROOM-SERVICES-FEES,345.72,Revenue,19/08/2014,Childrens
WC47- 1032,CHILDLINK,Supplies & Services,Other Supplies & Services,63128-HIRE OF ROOM-SERVICES-FEES,345.72,Revenue,27/08/2014,Childrens
WC47- 1033,CHILDLINK,Third Party Payments,Private Contractor Fees,76003-SECTION 34 (CONTACT),351.24,Revenue,15/08/2014,Childrens
WC47- 1034,CHILDLINK,Third Party Payments,Private Contractor Fees,76003-SECTION 34 (CONTACT),357.02,Revenue,08/08/2014,Childrens
WC47- 1035,CHILDLINK,Third Party Payments,Private Contractor Fees,76003-SECTION 34 (CONTACT),432.89,Revenue,19/08/2014,Childrens
WC47- 1036,CHILDLINK,Supplies & Services,Other Supplies & Services,63128-HIRE OF ROOM-SERVICES-FEES,488.84,Revenue,11/08/2014,Childrens
WC47- 1037,CHILDRENS RESIDENTIAL SERVS,Transport,Car Allowances,53000-OFFICERS/STAFF-CAR ALLOWANCES,1.50,Revenue,19/08/2014,Childrens
WC47- 1038,CHILDRENS RESIDENTIAL SERVS,Transport,Car Allowances,53000-OFFICERS/STAFF-CAR ALLOWANCES,1.92,Revenue,05/08/2014,Childrens
WC47- 1039,CHILDRENS RESIDENTIAL SERVS,Supplies & Services,"Equip,Furniture & Materials",60000-FURNITURE & EQUIPMENT,3.72,Revenue,14/08/2014,Childrens
WC47- 1040,CHILDRENS RESIDENTIAL SERVS,Transport,Car Allowances,53000-OFFICERS/STAFF-CAR ALLOWANCES,4.58,Revenue,14/08/2014,Childrens
WC47- 1041,CHILDRENS RESIDENTIAL SERVS,Supplies & Services,"Equip,Furniture & Materials",60000-FURNITURE & EQUIPMENT,5.99,Revenue,19/08/2014,Childrens
WC47- 1042,CHILDRENS RESIDENTIAL SERVS,Transport,Car Allowances,53000-OFFICERS/STAFF-CAR ALLOWANCES,7.00,Revenue,14/08/2014,Childrens
WC47- 1043,CHILDRENS RESIDENTIAL SERVS,Supplies & Services,Services,63000-PROFESSIONAL FEES AND SERVICES,9.00,Revenue,05/08/2014,Childrens
WC47- 1044,CHILDRENS RESIDENTIAL SERVS,Transport,Car Allowances,53000-OFFICERS/STAFF-CAR ALLOWANCES,12.58,Revenue,19/08/2014,Childrens
WC47- 1045,CHILDRENS RESIDENTIAL SERVS,Supplies & Services,Provisions,61014-GENERAL PROVISIONS-PROVISIONS,17.50,Revenue,19/08/2014,Childrens
WC47- 1046,CHILDRENS RESIDENTIAL SERVS,Supplies & Services,Provisions,61014-GENERAL PROVISIONS-PROVISIONS,21.28,Revenue,19/08/2014,Childrens
WC47- 1047,CHILDRENS RESIDENTIAL SERVS,Transport,Car Allowances,53000-OFFICERS/STAFF-CAR ALLOWANCES,31.92,Revenue,19/08/2014,Childrens
WC47- 1048,CHILDRENS RESIDENTIAL SERVS,Supplies & Services,Provisions,61014-GENERAL PROVISIONS-PROVISIONS,36.90,Revenue,05/08/2014,Childrens
WC47- 1049,CHILDRENS RESIDENTIAL SERVS,Supplies & Services,"Equip,Furniture & Materials",60000-FURNITURE & EQUIPMENT,47.18,Revenue,14/08/2014,Childrens
WC47- 1050,CHILDRENS RESIDENTIAL SERVS,Transfer Payments,Transfer Payments,76408-OUTINGS-ALLOWANCES TO S/S CLIENTS,50.01,Revenue,05/08/2014,Childrens
WC47- 1051,CHILDRENS RESIDENTIAL SERVS,Supplies & Services,Provisions,61014-GENERAL PROVISIONS-PROVISIONS,51.14,Revenue,14/08/2014,Childrens
WC47- 1052,CHILDRENS RESIDENTIAL SERVS,Supplies & Services,"Equip,Furniture & Materials",60000-FURNITURE & EQUIPMENT,54.99,Revenue,05/08/2014,Childrens
WC47- 1053,CHILDRENS RESIDENTIAL SERVS,Supplies & Services,"Equip,Furniture & Materials",60000-FURNITURE & EQUIPMENT,70.00,Revenue,05/08/2014,Childrens
WC47- 1054,CHILDRENS RESIDENTIAL SERVS,Supplies & Services,Provisions,61014-GENERAL PROVISIONS-PROVISIONS,78.19,Revenue,14/08/2014,Childrens
WC47- 1055,CHILDRENS RESIDENTIAL SERVS,Transfer Payments,Transfer Payments,76408-OUTINGS-ALLOWANCES TO S/S CLIENTS,85.06,Revenue,05/08/2014,Childrens
WC47- 1056,CHILDRENS RESIDENTIAL SERVS,Transfer Payments,Transfer Payments,76400-RESIDENTS PERSONAL EXPENSES-ALLOWANCES TO S/S CLIENTS,170.98,Revenue,14/08/2014,Childrens
WC47- 1057,CHILDRENS RESIDENTIAL SERVS,Supplies & Services,Provisions,61014-GENERAL PROVISIONS-PROVISIONS,177.85,Revenue,19/08/2014,Childrens
WC47- 1058,CHILDRENS RESIDENTIAL SERVS,Transfer Payments,Transfer Payments,76400-RESIDENTS PERSONAL EXPENSES-ALLOWANCES TO S/S CLIENTS,208.30,Revenue,05/08/2014,Childrens
WC47- 1059,CHILDRENS RESIDENTIAL SERVS,Transfer Payments,Transfer Payments,76400-RESIDENTS PERSONAL EXPENSES-ALLOWANCES TO S/S CLIENTS,245.65,Revenue,14/08/2014,Childrens
WC47- 1060,CHILDRENS RESIDENTIAL SERVS,Transfer Payments,Transfer Payments,76400-RESIDENTS PERSONAL EXPENSES-ALLOWANCES TO S/S CLIENTS,316.36,Revenue,19/08/2014,Childrens
WC47- 1061,CHILDRENS RESIDENTIAL SERVS,Transfer Payments,Transfer Payments,76400-RESIDENTS PERSONAL EXPENSES-ALLOWANCES TO S/S CLIENTS,368.37,Revenue,19/08/2014,Childrens
WC47- 1062,CHILDRENS RESIDENTIAL SERVS,Transfer Payments,Transfer Payments,76400-RESIDENTS PERSONAL EXPENSES-ALLOWANCES TO S/S CLIENTS,504.09,Revenue,19/08/2014,Childrens
WC47- 1063,CHRIS SPENCER 24/7 SOLUTIONS LIMITED,Supplies & Services,Services,63000-PROFESSIONAL FEES AND SERVICES,900.00,Revenue,01/08/2014,Childrens
WC47- 1064,REDACTED,Transfer Payments,Transfer Payments,76422-DIRECT PAYMENTS TO SOCIAL SERVICES CLIENTS,"1,489.62",Revenue,11/08/2014,Social Care & Inclusion
WC47- 1065,REDACTED,Transfer Payments,Transfer Payments,76422-DIRECT PAYMENTS TO SOCIAL SERVICES CLIENTS,755.30,Revenue,11/08/2014,Social Care & Inclusion
WC47- 1066,REDACTED,Transfer Payments,Transfer Payments,76422-DIRECT PAYMENTS TO SOCIAL SERVICES CLIENTS,489.60,Revenue,11/08/2014,Social Care & Inclusion
WC47- 1067,REDACTED,Transfer Payments,Transfer Payments,76422-DIRECT PAYMENTS TO SOCIAL SERVICES CLIENTS,630.80,Revenue,11/08/2014,Social Care & Inclusion
WC47- 1068,REDACTED,Transfer Payments,Transfer Payments,76422-DIRECT PAYMENTS TO SOCIAL SERVICES CLIENTS,"1,125.97",Revenue,11/08/2014,Social Care & Inclusion
WC47- 1069,REDACTED,Third Party Payments,Private Contractor Fees,74006-HOLIDAY/CHRISTMAS ALLOWANCE-FOSTER CARERS-OTH AGENCY PROVISION,643.20,Revenue,04/08/2014,Childrens
WC47- 1070,REDACTED,Transfer Payments,Transfer Payments,76422-DIRECT PAYMENTS TO SOCIAL SERVICES CLIENTS,276.00,Revenue,11/08/2014,Social Care & Inclusion
WC47- 1071,REDACTED,Transfer Payments,Transfer Payments,76422-DIRECT PAYMENTS TO SOCIAL SERVICES CLIENTS,822.16,Revenue,11/08/2014,Social Care & Inclusion
WC47- 1072,REDACTED,Transfer Payments,Transfer Payments,76422-DIRECT PAYMENTS TO SOCIAL SERVICES CLIENTS,588.00,Revenue,11/08/2014,Social Care & Inclusion
WC47- 1073,CHUBB FIRE & SECURITY LTD,Supplies & Services,"Equip,Furniture & Materials",60008-MAINTENANCE-FURNITURE & EQUIPMENT,526.53,Revenue,21/08/2014,Childrens
WC47- 1074,CIEH,Employees,Training,30030-EXTERNAL TRAINING,416.45,Revenue,19/08/2014,Neighbourhood Services
WC47- 1075,REDACTED,Third Party Payments,Private Contractor Fees,73374-SUPPORTED & OTHER ACCOMMODATION,"1,452.12",Revenue,11/08/2014,Social Care & Inclusion
WC47- 1076,CITILABS TECHNOLOGIES LIMITED,Supplies & Services,Communications & Computing,63809-LICENCES-COMPUTER,550.00,Revenue,05/08/2014,Neighbourhood Services
WC47- 1077,CITY & GUILDS,Supplies & Services,Other Supplies & Services,63013-EXAMINATIONS-SERVICES,"1,637.00",Revenue,11/08/2014,Neighbourhood Services
WC47- 1078,CITY & GUILDS,Supplies & Services,Other Supplies & Services,63013-EXAMINATIONS-SERVICES,"2,237.50",Revenue,01/08/2014,Neighbourhood Services
WC47- 1079,CIVICA UK LIMITED,Supplies & Services,Communications & Computing,63820-RECHARGE FOR MAINTENANCE/APPLICATION COSTS-COMPUTER,"1,589.93",Revenue,18/08/2014,Resources
WC47- 1080,CIVICA UK LIMITED,Supplies & Services,Communications & Computing,63820-RECHARGE FOR MAINTENANCE/APPLICATION COSTS-COMPUTER,"11,305.50",Revenue,18/08/2014,Resources
WC47- 1081,CIVICA UK LIMITED,Supplies & Services,Communications & Computing,63820-RECHARGE FOR MAINTENANCE/APPLICATION COSTS-COMPUTER,"13,087.94",Revenue,18/08/2014,Resources
WC47- 1082,CIVICARE MIDLANDS LTD,Third Party Payments,Private Contractor Fees,73374-SUPPORTED & OTHER ACCOMMODATION,443.52,Revenue,06/08/2014,Social Care & Inclusion
WC47- 1083,CIVICARE MIDLANDS LTD,Third Party Payments,Private Contractor Fees,73374-SUPPORTED & OTHER ACCOMMODATION,443.52,Revenue,08/08/2014,Social Care & Inclusion
WC47- 1084,CIVICARE MIDLANDS LTD,Third Party Payments,Private Contractor Fees,73372-DOMICILIARY CARE,"14,597.66",Revenue,19/08/2014,Social Care & Inclusion
WC47- 1085,CJP SAFETY,Supplies & Services,Services,73047-CONSULTANTS FEES,"1,234.20",Revenue,21/08/2014,Childrens
WC47- 1086,REDACTED,Transfer Payments,Transfer Payments,76422-DIRECT PAYMENTS TO SOCIAL SERVICES CLIENTS,"1,088.00",Revenue,11/08/2014,Social Care & Inclusion
WC47- 1087,REDACTED,Transfer Payments,Transfer Payments,76422-DIRECT PAYMENTS TO SOCIAL SERVICES CLIENTS,909.80,Revenue,11/08/2014,Social Care & Inclusion
WC47- 1088,REDACTED,Transfer Payments,Transfer Payments,76422-DIRECT PAYMENTS TO SOCIAL SERVICES CLIENTS,504.90,Revenue,11/08/2014,Social Care & Inclusion
WC47- 1089,CLAREMONT CARE LTD,Third Party Payments,Private Contractor Fees,73373-RESIDENTIAL & NURSING CARE PLACEMENTS,"1,268.60",Revenue,12/08/2014,Social Care & Inclusion
WC47- 1090,CLAREMONT CARE LTD,Third Party Payments,Private Contractor Fees,73373-RESIDENTIAL & NURSING CARE PLACEMENTS,"1,268.60",Revenue,12/08/2014,Social Care & Inclusion
WC47- 1091,CLIFFORD HOUSE FOSTERING LTD,Third Party Payments,Private Contractor Fees,74037-INDEPENDENT FOSTER CARE-OTH AGENCY PROVISION,"2,206.40",Revenue,20/08/2014,Childrens
WC47- 1092,CLIFFORD HOUSE FOSTERING LTD,Third Party Payments,Private Contractor Fees,74037-INDEPENDENT FOSTER CARE-OTH AGENCY PROVISION,"2,265.20",Revenue,20/08/2014,Childrens
WC47- 1093,CLIFFORD HOUSE FOSTERING LTD,Third Party Payments,Private Contractor Fees,74037-INDEPENDENT FOSTER CARE-OTH AGENCY PROVISION,"2,265.20",Revenue,20/08/2014,Childrens
WC47- 1094,CLIFFORD HOUSE FOSTERING LTD,Third Party Payments,Private Contractor Fees,74037-INDEPENDENT FOSTER CARE-OTH AGENCY PROVISION,"2,388.40",Revenue,20/08/2014,Childrens
WC47- 1095,CLIFFORD HOUSE FOSTERING LTD,Third Party Payments,Private Contractor Fees,74037-INDEPENDENT FOSTER CARE-OTH AGENCY PROVISION,"2,522.80",Revenue,21/08/2014,Childrens
WC47- 1096,CLIFFORD HOUSE FOSTERING LTD,Third Party Payments,Private Contractor Fees,74037-INDEPENDENT FOSTER CARE-OTH AGENCY PROVISION,"2,679.20",Revenue,20/08/2014,Childrens
WC47- 1097,CLIFFORD HOUSE FOSTERING LTD,Third Party Payments,Private Contractor Fees,74037-INDEPENDENT FOSTER CARE-OTH AGENCY PROVISION,"2,949.56",Revenue,21/08/2014,Childrens
WC47- 1098,CLIFFORD HOUSE FOSTERING LTD,Third Party Payments,Private Contractor Fees,74037-INDEPENDENT FOSTER CARE-OTH AGENCY PROVISION,"3,006.00",Revenue,22/08/2014,Childrens
WC47- 1099,CLIFFORD HOUSE FOSTERING LTD,Third Party Payments,Private Contractor Fees,74037-INDEPENDENT FOSTER CARE-OTH AGENCY PROVISION,"3,152.00",Revenue,20/08/2014,Childrens
WC47- 1100,CLIFFORD HOUSE FOSTERING LTD,Third Party Payments,Private Contractor Fees,74037-INDEPENDENT FOSTER CARE-OTH AGENCY PROVISION,"3,152.00",Revenue,20/08/2014,Childrens
WC47- 1101,REDACTED,Transfer Payments,Transfer Payments,76422-DIRECT PAYMENTS TO SOCIAL SERVICES CLIENTS,572.94,Revenue,11/08/2014,Social Care & Inclusion
WC47- 1102,CMHT SOLICITORS,Third Party Payments,Private Contractor Fees,73014-LEGAL FEES-PRIV CONTRACTOR FEES,"2,900.76",Revenue,14/08/2014,Childrens
WC47- 1103,CMS HIRE LTD,Central,Leasing,52003-OPERATING LEASES-VEHICLES,"3,450.00",Revenue,20/08/2014,Neighbourhood Services
WC47- 1104,CMS HIRE LTD,Central,Leasing,52003-OPERATING LEASES-VEHICLES,"3,450.00",Revenue,20/08/2014,Neighbourhood Services
WC47- 1105,CMS HIRE LTD,Central,Leasing,52003-OPERATING LEASES-VEHICLES,"3,450.00",Revenue,20/08/2014,Neighbourhood Services
WC47- 1106,CMS HIRE LTD,Central,Leasing,52003-OPERATING LEASES-VEHICLES,"3,450.00",Revenue,20/08/2014,Neighbourhood Services
WC47- 1107,COGNITIVE NETWORK SOLUTIONS LTD,Supplies & Services,Communications & Computing,63800-COMPUTER EQUIPMENT AND SUPPLIES,"4,246.40",Revenue,18/08/2014,Resources
WC47- 1108,COIN A DRINK LTD,Supplies & Services,Provisions,61305-CATERING,454.98,Revenue,07/08/2014,Neighbourhood Services
WC47- 1109,REDACTED,Third Party Payments,Private Contractor Fees,74006-HOLIDAY/CHRISTMAS ALLOWANCE-FOSTER CARERS-OTH AGENCY PROVISION,"4,071.30",Revenue,04/08/2014,Childrens
WC47- 1110,COMFORT BEDS & FURNITURE,Transfer Payments,Transfer Payments,76000-TRANSFER PAYMENTS - SOCIAL SERVICES CLIENTS,343.33,Revenue,06/08/2014,Childrens
WC47- 1111,COMMERCIAL & DOMESTIC,Supplies & Services,"Equip,Furniture & Materials",60007-REPAIR OF EQUIPMENT-EQUIPMENT,671.00,Revenue,14/08/2014,Regeneration
WC47- 1112,COMPASS FOSTERING,Third Party Payments,Private Contractor Fees,74037-INDEPENDENT FOSTER CARE-OTH AGENCY PROVISION,-975.00,Revenue,07/08/2014,Childrens
WC47- 1113,COMPASS FOSTERING,Third Party Payments,Private Contractor Fees,74037-INDEPENDENT FOSTER CARE-OTH AGENCY PROVISION,-828.75,Revenue,07/08/2014,Childrens
WC47- 1114,COMPASS FOSTERING,Third Party Payments,Private Contractor Fees,74037-INDEPENDENT FOSTER CARE-OTH AGENCY PROVISION,"1,976.25",Revenue,07/08/2014,Childrens
WC47- 1115,COMPASS FOSTERING,Third Party Payments,Private Contractor Fees,74037-INDEPENDENT FOSTER CARE-OTH AGENCY PROVISION,"2,325.00",Revenue,07/08/2014,Childrens
WC47- 1116,COMPLETE CARE SERVICES,Third Party Payments,Private Contractor Fees,73372-DOMICILIARY CARE,"63,000.00",Revenue,12/08/2014,Social Care & Inclusion
WC47- 1117,COMPLETE POOL CONTROLS LIMITED,Supplies & Services,"Equip,Furniture & Materials",60500-GENERAL MATERIALS,478.45,Revenue,13/08/2014,Neighbourhood Services
WC47- 1118,CONDOVER COLLEGE LTD,Third Party Payments,Private Contractor Fees,73373-RESIDENTIAL & NURSING CARE PLACEMENTS,"7,446.24",Revenue,12/08/2014,Social Care & Inclusion
WC47- 1119,CONDOVER COLLEGE LTD,Third Party Payments,Private Contractor Fees,73373-RESIDENTIAL & NURSING CARE PLACEMENTS,"8,038.92",Revenue,12/08/2014,Social Care & Inclusion
WC47- 1120,COOMBER ELECTRONIC EQUIPMENT,Supplies & Services,"Equip,Furniture & Materials",60000-FURNITURE & EQUIPMENT,333.00,Revenue,20/08/2014,Neighbourhood Services
WC47- 1121,COOPER MOBILE SERVICES LTD,Third Party Payments,Private Contractor Fees,73025-PROFESSIONAL SERVICES-PRIV CONTRACTOR & OTHER AGENCIES,"1,325.10",Revenue,18/08/2014,Neighbourhood Services
WC47- 1122,CORNWALL STREET CHAMBERS,Third Party Payments,Private Contractor Fees,73014-LEGAL FEES-PRIV CONTRACTOR FEES,"1,850.00",Revenue,18/08/2014,Childrens
WC47- 1123,CORY ENVIRONMENTAL (CENTRAL) LTD,Third Party Payments,Private Contractor Fees,73005-LANDFILL PTYS-PRIV CONTRACTOR FEES,274.14,Revenue,13/08/2014,Neighbourhood Services
WC47- 1124,CORY ENVIRONMENTAL (CENTRAL) LTD,Third Party Payments,Private Contractor Fees,73005-LANDFILL PTYS-PRIV CONTRACTOR FEES,288.66,Revenue,13/08/2014,Neighbourhood Services
WC47- 1125,CORY ENVIRONMENTAL (CENTRAL) LTD,Third Party Payments,Private Contractor Fees,73005-LANDFILL PTYS-PRIV CONTRACTOR FEES,457.11,Revenue,19/08/2014,Neighbourhood Services
WC47- 1126,CORY ENVIRONMENTAL (CENTRAL) LTD,Third Party Payments,Private Contractor Fees,73005-LANDFILL PTYS-PRIV CONTRACTOR FEES,537.74,Revenue,19/08/2014,Neighbourhood Services
WC47- 1127,CORY ENVIRONMENTAL (CENTRAL) LTD,Third Party Payments,Private Contractor Fees,73039-LANDFILL TAX-PRIV CONTRACTOR FEES,"1,496.00",Revenue,13/08/2014,Neighbourhood Services
WC47- 1128,CORY ENVIRONMENTAL (CENTRAL) LTD,Third Party Payments,Private Contractor Fees,73039-LANDFILL TAX-PRIV CONTRACTOR FEES,"1,575.20",Revenue,13/08/2014,Neighbourhood Services
WC47- 1129,CORY ENVIRONMENTAL (CENTRAL) LTD,Third Party Payments,Private Contractor Fees,73039-LANDFILL TAX-PRIV CONTRACTOR FEES,"2,494.40",Revenue,19/08/2014,Neighbourhood Services
WC47- 1130,CORY ENVIRONMENTAL (CENTRAL) LTD,Third Party Payments,Private Contractor Fees,73039-LANDFILL TAX-PRIV CONTRACTOR FEES,"2,934.40",Revenue,19/08/2014,Neighbourhood Services
WC47- 1131,COSMIC RECRUITMENT LTD,Third Party Payments,Private Contractor Fees,73374-SUPPORTED & OTHER ACCOMMODATION,551.03,Revenue,01/08/2014,Social Care & Inclusion
WC47- 1132,COUNTRYSIDE TRAINING AND TREE MANAGEMENT,Employees,Training,30030-EXTERNAL TRAINING,"1,100.00",Revenue,20/08/2014,Neighbourhood Services
WC47- 1133,CRAEGMOOR,Third Party Payments,Private Contractor Fees,73373-RESIDENTIAL & NURSING CARE PLACEMENTS,"7,899.86",Revenue,12/08/2014,Social Care & Inclusion
WC47- 1134,CROFT ACADEMY,Third Party Payments,Grants to Other Orgs,66505-OTHER-GRANTS TO OTHER ORGS,597.00,Revenue,27/08/2014,Childrens
WC47- 1135,CROMWELL HOUSE,Third Party Payments,Private Contractor Fees,73373-RESIDENTIAL & NURSING CARE PLACEMENTS,"5,903.44",Revenue,26/08/2014,Social Care & Inclusion
WC47- 1136,CROSSWAYS RESIDENTIAL HOME,Third Party Payments,Private Contractor Fees,73373-RESIDENTIAL & NURSING CARE PLACEMENTS,908.92,Revenue,05/08/2014,Social Care & Inclusion
WC47- 1137,CROSSWAYS RESIDENTIAL HOME,Third Party Payments,Private Contractor Fees,73373-RESIDENTIAL & NURSING CARE PLACEMENTS,"1,121.43",Revenue,05/08/2014,Social Care & Inclusion
WC47- 1138,CROSSWAYS RESIDENTIAL HOME,Third Party Payments,Private Contractor Fees,73373-RESIDENTIAL & NURSING CARE PLACEMENTS,"1,121.43",Revenue,05/08/2014,Social Care & Inclusion
WC47- 1139,CROSSWAYS RESIDENTIAL HOME,Third Party Payments,Private Contractor Fees,73373-RESIDENTIAL & NURSING CARE PLACEMENTS,"1,121.43",Revenue,05/08/2014,Social Care & Inclusion
WC47- 1140,CROSSWAYS RESIDENTIAL HOME,Third Party Payments,Private Contractor Fees,73373-RESIDENTIAL & NURSING CARE PLACEMENTS,"1,121.43",Revenue,05/08/2014,Social Care & Inclusion
WC47- 1141,CROSSWAYS RESIDENTIAL HOME,Third Party Payments,Private Contractor Fees,73373-RESIDENTIAL & NURSING CARE PLACEMENTS,"1,138.80",Revenue,05/08/2014,Social Care & Inclusion
WC47- 1142,CROSSWAYS RESIDENTIAL HOME,Third Party Payments,Private Contractor Fees,73373-RESIDENTIAL & NURSING CARE PLACEMENTS,"1,150.59",Revenue,05/08/2014,Social Care & Inclusion
WC47- 1143,CS COMMUNICATION SERVICES LTD,Supplies & Services,"Equip,Furniture & Materials",60008-MAINTENANCE-FURNITURE & EQUIPMENT,300.00,Revenue,18/08/2014,Social Care & Inclusion
WC47- 1144,CS COMMUNICATION SERVICES LTD,Supplies & Services,Communications & Computing,63800-COMPUTER EQUIPMENT AND SUPPLIES,488.00,Revenue,06/08/2014,Resources
WC47- 1145,REDACTED,Transfer Payments,Transfer Payments,76422-DIRECT PAYMENTS TO SOCIAL SERVICES CLIENTS,"1,008.00",Revenue,11/08/2014,Social Care & Inclusion
WC47- 1146,REDACTED,Third Party Payments,Private Contractor Fees,74006-HOLIDAY/CHRISTMAS ALLOWANCE-FOSTER CARERS-OTH AGENCY PROVISION,639.40,Revenue,04/08/2014,Childrens
WC47- 1147,REDACTED,Third Party Payments,Private Contractor Fees,74006-HOLIDAY/CHRISTMAS ALLOWANCE-FOSTER CARERS-OTH AGENCY PROVISION,"1,918.20",Revenue,04/08/2014,Childrens
WC47- 1148,REDACTED,Third Party Payments,Private Contractor Fees,74006-HOLIDAY/CHRISTMAS ALLOWANCE-FOSTER CARERS-OTH AGENCY PROVISION,"1,171.93",Revenue,18/08/2014,Childrens
WC47- 1149,REDACTED,Supplies & Services,Other Supplies & Services,62515-MISCELLANEOUS SUPPLIES,"1,428.44",Revenue,18/08/2014,Childrens
WC47- 1150,REDACTED,Supplies & Services,Other Supplies & Services,62515-MISCELLANEOUS SUPPLIES,533.96,Revenue,18/08/2014,Childrens
WC47- 1151,REDACTED,Third Party Payments,Private Contractor Fees,74006-HOLIDAY/CHRISTMAS ALLOWANCE-FOSTER CARERS-OTH AGENCY PROVISION,895.50,Revenue,18/08/2014,Childrens
WC47- 1152,DAISYBROOK LTD,Supplies & Services,Services,63000-PROFESSIONAL FEES AND SERVICES,"2,345.00",Revenue,05/08/2014,Childrens
WC47- 1153,DAISYBROOK LTD,Supplies & Services,Services,63000-PROFESSIONAL FEES AND SERVICES,"2,704.00",Revenue,20/08/2014,Childrens
WC47- 1154,REDACTED,Third Party Payments,Private Contractor Fees,74006-HOLIDAY/CHRISTMAS ALLOWANCE-FOSTER CARERS-OTH AGENCY PROVISION,"1,143.32",Revenue,04/08/2014,Childrens
WC47- 1155,REDACTED,Transfer Payments,Transfer Payments,76422-DIRECT PAYMENTS TO SOCIAL SERVICES CLIENTS,"1,492.80",Revenue,11/08/2014,Social Care & Inclusion
WC47- 1156,REDACTED,Transfer Payments,Transfer Payments,76422-DIRECT PAYMENTS TO SOCIAL SERVICES CLIENTS,"1,622.36",Revenue,11/08/2014,Social Care & Inclusion
WC47- 1157,REDACTED,Transfer Payments,Transfer Payments,76422-DIRECT PAYMENTS TO SOCIAL SERVICES CLIENTS,"1,020.04",Revenue,11/08/2014,Childrens
WC47- 1158,REDACTED,Transfer Payments,Transfer Payments,76422-DIRECT PAYMENTS TO SOCIAL SERVICES CLIENTS,"1,890.00",Revenue,11/08/2014,Social Care & Inclusion
WC47- 1159,REDACTED,Transfer Payments,Transfer Payments,76422-DIRECT PAYMENTS TO SOCIAL SERVICES CLIENTS,755.30,Revenue,11/08/2014,Social Care & Inclusion
WC47- 1160,REDACTED,Transfer Payments,Transfer Payments,76422-DIRECT PAYMENTS TO SOCIAL SERVICES CLIENTS,923.48,Revenue,11/08/2014,Social Care & Inclusion
WC47- 1161,DANSHELL GROUP,Third Party Payments,Private Contractor Fees,73373-RESIDENTIAL & NURSING CARE PLACEMENTS,"10,185.71",Revenue,12/08/2014,Social Care & Inclusion
WC47- 1162,DARLASTON FELLOWSHIP DISABLED,Transport,Hire,52000-WITH DRIVER-HIRE OF VEHICLES,853.20,Revenue,04/08/2014,Childrens
WC47- 1163,DARLASTON FELLOWSHIP DISABLED,Transport,Hire,52000-WITH DRIVER-HIRE OF VEHICLES,853.20,Revenue,04/08/2014,Childrens
WC47- 1164,DARLASTON FELLOWSHIP DISABLED,Transport,Hire,52000-WITH DRIVER-HIRE OF VEHICLES,865.44,Revenue,04/08/2014,Childrens
WC47- 1165,DARLASTON FELLOWSHIP DISABLED,Transport,Hire,52000-WITH DRIVER-HIRE OF VEHICLES,"1,017.36",Revenue,04/08/2014,Childrens
WC47- 1166,REDACTED,Transfer Payments,Transfer Payments,76422-DIRECT PAYMENTS TO SOCIAL SERVICES CLIENTS,595.00,Revenue,11/08/2014,Social Care & Inclusion
WC47- 1167,REDACTED,Transfer Payments,Transfer Payments,76422-DIRECT PAYMENTS TO SOCIAL SERVICES CLIENTS,251.84,Revenue,11/08/2014,Social Care & Inclusion
WC47- 1168,REDACTED,Transfer Payments,Transfer Payments,76422-DIRECT PAYMENTS TO SOCIAL SERVICES CLIENTS,338.38,Revenue,11/08/2014,Social Care & Inclusion
WC47- 1169,REDACTED,Transfer Payments,Transfer Payments,76422-DIRECT PAYMENTS TO SOCIAL SERVICES CLIENTS,"6,123.61",Revenue,11/08/2014,Social Care & Inclusion
WC47- 1170,REDACTED,Third Party Payments,Private Contractor Fees,74006-HOLIDAY/CHRISTMAS ALLOWANCE-FOSTER CARERS-OTH AGENCY PROVISION,796.00,Revenue,18/08/2014,Childrens
WC47- 1171,REDACTED,Supplies & Services,Other Supplies & Services,62515-MISCELLANEOUS SUPPLIES,"1,428.44",Revenue,18/08/2014,Childrens
WC47- 1172,REDACTED,Supplies & Services,Other Supplies & Services,62515-MISCELLANEOUS SUPPLIES,914.24,Revenue,18/08/2014,Childrens
WC47- 1173,REDACTED,Third Party Payments,Private Contractor Fees,74006-HOLIDAY/CHRISTMAS ALLOWANCE-FOSTER CARERS-OTH AGENCY PROVISION,"1,764.32",Revenue,18/08/2014,Childrens
WC47- 1174,REDACTED,Transfer Payments,Transfer Payments,76422-DIRECT PAYMENTS TO SOCIAL SERVICES CLIENTS,"1,054.00",Revenue,11/08/2014,Social Care & Inclusion
WC47- 1175,REDACTED,Transfer Payments,Transfer Payments,76422-DIRECT PAYMENTS TO SOCIAL SERVICES CLIENTS,"1,071.00",Revenue,11/08/2014,Social Care & Inclusion
WC47- 1176,REDACTED,Transfer Payments,Transfer Payments,76422-DIRECT PAYMENTS TO SOCIAL SERVICES CLIENTS,"1,584.00",Revenue,11/08/2014,Social Care & Inclusion
WC47- 1177,REDACTED,Third Party Payments,Private Contractor Fees,74006-HOLIDAY/CHRISTMAS ALLOWANCE-FOSTER CARERS-OTH AGENCY PROVISION,799.25,Revenue,04/08/2014,Childrens
WC47- 1178,REDACTED,Transfer Payments,Transfer Payments,76422-DIRECT PAYMENTS TO SOCIAL SERVICES CLIENTS,517.92,Revenue,11/08/2014,Social Care & Inclusion
WC47- 1179,REDACTED,Transfer Payments,Transfer Payments,76422-DIRECT PAYMENTS TO SOCIAL SERVICES CLIENTS,"1,065.00",Revenue,11/08/2014,Social Care & Inclusion
WC47- 1180,REDACTED,Transfer Payments,Transfer Payments,76422-DIRECT PAYMENTS TO SOCIAL SERVICES CLIENTS,"2,280.68",Revenue,11/08/2014,Social Care & Inclusion
WC47- 1181,DAVID WILSON PARTNERSHIP LIMITED,Capital,Capital,01006-SITE WORKS MAIN CONTRACTORS,347.40,Capital,20/08/2014,Resources
WC47- 1182,DAVID WILSON PARTNERSHIP LIMITED,Capital,Capital,01045-PRIVATE GRANTS,560.00,Capital,19/08/2014,Resources
WC47- 1183,REDACTED,Transfer Payments,Transfer Payments,76422-DIRECT PAYMENTS TO SOCIAL SERVICES CLIENTS,880.00,Revenue,11/08/2014,Social Care & Inclusion
WC47- 1184,REDACTED,Transfer Payments,Transfer Payments,76422-DIRECT PAYMENTS TO SOCIAL SERVICES CLIENTS,437.00,Revenue,11/08/2014,Social Care & Inclusion
WC47- 1185,DAWSON RENTALS SWEEPERS,Transport,Hire,52001-HIRE OF VEHICLES,"1,627.52",Revenue,27/08/2014,Neighbourhood Services
WC47- 1186,DAWSON RENTALS SWEEPERS,Transport,Hire,52001-HIRE OF VEHICLES,"1,999.28",Revenue,27/08/2014,Neighbourhood Services
WC47- 1187,DAWSON RENTALS SWEEPERS,Transport,Hire,52001-HIRE OF VEHICLES,"1,999.28",Revenue,27/08/2014,Neighbourhood Services
WC47- 1188,DAWSON RENTALS SWEEPERS,Transport,Hire,52001-HIRE OF VEHICLES,"1,999.28",Revenue,27/08/2014,Neighbourhood Services
WC47- 1189,DAWSON RENTALS SWEEPERS,Transport,Hire,52001-HIRE OF VEHICLES,"1,999.28",Revenue,27/08/2014,Neighbourhood Services
WC47- 1190,DAWSON RENTALS SWEEPERS,Transport,Hire,52001-HIRE OF VEHICLES,"1,999.28",Revenue,27/08/2014,Neighbourhood Services
WC47- 1191,DAWSON RENTALS SWEEPERS,Transport,Hire,52001-HIRE OF VEHICLES,"1,999.28",Revenue,27/08/2014,Neighbourhood Services
WC47- 1192,DAWSON RENTALS SWEEPERS,Transport,Hire,52001-HIRE OF VEHICLES,"2,064.46",Revenue,27/08/2014,Neighbourhood Services
WC47- 1193,REDACTED,Supplies & Services,Other Supplies & Services,62515-MISCELLANEOUS SUPPLIES,601.62,Revenue,18/08/2014,Childrens
WC47- 1194,REDACTED,Third Party Payments,Private Contractor Fees,74006-HOLIDAY/CHRISTMAS ALLOWANCE-FOSTER CARERS-OTH AGENCY PROVISION,895.50,Revenue,18/08/2014,Childrens
WC47- 1195,REDACTED,Supplies & Services,Other Supplies & Services,62515-MISCELLANEOUS SUPPLIES,533.96,Revenue,18/08/2014,Childrens
WC47- 1196,REDACTED,Third Party Payments,Private Contractor Fees,74006-HOLIDAY/CHRISTMAS ALLOWANCE-FOSTER CARERS-OTH AGENCY PROVISION,561.32,Revenue,18/08/2014,Childrens
WC47- 1197,REDACTED,Third Party Payments,Private Contractor Fees,74006-HOLIDAY/CHRISTMAS ALLOWANCE-FOSTER CARERS-OTH AGENCY PROVISION,959.10,Revenue,04/08/2014,Childrens
WC47- 1198,REDACTED,Supplies & Services,Other Supplies & Services,62515-MISCELLANEOUS SUPPLIES,914.24,Revenue,18/08/2014,Childrens
WC47- 1199,REDACTED,Third Party Payments,Private Contractor Fees,74006-HOLIDAY/CHRISTMAS ALLOWANCE-FOSTER CARERS-OTH AGENCY PROVISION,"1,381.70",Revenue,18/08/2014,Childrens
WC47- 1200,REDACTED,Transfer Payments,Transfer Payments,76422-DIRECT PAYMENTS TO SOCIAL SERVICES CLIENTS,977.76,Revenue,11/08/2014,Social Care & Inclusion
WC47- 1201,REDACTED,Supplies & Services,Services,73047-CONSULTANTS FEES,600.00,Revenue,21/08/2014,Childrens
WC47- 1202,DELL COMPUTER CORPORATION LTD,Supplies & Services,Communications & Computing,63800-COMPUTER EQUIPMENT AND SUPPLIES,"1,488.96",Revenue,26/08/2014,Resources
WC47- 1203,REDACTED,Transfer Payments,Transfer Payments,76422-DIRECT PAYMENTS TO SOCIAL SERVICES CLIENTS,739.80,Revenue,11/08/2014,Social Care & Inclusion
WC47- 1204,REDACTED,Transfer Payments,Transfer Payments,76422-DIRECT PAYMENTS TO SOCIAL SERVICES CLIENTS,"1,530.00",Revenue,11/08/2014,Social Care & Inclusion
WC47- 1205,DENMANS ELECTRICAL WHOLESALERS LIMITED,Premises,Premises-Repairs & Maintenance,"40000-REPAIRS,ALTERATIONS & MAINTENANCE-PREM",289.90,Revenue,04/08/2014,Neighbourhood Services
WC47- 1206,DENT & PARTNERS LIMITED,Capital,Capital,01006-SITE WORKS MAIN CONTRACTORS,"60,284.40",Capital,18/08/2014,Childrens
WC47- 1207,DEPARTMENT FOR COMMUNITIES AND LOCAL GOVERNMENT,Collection Fund,Collection Fund,89527-TRANSITIONAL PROTECTION PAYMENTS,"-13,117.00",Revenue,21/08/2014,Holding Accounts
WC47- 1208,DEPARTMENT FOR COMMUNITIES AND LOCAL GOVERNMENT,Collection Fund,Collection Fund,89528-CENTRAL GOVERNMENT-CENTRAL SHARE PAYMENT,"3,548,586.00",Revenue,21/08/2014,Holding Accounts
WC47- 1209,REDACTED,Transfer Payments,Transfer Payments,76422-DIRECT PAYMENTS TO SOCIAL SERVICES CLIENTS,"1,800.00",Revenue,11/08/2014,Social Care & Inclusion
WC47- 1210,REDACTED,Transfer Payments,Transfer Payments,76422-DIRECT PAYMENTS TO SOCIAL SERVICES CLIENTS,820.04,Revenue,11/08/2014,Social Care & Inclusion
WC47- 1211,REDACTED,Transfer Payments,Transfer Payments,76422-DIRECT PAYMENTS TO SOCIAL SERVICES CLIENTS,"1,120.00",Revenue,11/08/2014,Social Care & Inclusion
WC47- 1212,REDACTED,Third Party Payments,Private Contractor Fees,74006-HOLIDAY/CHRISTMAS ALLOWANCE-FOSTER CARERS-OTH AGENCY PROVISION,417.56,Revenue,04/08/2014,Childrens
WC47- 1213,REDACTED,Third Party Payments,Private Contractor Fees,74006-HOLIDAY/CHRISTMAS ALLOWANCE-FOSTER CARERS-OTH AGENCY PROVISION,"1,122.64",Revenue,18/08/2014,Childrens
WC47- 1214,REDACTED,Supplies & Services,Other Supplies & Services,62515-MISCELLANEOUS SUPPLIES,"1,428.44",Revenue,18/08/2014,Childrens
WC47- 1215,REDACTED,Transfer Payments,Transfer Payments,76422-DIRECT PAYMENTS TO SOCIAL SERVICES CLIENTS,"1,035.62",Revenue,11/08/2014,Social Care & Inclusion
WC47- 1216,REDACTED,Supplies & Services,Other Supplies & Services,62515-MISCELLANEOUS SUPPLIES,"1,543.44",Revenue,18/08/2014,Childrens
WC47- 1217,REDACTED,Third Party Payments,Private Contractor Fees,74006-HOLIDAY/CHRISTMAS ALLOWANCE-FOSTER CARERS-OTH AGENCY PROVISION,"1,840.12",Revenue,18/08/2014,Childrens
WC47- 1218,DIGNUS HEALTHCARE LTD T/A HIGHCROFT HOUSE,Third Party Payments,Private Contractor Fees,73373-RESIDENTIAL & NURSING CARE PLACEMENTS,"8,228.73",Revenue,19/08/2014,Social Care & Inclusion
WC47- 1219,DIGNUS HEALTHCARE LTD T/A HIGHCROFT HOUSE,Third Party Payments,Private Contractor Fees,73373-RESIDENTIAL & NURSING CARE PLACEMENTS,"10,253.87",Revenue,19/08/2014,Social Care & Inclusion
WC47- 1220,DIGNUS HEALTHCARE T/A EBENEZER HOUSE,Third Party Payments,Private Contractor Fees,73373-RESIDENTIAL & NURSING CARE PLACEMENTS,"4,241.44",Revenue,05/08/2014,Social Care & Inclusion
WC47- 1221,DIGNUS HEALTHCARE T/A EBENEZER HOUSE,Third Party Payments,Private Contractor Fees,73373-RESIDENTIAL & NURSING CARE PLACEMENTS,"4,382.82",Revenue,19/08/2014,Social Care & Inclusion
WC47- 1222,DIGNUS HEALTHCARE T/A EBENEZER HOUSE,Third Party Payments,Private Contractor Fees,73373-RESIDENTIAL & NURSING CARE PLACEMENTS,"4,382.82",Revenue,19/08/2014,Social Care & Inclusion
WC47- 1223,DIGNUS HEALTHCARE T/A EBENEZER HOUSE,Third Party Payments,Private Contractor Fees,73373-RESIDENTIAL & NURSING CARE PLACEMENTS,"4,382.82",Revenue,19/08/2014,Social Care & Inclusion
WC47- 1224,DIMENSIONS (UK) LTD,Third Party Payments,Private Contractor Fees,73373-RESIDENTIAL & NURSING CARE PLACEMENTS,"5,768.78",Revenue,05/08/2014,Social Care & Inclusion
WC47- 1225,DISABLE AIDS CANNOCK LTD,Supplies & Services,"Equip,Furniture & Materials",60013-DISABLED-EQUIPMENT,741.00,Revenue,08/08/2014,Social Care & Inclusion
WC47- 1226,DISCLOSURE & BARRING SERVICE,Supplies & Services,Other Supplies & Services,63103-CRIMINAL RECORDS BUREAU-SERVICES-FEES,"25,862.00",Revenue,12/08/2014,Resources
WC47- 1227,DIWALI NIVAS,Third Party Payments,Private Contractor Fees,73373-RESIDENTIAL & NURSING CARE PLACEMENTS,"1,753.23",Revenue,12/08/2014,Social Care & Inclusion
WC47- 1228,DOLPHIN LTD,Capital,Capital,01006-SITE WORKS MAIN CONTRACTORS,605.00,Capital,08/08/2014,Resources
WC47- 1229,DOLPHIN LTD,Capital,Capital,01006-SITE WORKS MAIN CONTRACTORS,825.00,Capital,08/08/2014,Resources
WC47- 1230,DOLPHIN LTD,Capital,Capital,01006-SITE WORKS MAIN CONTRACTORS,825.00,Capital,08/08/2014,Resources
WC47- 1231,DOLPHIN LTD,Capital,Capital,01006-SITE WORKS MAIN CONTRACTORS,825.00,Capital,08/08/2014,Resources
WC47- 1232,DOLPHIN LTD,Capital,Capital,01006-SITE WORKS MAIN CONTRACTORS,855.00,Capital,08/08/2014,Resources
WC47- 1233,DOLPHIN LTD,Capital,Capital,01045-PRIVATE GRANTS,932.40,Capital,01/08/2014,Resources
WC47- 1234,DOLPHIN LTD,Capital,Capital,01006-SITE WORKS MAIN CONTRACTORS,935.00,Capital,08/08/2014,Resources
WC47- 1235,DOLPHIN LTD,Capital,Capital,01006-SITE WORKS MAIN CONTRACTORS,"1,021.15",Capital,20/08/2014,Resources
WC47- 1236,DOLPHIN LTD,Capital,Capital,01006-SITE WORKS MAIN CONTRACTORS,"1,100.00",Capital,21/08/2014,Resources
WC47- 1237,DOLPHIN LTD,Capital,Capital,01006-SITE WORKS MAIN CONTRACTORS,"1,135.00",Capital,07/08/2014,Resources
WC47- 1238,DOLPHIN LTD,Capital,Capital,01045-PRIVATE GRANTS,"1,175.00",Capital,04/08/2014,Resources
WC47- 1239,DOLPHIN LTD,Capital,Capital,01045-PRIVATE GRANTS,"1,260.00",Capital,18/08/2014,Resources
WC47- 1240,DOLPHIN LTD,Capital,Capital,01045-PRIVATE GRANTS,"1,320.02",Capital,04/08/2014,Resources
WC47- 1241,DOLPHIN LTD,Capital,Capital,01006-SITE WORKS MAIN CONTRACTORS,"1,321.00",Capital,04/08/2014,Resources
WC47- 1242,DOLPHIN LTD,Capital,Capital,01006-SITE WORKS MAIN CONTRACTORS,"1,416.74",Capital,08/08/2014,Social Care & Inclusion
WC47- 1243,DOLPHIN LTD,Capital,Capital,01006-SITE WORKS MAIN CONTRACTORS,"1,510.00",Capital,18/08/2014,Resources
WC47- 1244,DOLPHIN LTD,Capital,Capital,01006-SITE WORKS MAIN CONTRACTORS,"1,891.65",Capital,15/08/2014,Resources
WC47- 1245,DOLPHIN LTD,Capital,Capital,01006-SITE WORKS MAIN CONTRACTORS,"1,900.00",Capital,04/08/2014,Resources
WC47- 1246,DOLPHIN LTD,Capital,Capital,01045-PRIVATE GRANTS,"1,970.00",Capital,07/08/2014,Resources
WC47- 1247,DOLPHIN LTD,Capital,Capital,01045-PRIVATE GRANTS,"2,000.00",Capital,06/08/2014,Resources
WC47- 1248,DOLPHIN LTD,Capital,Capital,01045-PRIVATE GRANTS,"2,000.00",Capital,06/08/2014,Resources
WC47- 1249,DOLPHIN LTD,Capital,Capital,01006-SITE WORKS MAIN CONTRACTORS,"2,023.72",Capital,20/08/2014,Resources
WC47- 1250,DOLPHIN LTD,Capital,Capital,01006-SITE WORKS MAIN CONTRACTORS,"2,194.31",Capital,15/08/2014,Resources
WC47- 1251,DOLPHIN LTD,Capital,Capital,01006-SITE WORKS MAIN CONTRACTORS,"2,243.00",Capital,20/08/2014,Resources
WC47- 1252,DOLPHIN LTD,Capital,Capital,01045-PRIVATE GRANTS,"2,253.39",Capital,04/08/2014,Resources
WC47- 1253,DOLPHIN LTD,Capital,Capital,01006-SITE WORKS MAIN CONTRACTORS,"2,895.00",Capital,04/08/2014,Resources
WC47- 1254,DOLPHIN LTD,Capital,Capital,01006-SITE WORKS MAIN CONTRACTORS,"2,895.00",Capital,07/08/2014,Resources
WC47- 1255,DOLPHIN LTD,Capital,Capital,01045-PRIVATE GRANTS,"3,000.00",Capital,01/08/2014,Resources
WC47- 1256,DOLPHIN LTD,Capital,Capital,01006-SITE WORKS MAIN CONTRACTORS,"3,000.00",Capital,01/08/2014,Social Care & Inclusion
WC47- 1257,DOLPHIN LTD,Capital,Capital,01006-SITE WORKS MAIN CONTRACTORS,"3,095.00",Capital,04/08/2014,Resources
WC47- 1258,DOLPHIN LTD,Capital,Capital,01045-PRIVATE GRANTS,"3,145.00",Capital,04/08/2014,Resources
WC47- 1259,DOLPHIN LTD,Capital,Capital,01045-PRIVATE GRANTS,"3,145.00",Capital,04/08/2014,Resources
WC47- 1260,DOLPHIN LTD,Capital,Capital,01006-SITE WORKS MAIN CONTRACTORS,"3,324.65",Capital,20/08/2014,Resources
WC47- 1261,DOLPHIN LTD,Capital,Capital,01006-SITE WORKS MAIN CONTRACTORS,"3,372.73",Capital,06/08/2014,Resources
WC47- 1262,DOLPHIN LTD,Supplies & Services,"Equip,Furniture & Materials",60008-MAINTENANCE-FURNITURE & EQUIPMENT,"3,460.00",Revenue,26/08/2014,Social Care & Inclusion
WC47- 1263,DOLPHIN LTD,Capital,Capital,01045-PRIVATE GRANTS,"3,615.00",Capital,04/08/2014,Resources
WC47- 1264,DOLPHIN LTD,Capital,Capital,01045-PRIVATE GRANTS,"4,000.00",Capital,04/08/2014,Resources
WC47- 1265,DOLPHIN LTD,Capital,Capital,01045-PRIVATE GRANTS,"4,037.88",Capital,21/08/2014,Resources
WC47- 1266,DOLPHIN LTD,Capital,Capital,01006-SITE WORKS MAIN CONTRACTORS,"4,874.38",Capital,20/08/2014,Resources
WC47- 1267,DOLPHIN LTD,Capital,Capital,01045-PRIVATE GRANTS,"5,000.00",Capital,01/08/2014,Resources
WC47- 1268,DOLPHIN LTD,Capital,Capital,01045-PRIVATE GRANTS,"5,000.00",Capital,01/08/2014,Resources
WC47- 1269,DOLPHIN LTD,Capital,Capital,01045-PRIVATE GRANTS,"5,000.00",Capital,06/08/2014,Resources
WC47- 1270,DOLPHIN LTD,Capital,Capital,01045-PRIVATE GRANTS,"5,000.00",Capital,06/08/2014,Resources
WC47- 1271,DOLPHIN LTD,Capital,Capital,01045-PRIVATE GRANTS,"7,000.00",Capital,04/08/2014,Resources
WC47- 1272,DOLPHIN LTD,Capital,Capital,01045-PRIVATE GRANTS,"7,100.00",Capital,04/08/2014,Resources
WC47- 1273,DOLPHIN LTD,Capital,Capital,01006-SITE WORKS MAIN CONTRACTORS,"8,089.44",Capital,15/08/2014,Resources
WC47- 1274,DOLPHIN LTD,Capital,Capital,01045-PRIVATE GRANTS,"10,000.00",Capital,26/08/2014,Resources
WC47- 1275,REDACTED,Transfer Payments,Transfer Payments,76422-DIRECT PAYMENTS TO SOCIAL SERVICES CLIENTS,"5,854.60",Revenue,11/08/2014,Social Care & Inclusion
WC47- 1276,REDACTED,Third Party Payments,Private Contractor Fees,74006-HOLIDAY/CHRISTMAS ALLOWANCE-FOSTER CARERS-OTH AGENCY PROVISION,698.92,Revenue,04/08/2014,Childrens
WC47- 1277,REDACTED,Transfer Payments,Transfer Payments,76422-DIRECT PAYMENTS TO SOCIAL SERVICES CLIENTS,"1,800.00",Revenue,11/08/2014,Social Care & Inclusion
WC47- 1278,REDACTED,Third Party Payments,Private Contractor Fees,74006-HOLIDAY/CHRISTMAS ALLOWANCE-FOSTER CARERS-OTH AGENCY PROVISION,639.40,Revenue,18/08/2014,Childrens
WC47- 1279,REDACTED,Supplies & Services,Other Supplies & Services,62515-MISCELLANEOUS SUPPLIES,658.40,Revenue,18/08/2014,Childrens
WC47- 1280,REDACTED,Third Party Payments,Private Contractor Fees,74006-HOLIDAY/CHRISTMAS ALLOWANCE-FOSTER CARERS-OTH AGENCY PROVISION,"2,323.36",Revenue,04/08/2014,Childrens
WC47- 1281,REDACTED,Transfer Payments,Transfer Payments,76422-DIRECT PAYMENTS TO SOCIAL SERVICES CLIENTS,679.20,Revenue,11/08/2014,Social Care & Inclusion
WC47- 1282,REDACTED,Transfer Payments,Transfer Payments,76422-DIRECT PAYMENTS TO SOCIAL SERVICES CLIENTS,705.60,Revenue,11/08/2014,Social Care & Inclusion
WC47- 1283,REDACTED,Transfer Payments,Transfer Payments,76422-DIRECT PAYMENTS TO SOCIAL SERVICES CLIENTS,616.00,Revenue,11/08/2014,Social Care & Inclusion
WC47- 1284,REDACTED,Transfer Payments,Transfer Payments,76422-DIRECT PAYMENTS TO SOCIAL SERVICES CLIENTS,629.00,Revenue,11/08/2014,Social Care & Inclusion
WC47- 1285,REDACTED,Transfer Payments,Transfer Payments,76422-DIRECT PAYMENTS TO SOCIAL SERVICES CLIENTS,"1,416.00",Revenue,11/08/2014,Social Care & Inclusion
WC47- 1286,REDACTED,Third Party Payments,Private Contractor Fees,74006-HOLIDAY/CHRISTMAS ALLOWANCE-FOSTER CARERS-OTH AGENCY PROVISION,639.40,Revenue,04/08/2014,Childrens
WC47- 1287,REDACTED,Transfer Payments,Transfer Payments,76422-DIRECT PAYMENTS TO SOCIAL SERVICES CLIENTS,625.56,Revenue,11/08/2014,Social Care & Inclusion
WC47- 1288,REDACTED,Transfer Payments,Transfer Payments,76422-DIRECT PAYMENTS TO SOCIAL SERVICES CLIENTS,700.40,Revenue,11/08/2014,Social Care & Inclusion
WC47- 1289,REDACTED,Transfer Payments,Transfer Payments,76422-DIRECT PAYMENTS TO SOCIAL SERVICES CLIENTS,250.00,Revenue,11/08/2014,Social Care & Inclusion
WC47- 1290,REDACTED,Transfer Payments,Transfer Payments,76422-DIRECT PAYMENTS TO SOCIAL SERVICES CLIENTS,840.48,Revenue,11/08/2014,Social Care & Inclusion
WC47- 1291,REDACTED,Transfer Payments,Transfer Payments,76422-DIRECT PAYMENTS TO SOCIAL SERVICES CLIENTS,403.20,Revenue,11/08/2014,Social Care & Inclusion
WC47- 1292,REDACTED,Transfer Payments,Transfer Payments,76422-DIRECT PAYMENTS TO SOCIAL SERVICES CLIENTS,814.24,Revenue,11/08/2014,Social Care & Inclusion
WC47- 1293,REDACTED,Transfer Payments,Transfer Payments,76422-DIRECT PAYMENTS TO SOCIAL SERVICES CLIENTS,"1,349.88",Revenue,11/08/2014,Social Care & Inclusion
WC47- 1294,DOVEDALE COURT CARE HOME,Third Party Payments,Private Contractor Fees,73373-RESIDENTIAL & NURSING CARE PLACEMENTS,"1,442.88",Revenue,05/08/2014,Social Care & Inclusion
WC47- 1295,DOVEDALE COURT CARE HOME,Third Party Payments,Private Contractor Fees,73373-RESIDENTIAL & NURSING CARE PLACEMENTS,"1,499.52",Revenue,05/08/2014,Social Care & Inclusion
WC47- 1296,DOVEDALE COURT CARE HOME,Third Party Payments,Private Contractor Fees,73373-RESIDENTIAL & NURSING CARE PLACEMENTS,"1,499.52",Revenue,19/08/2014,Social Care & Inclusion
WC47- 1297,DOVEDALE COURT CARE HOME,Third Party Payments,Private Contractor Fees,73373-RESIDENTIAL & NURSING CARE PLACEMENTS,"1,534.12",Revenue,05/08/2014,Social Care & Inclusion
WC47- 1298,DOVEDALE COURT CARE HOME,Third Party Payments,Private Contractor Fees,73373-RESIDENTIAL & NURSING CARE PLACEMENTS,"1,534.12",Revenue,19/08/2014,Social Care & Inclusion
WC47- 1299,REDACTED,Third Party Payments,Private Contractor Fees,73014-LEGAL FEES-PRIV CONTRACTOR FEES,276.66,Revenue,01/08/2014,Childrens
WC47- 1300,REDACTED,Third Party Payments,Private Contractor Fees,73014-LEGAL FEES-PRIV CONTRACTOR FEES,400.00,Revenue,01/08/2014,Childrens
WC47- 1301,REDACTED,Third Party Payments,Private Contractor Fees,73014-LEGAL FEES-PRIV CONTRACTOR FEES,736.00,Revenue,01/08/2014,Childrens
WC47- 1302,REDACTED,Third Party Payments,Private Contractor Fees,73014-LEGAL FEES-PRIV CONTRACTOR FEES,743.75,Revenue,01/08/2014,Childrens
WC47- 1303,REDACTED,Third Party Payments,Private Contractor Fees,73014-LEGAL FEES-PRIV CONTRACTOR FEES,913.33,Revenue,01/08/2014,Childrens
WC47- 1304,REDACTED,Supplies & Services,Services,63000-PROFESSIONAL FEES AND SERVICES,959.20,Revenue,07/08/2014,Childrens
WC47- 1305,REDACTED,Third Party Payments,Private Contractor Fees,73014-LEGAL FEES-PRIV CONTRACTOR FEES,"1,539.38",Revenue,01/08/2014,Childrens
WC47- 1306,DRAINTECH SERVICES (MIDLANDS) LIMITED,Premises,Premises-Repairs & Maintenance,"40000-REPAIRS,ALTERATIONS & MAINTENANCE-PREM",695.00,Revenue,13/08/2014,Regeneration
WC47- 1307,DRAKE COURT RESIDENTIAL HOME,Third Party Payments,Private Contractor Fees,73373-RESIDENTIAL & NURSING CARE PLACEMENTS,365.10,Revenue,19/08/2014,Social Care & Inclusion
WC47- 1308,DRAKE COURT RESIDENTIAL HOME,Third Party Payments,Private Contractor Fees,73373-RESIDENTIAL & NURSING CARE PLACEMENTS,"1,458.16",Revenue,26/08/2014,Social Care & Inclusion
WC47- 1309,DRAKE COURT RESIDENTIAL HOME,Third Party Payments,Private Contractor Fees,73373-RESIDENTIAL & NURSING CARE PLACEMENTS,"1,458.16",Revenue,26/08/2014,Social Care & Inclusion
WC47- 1310,DRAKE COURT RESIDENTIAL HOME,Third Party Payments,Private Contractor Fees,73373-RESIDENTIAL & NURSING CARE PLACEMENTS,"1,458.16",Revenue,26/08/2014,Social Care & Inclusion
WC47- 1311,DRAKE COURT RESIDENTIAL HOME,Third Party Payments,Private Contractor Fees,73373-RESIDENTIAL & NURSING CARE PLACEMENTS,"1,458.16",Revenue,26/08/2014,Social Care & Inclusion
WC47- 1312,DRAKE COURT RESIDENTIAL HOME,Third Party Payments,Private Contractor Fees,73373-RESIDENTIAL & NURSING CARE PLACEMENTS,"1,458.16",Revenue,26/08/2014,Social Care & Inclusion
WC47- 1313,DRAKE COURT RESIDENTIAL HOME,Third Party Payments,Private Contractor Fees,73373-RESIDENTIAL & NURSING CARE PLACEMENTS,"1,458.16",Revenue,26/08/2014,Social Care & Inclusion
WC47- 1314,DRAKE COURT RESIDENTIAL HOME,Third Party Payments,Private Contractor Fees,73373-RESIDENTIAL & NURSING CARE PLACEMENTS,"1,460.40",Revenue,05/08/2014,Social Care & Inclusion
WC47- 1315,DRAKE COURT RESIDENTIAL HOME,Third Party Payments,Private Contractor Fees,73373-RESIDENTIAL & NURSING CARE PLACEMENTS,"1,460.40",Revenue,05/08/2014,Social Care & Inclusion
WC47- 1316,DRAKE COURT RESIDENTIAL HOME,Third Party Payments,Private Contractor Fees,73373-RESIDENTIAL & NURSING CARE PLACEMENTS,"1,460.40",Revenue,05/08/2014,Social Care & Inclusion
WC47- 1317,DRAKE COURT RESIDENTIAL HOME,Third Party Payments,Private Contractor Fees,73373-RESIDENTIAL & NURSING CARE PLACEMENTS,"1,460.40",Revenue,05/08/2014,Social Care & Inclusion
WC47- 1318,DRAKE COURT RESIDENTIAL HOME,Third Party Payments,Private Contractor Fees,73373-RESIDENTIAL & NURSING CARE PLACEMENTS,"1,460.40",Revenue,26/08/2014,Social Care & Inclusion
WC47- 1319,DRAKE COURT RESIDENTIAL HOME,Third Party Payments,Private Contractor Fees,73373-RESIDENTIAL & NURSING CARE PLACEMENTS,"1,460.40",Revenue,26/08/2014,Social Care & Inclusion
WC47- 1320,DRAKE COURT RESIDENTIAL HOME,Third Party Payments,Private Contractor Fees,73373-RESIDENTIAL & NURSING CARE PLACEMENTS,"1,460.40",Revenue,26/08/2014,Social Care & Inclusion
WC47- 1321,DRAKE COURT RESIDENTIAL HOME,Third Party Payments,Private Contractor Fees,73373-RESIDENTIAL & NURSING CARE PLACEMENTS,"1,460.40",Revenue,26/08/2014,Social Care & Inclusion
WC47- 1322,DRAKE COURT RESIDENTIAL HOME,Third Party Payments,Private Contractor Fees,73373-RESIDENTIAL & NURSING CARE PLACEMENTS,"1,460.40",Revenue,26/08/2014,Social Care & Inclusion
WC47- 1323,DRAKE COURT RESIDENTIAL HOME,Third Party Payments,Private Contractor Fees,73373-RESIDENTIAL & NURSING CARE PLACEMENTS,"1,460.40",Revenue,26/08/2014,Social Care & Inclusion
WC47- 1324,DRAKE COURT RESIDENTIAL HOME,Third Party Payments,Private Contractor Fees,73373-RESIDENTIAL & NURSING CARE PLACEMENTS,"1,460.40",Revenue,26/08/2014,Social Care & Inclusion
WC47- 1325,DRAKE COURT RESIDENTIAL HOME,Third Party Payments,Private Contractor Fees,73373-RESIDENTIAL & NURSING CARE PLACEMENTS,"1,460.40",Revenue,26/08/2014,Social Care & Inclusion
